Body_Code,Body_Name,Service_Area,Responsible_Unit,Expense_Type,Expense_Code,Narrative,Date,Transaction_Number,Amount,Supplier_Name
http://statistics.data.gov.uk/id/local-authority/38,Oxfordshire County Council,SCS Other Cost Centres,Control Account Trojan Residential Care,Balance Sheet General,B2040,ABACUS Accounts Payable Control A/c,13/10/2011,3100038346,-3157.29,Oxenford House
http://statistics.data.gov.uk/id/local-authority/38,Oxfordshire County Council,SCS Other Cost Centres,Control Account Trojan Residential Care,Balance Sheet General,B2040,ABACUS Accounts Payable Control A/c,13/10/2011,3100038349,-6642.86,OSJ - Lincoln House
http://statistics.data.gov.uk/id/local-authority/38,Oxfordshire County Council,SCS Other Cost Centres,Control Account Trojan Residential Care,Balance Sheet General,B2040,ABACUS Accounts Payable Control A/c,13/10/2011,3100038484,-83336.17,OSJ -  Westgate House
http://statistics.data.gov.uk/id/local-authority/38,Oxfordshire County Council,SCS Other Cost Centres,Control Account Trojan Residential Care,Balance Sheet General,B2040,ABACUS Accounts Payable Control A/c,13/10/2011,3100038610,-30960,Grafton Manor
http://statistics.data.gov.uk/id/local-authority/38,Oxfordshire County Council,SCS Other Cost Centres,Control Account Trojan Residential Care,Balance Sheet General,B2040,ABACUS Accounts Payable Control A/c,13/10/2011,3100038644,-1883.43,Cherwood House Care Centre
http://statistics.data.gov.uk/id/local-authority/38,Oxfordshire County Council,SCS Other Cost Centres,Control Account Trojan Residential Care,Balance Sheet General,B2040,ABACUS Accounts Payable Control A/c,13/10/2011,3100038667,-9660,Fairholme House
http://statistics.data.gov.uk/id/local-authority/38,Oxfordshire County Council,SCS Pooled Budgets,OP Pool Order of St John Block,Other Agency and Contracted Services,57150,Extra Care Housing Personal Care Charges,31/10/2011,3100038680,-26627.29,Order of St Johns Care Trust
http://statistics.data.gov.uk/id/local-authority/38,Oxfordshire County Council,SCS Other Cost Centres,Control Account Trojan Residential Care,Balance Sheet General,B2040,ABACUS Accounts Payable Control A/c,13/10/2011,3100038712,-18854.15,Leonard Cheshire FOR PAYMENTS ONLY
http://statistics.data.gov.uk/id/local-authority/38,Oxfordshire County Council,SCS Pooled Budgets,OP Pool Order of St John Block,Other Agency and Contracted Services,57150,Extra Care Housing Personal Care Charges,31/10/2011,3100038715,-33963.36,Order of St Johns Care Trust
http://statistics.data.gov.uk/id/local-authority/38,Oxfordshire County Council,SCS Other Cost Centres,Control Account Trojan Residential Care,Balance Sheet General,B2040,ABACUS Accounts Payable Control A/c,13/10/2011,3100038721,-7285.71,Beech Haven Care Home
http://statistics.data.gov.uk/id/local-authority/38,Oxfordshire County Council,SCS Other Cost Centres,Control Account Trojan Residential Care,Balance Sheet General,B2040,ABACUS Accounts Payable Control A/c,13/10/2011,3100038737,-7071.43,Lashbrook House Nursing Home
http://statistics.data.gov.uk/id/local-authority/38,Oxfordshire County Council,Social & Community Services,Watlington Library,Energy Costs,23200,Gas,19/10/2011,3100038879,-2549.73,British Gas Business
http://statistics.data.gov.uk/id/local-authority/38,Oxfordshire County Council,Social & Community Services,Watlington Library,Energy Costs,23200,Gas,19/10/2011,3100038881,-698.67,British Gas Business
http://statistics.data.gov.uk/id/local-authority/38,Oxfordshire County Council,Social & Community Services,Watlington Library,Energy Costs,23200,Gas,19/10/2011,3100038882,-640.93,British Gas Business
http://statistics.data.gov.uk/id/local-authority/38,Oxfordshire County Council,Social & Community Services,Watlington Library,Energy Costs,23200,Gas,19/10/2011,3100038883,-622.62,British Gas Business
http://statistics.data.gov.uk/id/local-authority/38,Oxfordshire County Council,Social & Community Services,Watlington Library,Energy Costs,23200,Gas,19/10/2011,3100038885,-673.54,British Gas Business
http://statistics.data.gov.uk/id/local-authority/38,Oxfordshire County Council,Education & Early Intervention,Abingdon Area,Energy Costs,23200,Gas,19/10/2011,3100038887,-443.74,British Gas Business
http://statistics.data.gov.uk/id/local-authority/38,Oxfordshire County Council,Property Asset Management,Nuffield Way,Energy Costs,23200,Gas,19/10/2011,3100038889,-627.57,British Gas Business
http://statistics.data.gov.uk/id/local-authority/38,Oxfordshire County Council,Social & Community Services,Service Delivery Utilities,Energy Costs,23200,Gas,19/10/2011,3100038893,-536.4,British Gas Business
http://statistics.data.gov.uk/id/local-authority/38,Oxfordshire County Council,Education & Early Intervention,Hill End,Energy Costs,23200,Gas,19/10/2011,3100038897,-855.45,British Gas Business
http://statistics.data.gov.uk/id/local-authority/38,Oxfordshire County Council,Social & Community Services,Watlington Library,Energy Costs,23200,Gas,19/10/2011,3100038899,-517.95,British Gas Business
http://statistics.data.gov.uk/id/local-authority/38,Oxfordshire County Council,Social & Community Services,Service Delivery Utilities,Energy Costs,23200,Gas,19/10/2011,3100038911,-481.13,British Gas Business
http://statistics.data.gov.uk/id/local-authority/38,Oxfordshire County Council,Social & Community Services,"Multi Purpose Day Ctrs, Bicester Day C",Energy Costs,23200,Gas,19/10/2011,3100038915,-644.6,British Gas Business
http://statistics.data.gov.uk/id/local-authority/38,Oxfordshire County Council,Education & Early Intervention,Courtyard Youth Arts Centre,Energy Costs,23200,Gas,19/10/2011,3100038917,-641.74,British Gas Business
http://statistics.data.gov.uk/id/local-authority/38,Oxfordshire County Council,Property Asset Management,Corporate Properties,Energy Costs,23200,Gas,19/10/2011,3100038919,-536.82,British Gas Business
http://statistics.data.gov.uk/id/local-authority/38,Oxfordshire County Council,Social & Community Services,Cowley Library  (Was Temple Cowley),Energy Costs,23200,Gas,19/10/2011,3100038920,-677.36,British Gas Business
http://statistics.data.gov.uk/id/local-authority/38,Oxfordshire County Council,Social & Community Services,Service Delivery Utilities,Energy Costs,23200,Gas,19/10/2011,3100038921,-650.67,British Gas Business
http://statistics.data.gov.uk/id/local-authority/38,Oxfordshire County Council,Social & Community Services,County Print Finishers,Energy Costs,23200,Gas,19/10/2011,3100038952,-583.53,British Gas Business
http://statistics.data.gov.uk/id/local-authority/38,Oxfordshire County Council,Social & Community Services,Service Delivery Utilities,Energy Costs,23200,Gas,19/10/2011,3100038957,-428.88,British Gas Business
http://statistics.data.gov.uk/id/local-authority/38,Oxfordshire County Council,Social & Community Services,The Mill,Energy Costs,23200,Gas,19/10/2011,3100038962,-1079.77,British Gas Business
http://statistics.data.gov.uk/id/local-authority/38,Oxfordshire County Council,Social & Community Services,"Older Pers Day Cntrs, Abingdon DC",Energy Costs,23200,Gas,19/10/2011,3100038964,-551.94,British Gas Business
http://statistics.data.gov.uk/id/local-authority/38,Oxfordshire County Council,Property Asset Management,Electric Avenue,Energy Costs,23200,Gas,19/10/2011,3100038974,-463.2,British Gas Business
http://statistics.data.gov.uk/id/local-authority/38,Oxfordshire County Council,SCS Other Cost Centres,Control Account Trojan Residential Care,Balance Sheet General,B2040,ABACUS Accounts Payable Control A/c,13/10/2011,3100039125,-12951.43,Crispin Homes Ltd t/a Newland House
http://statistics.data.gov.uk/id/local-authority/38,Oxfordshire County Council,Education & Early Intervention,Zone 3 - West,Transport Related,33101,Home to School Trans,03/10/2011,3100039140,-1545,Aldermore Invoice Finance
http://statistics.data.gov.uk/id/local-authority/38,Oxfordshire County Council,Education & Early Intervention,Banbury SEN Trans,Transport Related,33101,Home to School Trans,03/10/2011,3100039141,-1076.4,Cheney Coaches Limited
http://statistics.data.gov.uk/id/local-authority/38,Oxfordshire County Council,SCS Pooled Budgets,Direct Payments North Team,Other Agency and Contracted Services,57401,Direct Payments,05/10/2011,3100039184,-833.92,A4e Management Ltd Week 1
http://statistics.data.gov.uk/id/local-authority/38,Oxfordshire County Council,SCS Pooled Budgets,Direct Payments North Team,Other Agency and Contracted Services,57401,Direct Payments,05/10/2011,3100039185,-935.68,A4e Management Ltd Week 1
http://statistics.data.gov.uk/id/local-authority/38,Oxfordshire County Council,SCS Pooled Budgets,Direct Payments North Team,Other Agency and Contracted Services,57401,Direct Payments,05/10/2011,3100039186,-1037.34,A4e Management Ltd Week 1
http://statistics.data.gov.uk/id/local-authority/38,Oxfordshire County Council,SCS Other Cost Centres,Home Support trading account for PBs,Other Agency and Contracted Services,57401,Direct Payments,05/10/2011,3100039213,-1495.29,Primary Healthcare
http://statistics.data.gov.uk/id/local-authority/38,Oxfordshire County Council,SCS Other Cost Centres,Home Support trading account for PBs,Other Agency and Contracted Services,57401,Direct Payments,05/10/2011,3100039235,-599.53,Secure Care (Oxford) Ltd
http://statistics.data.gov.uk/id/local-authority/38,Oxfordshire County Council,SCS Other Cost Centres,Control Account Trojan Residential Care,Balance Sheet General,B2040,ABACUS Accounts Payable Control A/c,13/10/2011,3100039260,-75553.44,Oaken Holt Nursing Home
http://statistics.data.gov.uk/id/local-authority/38,Oxfordshire County Council,Social & Community Services,Operations,Transport Related,33600,Hire of vehicles,06/10/2011,3100039271,-1945.25,N.L. Matthews
http://statistics.data.gov.uk/id/local-authority/38,Oxfordshire County Council,Education & Early Intervention,Oxford Sth SEN Trans,Transport Related,33101,Home to School Trans,06/10/2011,3100039312,-2300,Ash Taxis
http://statistics.data.gov.uk/id/local-authority/38,Oxfordshire County Council,SCS Other Cost Centres,Control Account Trojan Residential Care,Balance Sheet General,B2040,ABACUS Accounts Payable Control A/c,13/10/2011,3100039352,-74290.56,Heathfield House Nursing Home
http://statistics.data.gov.uk/id/local-authority/38,Oxfordshire County Council,SCS Other Cost Centres,Control Account Trojan Residential Care,Balance Sheet General,B2040,ABACUS Accounts Payable Control A/c,13/10/2011,3100039440,-5590.63,Chacombe House Nursing Home
http://statistics.data.gov.uk/id/local-authority/38,Oxfordshire County Council,SCS Other Cost Centres,Control Account Trojan Residential Care,Balance Sheet General,B2040,ABACUS Accounts Payable Control A/c,13/10/2011,3100039546,-1356.04,Phoenix House (Portland House)
http://statistics.data.gov.uk/id/local-authority/38,Oxfordshire County Council,Property Asset Management,Samuelson House,WATER,25200,Metered Water,13/10/2011,3100039671,-2980.95,Thames Water Utilities Ltd
http://statistics.data.gov.uk/id/local-authority/38,Oxfordshire County Council,Highways & Transport,Public Transport Development Plan,Services,44500,Other Hired & Contract Services,13/10/2011,3100039672,-600,Vix ACIS Ltd
http://statistics.data.gov.uk/id/local-authority/38,Oxfordshire County Council,Property Asset Management,Knights Court,WATER,25200,Metered Water,17/10/2011,3100039698,-904.75,Thames Water Utilities Ltd
http://statistics.data.gov.uk/id/local-authority/38,Oxfordshire County Council,Education & Early Intervention,ECC - Every Child Counts,Balance Sheet General,B2030,Goods Received not Invoiced,21/10/2011,3100039871,-1254.5,Buckinghamshire County Council
http://statistics.data.gov.uk/id/local-authority/38,Oxfordshire County Council,Education & Early Intervention,ECC - Every Child Counts,Balance Sheet General,B2030,Goods Received not Invoiced,21/10/2011,3100039871,-2100,Buckinghamshire County Council
http://statistics.data.gov.uk/id/local-authority/38,Oxfordshire County Council,Education & Early Intervention,ECC - Every Child Counts,Balance Sheet General,B2030,Goods Received not Invoiced,21/10/2011,3100039871,-2800,Buckinghamshire County Council
http://statistics.data.gov.uk/id/local-authority/38,Oxfordshire County Council,Highways & Transport,Transport  Management Support,Private Contractors,56400,Major Contracts,31/10/2011,3150004327,-3000000,ATKINS LIMITED
http://statistics.data.gov.uk/id/local-authority/38,Oxfordshire County Council,In-House,Miscellaneous,Pension Fund Balance Sheet,PB802,Payroll payments by cheque (net pay),04/10/2011,3300000924,865.82,REDACTED PERSONAL DATA
http://statistics.data.gov.uk/id/local-authority/38,Oxfordshire County Council,In-House,Miscellaneous,Pension Fund Balance Sheet,PB802,Payroll payments by cheque (net pay),04/10/2011,3300000927,509.02,REDACTED PERSONAL DATA
http://statistics.data.gov.uk/id/local-authority/38,Oxfordshire County Council,Scheduled Bodies,Oxford City Council,Contributions Leaving the Fund,PR401,Transfers out,05/10/2011,3300000946,26860.54,East Sussex County Council
http://statistics.data.gov.uk/id/local-authority/38,Oxfordshire County Council,In-House,Miscellaneous,Pension Fund Balance Sheet,PB810,Give As You Earn,10/10/2011,3300000967,638.05,Charities Aid Foundation
http://statistics.data.gov.uk/id/local-authority/38,Oxfordshire County Council,Scheduled Bodies,Oxfordshire County Council,Contributions Leaving the Fund,PR401,Transfers out,12/10/2011,3300000970,120872.53,Cabinet Office : Civil Superann
http://statistics.data.gov.uk/id/local-authority/38,Oxfordshire County Council,Scheduled Bodies,Oxfordshire County Council,Contributions Leaving the Fund,PR401,Transfers out,12/10/2011,3300000972,37544.77,Kent County Council
http://statistics.data.gov.uk/id/local-authority/38,Oxfordshire County Council,Scheduled Bodies,Oxfordshire County Council,Contributions Leaving the Fund,PR401,Transfers out,14/10/2011,3300000991,2676.99,BUCKINGHAMSHIRE COUNTY COUNCIL
http://statistics.data.gov.uk/id/local-authority/38,Oxfordshire County Council,Scheduled Bodies,Oxfordshire County Council,Contributions Leaving the Fund,PR401,Transfers out,14/10/2011,3300000999,54928.23,Kent County Council
http://statistics.data.gov.uk/id/local-authority/38,Oxfordshire County Council,Scheduled Bodies,Oxfordshire County Council,Contributions Leaving the Fund,PR401,Transfers out,14/10/2011,3300001000,16282.26,Devon County Council
http://statistics.data.gov.uk/id/local-authority/38,Oxfordshire County Council,Scheduled Bodies,Oxfordshire County Council,Contributions Leaving the Fund,PR401,Transfers out,17/10/2011,3300001009,37519.15,Cumbria County Council
http://statistics.data.gov.uk/id/local-authority/38,Oxfordshire County Council,Scheduled Bodies,Oxford & Cherwell College,Contributions Leaving the Fund,PR401,Transfers out,17/10/2011,3300001013,16379.26,Lancashire County Council
http://statistics.data.gov.uk/id/local-authority/38,Oxfordshire County Council,Scheduled Bodies,South Oxfordshire District Council,Pension Fund Revenue,PR507,Combined Benefits Basic Pension,19/10/2011,3300001017,1540.42,Dorset County Council
http://statistics.data.gov.uk/id/local-authority/38,Oxfordshire County Council,Admitted Bodies,Charter Community Housing,Contributions Leaving the Fund,PR401,Transfers out,19/10/2011,3300001020,268057.88,Kent County Council
http://statistics.data.gov.uk/id/local-authority/38,Oxfordshire County Council,Scheduled Bodies,Oxfordshire County Council,Contributions Leaving the Fund,PR401,Transfers out,25/10/2011,3300001037,5059.02,NHS Pensions Scheme Account
http://statistics.data.gov.uk/id/local-authority/38,Oxfordshire County Council,Scheduled Bodies,Oxfordshire County Council,Pension Fund Revenue,PR507,Combined Benefits Basic Pension,26/10/2011,3300001045,12997.69,West Midlands Pension Fund
http://statistics.data.gov.uk/id/local-authority/38,Oxfordshire County Council,Education & Early Intervention,Supp Graduate Leader,"Equipment, Furniture and Materials",41100,Educational Supplies,10/10/2011,3301349792,1076,Bright Horizons Family Solutions
http://statistics.data.gov.uk/id/local-authority/38,Oxfordshire County Council,Education & Early Intervention,Supp Graduate Leader,"Equipment, Furniture and Materials",41100,Educational Supplies,06/10/2011,3301349796,1700,St Thomas Day Nursery Limited
http://statistics.data.gov.uk/id/local-authority/38,Oxfordshire County Council,Education & Early Intervention,Supp Graduate Leader,"Equipment, Furniture and Materials",41100,Educational Supplies,10/10/2011,3301349798,1700,Sunshine Day Nursery
http://statistics.data.gov.uk/id/local-authority/38,Oxfordshire County Council,Education & Early Intervention,Supp Graduate Leader,"Equipment, Furniture and Materials",41100,Educational Supplies,10/10/2011,3301349799,1700,Petit Enfant Day Nursery
http://statistics.data.gov.uk/id/local-authority/38,Oxfordshire County Council,Education & Early Intervention,Supp Graduate Leader,"Equipment, Furniture and Materials",41100,Educational Supplies,10/10/2011,3301349800,1700,"St Paul's Nursery, Somerville Colle"
http://statistics.data.gov.uk/id/local-authority/38,Oxfordshire County Council,Strategy & Communications,Grants incl Voluntary Sector,Grants and Subscriptions,47100,Grants to Voluntary,03/10/2011,3301349852,45000,Oxfordshire Rural Community Council
http://statistics.data.gov.uk/id/local-authority/38,Oxfordshire County Council,Children's Social Care,Service Agreements - Resource Centres,Voluntary Associations,55402,Service Agreements - Family Support,03/10/2011,3301350128,88414.5,Barnardo's Midland
http://statistics.data.gov.uk/id/local-authority/38,Oxfordshire County Council,Children's Social Care,Service Agreements - Resource Centres,Voluntary Associations,55402,Service Agreements - Family Support,03/10/2011,3301350129,100438.75,Barnardo's Midland
http://statistics.data.gov.uk/id/local-authority/38,Oxfordshire County Council,Education & Early Intervention,Supp Graduate Leader,"Equipment, Furniture and Materials",41100,Educational Supplies,11/10/2011,3301353388,560,The Co-operative Childcare
http://statistics.data.gov.uk/id/local-authority/38,Oxfordshire County Council,Education & Early Intervention,Learner Grants,"Equipment, Furniture and Materials",41100,Educational Supplies,11/10/2011,3301353682,831,STEPPING STONESPRE-SCHOOL
http://statistics.data.gov.uk/id/local-authority/38,Oxfordshire County Council,Education & Early Intervention,Learner Grants,"Equipment, Furniture and Materials",41100,Educational Supplies,13/10/2011,3301353683,1196,Kingfisher Playgroup
http://statistics.data.gov.uk/id/local-authority/38,Oxfordshire County Council,Highways & Transport,"Electrical NP Rds, Street Lighting",Private Contractors,56400,Major Contracts,11/10/2011,3301354362,2550,INSTITUTION OF LIGHTING ENGINEERS
http://statistics.data.gov.uk/id/local-authority/38,Oxfordshire County Council,Education & Early Intervention,Supp Graduate Leader,"Equipment, Furniture and Materials",41100,Educational Supplies,14/10/2011,3301354631,1076,Little Owls Nursery
http://statistics.data.gov.uk/id/local-authority/38,Oxfordshire County Council,Education & Early Intervention,Supp Graduate Leader,"Equipment, Furniture and Materials",41100,Educational Supplies,14/10/2011,3301354637,560,"St Paul's Nursery, Somerville Colle"
http://statistics.data.gov.uk/id/local-authority/38,Oxfordshire County Council,Education & Early Intervention,Supp Graduate Leader,"Equipment, Furniture and Materials",41100,Educational Supplies,18/10/2011,3301354639,2000,Kids Unlimited - Waterways
http://statistics.data.gov.uk/id/local-authority/38,Oxfordshire County Council,Education & Early Intervention,Mid SENSS Area Co-ordinator,Energy Costs,23200,Gas,19/10/2011,3301358482,503.91,British Gas Business
http://statistics.data.gov.uk/id/local-authority/38,Oxfordshire County Council,Social & Community Services,St. Luke's Church,Energy Costs,23200,Gas,19/10/2011,3301358505,509.22,British Gas Business
http://statistics.data.gov.uk/id/local-authority/38,Oxfordshire County Council,Education & Early Intervention,Hill End,Energy Costs,23200,Gas,19/10/2011,3301358578,855.45,British Gas Business
http://statistics.data.gov.uk/id/local-authority/38,Oxfordshire County Council,Social & Community Services,Service Delivery Utilities,Energy Costs,23200,Gas,19/10/2011,3301358631,470.14,British Gas Business
http://statistics.data.gov.uk/id/local-authority/38,Oxfordshire County Council,Social & Community Services,The Mill,Energy Costs,23200,Gas,19/10/2011,3301358636,973.52,British Gas Business
http://statistics.data.gov.uk/id/local-authority/38,Oxfordshire County Council,Social & Community Services,Watlington Library,Energy Costs,23200,Gas,19/10/2011,3301358641,672.94,British Gas Business
http://statistics.data.gov.uk/id/local-authority/38,Oxfordshire County Council,Highways Management,Error Suspense,Balance Sheet General,B2030,Goods Received not Invoiced,31/10/2011,3301358944,221797.78,ATKINS LIMITED
http://statistics.data.gov.uk/id/local-authority/38,Oxfordshire County Council,Social & Community Services,Community Support Budget - City East,Other Agency and Contracted Services,57300,Home Support (Ext) OS&HCD,10/10/2011,3301358947,2876.25,Kcare Nursing Agency
http://statistics.data.gov.uk/id/local-authority/38,Oxfordshire County Council,Education & Early Intervention,Zone 5 - South,Transport Related,33101,Home to School Trans,03/10/2011,3301360034,4094.82,Carousel Buses Limited
http://statistics.data.gov.uk/id/local-authority/38,Oxfordshire County Council,Education & Early Intervention,Oxford Sth SEN Trans,Transport Related,33101,Home to School Trans,03/10/2011,3301360035,3154.75,W Lynch T/A N J Sarney
http://statistics.data.gov.uk/id/local-authority/38,Oxfordshire County Council,Education & Early Intervention,Oxford Sth SEN Trans,Transport Related,33101,Home to School Trans,03/10/2011,3301360036,1653.95,J.Dhanjal Transport Ltd
http://statistics.data.gov.uk/id/local-authority/38,Oxfordshire County Council,Education & Early Intervention,Oxford Sth SEN Trans,Transport Related,33300,Transport (General),03/10/2011,3301360037,516.8,J.Dhanjal Transport Ltd
http://statistics.data.gov.uk/id/local-authority/38,Oxfordshire County Council,Education & Early Intervention,Zone 5 - South,Transport Related,33101,Home to School Trans,03/10/2011,3301360038,6561.36,J.Dhanjal Transport Ltd
http://statistics.data.gov.uk/id/local-authority/38,Oxfordshire County Council,Education & Early Intervention,Zone 3 - West,Transport Related,33101,Home to School Trans,03/10/2011,3301360039,6510.55,J.Dhanjal Transport Ltd
http://statistics.data.gov.uk/id/local-authority/38,Oxfordshire County Council,Education & Early Intervention,Zone 4 - Vale,Transport Related,33101,Home to School Trans,03/10/2011,3301360040,3150,J.Dhanjal Transport Ltd
http://statistics.data.gov.uk/id/local-authority/38,Oxfordshire County Council,Education & Early Intervention,Zone 4 - Vale,Transport Related,33101,Home to School Trans,03/10/2011,3301360041,2950.2,J.Dhanjal Transport Ltd
http://statistics.data.gov.uk/id/local-authority/38,Oxfordshire County Council,Education & Early Intervention,Oxford Sth SEN Trans,Transport Related,33101,Home to School Trans,03/10/2011,3301360042,1032.84,Jackie's Services
http://statistics.data.gov.uk/id/local-authority/38,Oxfordshire County Council,Education & Early Intervention,Zone 3 - West,Transport Related,33101,Home to School Trans,03/10/2011,3301360043,50499,Aldermore Invoice Finance
http://statistics.data.gov.uk/id/local-authority/38,Oxfordshire County Council,Education & Early Intervention,Zone 4 - Vale,Transport Related,33101,Home to School Trans,03/10/2011,3301360044,4210.92,The School Bus Company
http://statistics.data.gov.uk/id/local-authority/38,Oxfordshire County Council,Education & Early Intervention,Zone 4 - Vale,Transport Related,33101,Home to School Trans,03/10/2011,3301360045,33277.32,The School Bus Company
http://statistics.data.gov.uk/id/local-authority/38,Oxfordshire County Council,Education & Early Intervention,Zone 2 - East,Transport Related,33101,Home to School Trans,03/10/2011,3301360046,1980,Heyfordian Travel Ltd
http://statistics.data.gov.uk/id/local-authority/38,Oxfordshire County Council,Education & Early Intervention,Zone 2 - East,Transport Related,33101,Home to School Trans,03/10/2011,3301360047,2065.5,Heyfordian Travel Ltd
http://statistics.data.gov.uk/id/local-authority/38,Oxfordshire County Council,Education & Early Intervention,Zone 5 - South,Transport Related,33101,Home to School Trans,03/10/2011,3301360048,3722.58,Heyfordian Travel Ltd
http://statistics.data.gov.uk/id/local-authority/38,Oxfordshire County Council,Education & Early Intervention,Zone 5 - South,Transport Related,33101,Home to School Trans,03/10/2011,3301360049,3515.77,Heyfordian Travel Ltd
http://statistics.data.gov.uk/id/local-authority/38,Oxfordshire County Council,Education & Early Intervention,Zone 5 - South,Transport Related,33101,Home to School Trans,03/10/2011,3301360050,3722.58,Heyfordian Travel Ltd
http://statistics.data.gov.uk/id/local-authority/38,Oxfordshire County Council,Education & Early Intervention,Zone 5 - South,Transport Related,33101,Home to School Trans,03/10/2011,3301360051,3722.58,Heyfordian Travel Ltd
http://statistics.data.gov.uk/id/local-authority/38,Oxfordshire County Council,Education & Early Intervention,Zone 5 - South,Transport Related,33101,Home to School Trans,03/10/2011,3301360052,3330,Heyfordian Travel Ltd
http://statistics.data.gov.uk/id/local-authority/38,Oxfordshire County Council,Education & Early Intervention,Zone 5 - South,Transport Related,33101,Home to School Trans,03/10/2011,3301360053,3519.72,Heyfordian Travel Ltd
http://statistics.data.gov.uk/id/local-authority/38,Oxfordshire County Council,Education & Early Intervention,Zone 5 - South,Transport Related,33101,Home to School Trans,03/10/2011,3301360054,4296.92,Heyfordian Travel Ltd
http://statistics.data.gov.uk/id/local-authority/38,Oxfordshire County Council,Education & Early Intervention,Zone 2 - East,Transport Related,33101,Home to School Trans,03/10/2011,3301360055,2347.2,Heyfordian Travel Ltd
http://statistics.data.gov.uk/id/local-authority/38,Oxfordshire County Council,Education & Early Intervention,Zone 5 - South,Transport Related,33101,Home to School Trans,03/10/2011,3301360056,2775.08,Heyfordian Travel Ltd
http://statistics.data.gov.uk/id/local-authority/38,Oxfordshire County Council,Education & Early Intervention,Zone 5 - South,Transport Related,33101,Home to School Trans,03/10/2011,3301360057,3416.66,Heyfordian Travel Ltd
http://statistics.data.gov.uk/id/local-authority/38,Oxfordshire County Council,Education & Early Intervention,Zone 1 - North,Transport Related,33101,Home to School Trans,03/10/2011,3301360058,2467.8,Heyfordian Travel Ltd
http://statistics.data.gov.uk/id/local-authority/38,Oxfordshire County Council,Education & Early Intervention,Zone 1 - North,Transport Related,33101,Home to School Trans,03/10/2011,3301360059,2230.38,Heyfordian Travel Ltd
http://statistics.data.gov.uk/id/local-authority/38,Oxfordshire County Council,Education & Early Intervention,Zone 1 - North,Transport Related,33101,Home to School Trans,03/10/2011,3301360060,2230.38,Heyfordian Travel Ltd
http://statistics.data.gov.uk/id/local-authority/38,Oxfordshire County Council,Education & Early Intervention,Zone 1 - North,Transport Related,33101,Home to School Trans,03/10/2011,3301360061,2230.38,Heyfordian Travel Ltd
http://statistics.data.gov.uk/id/local-authority/38,Oxfordshire County Council,Education & Early Intervention,Zone 1 - North,Transport Related,33101,Home to School Trans,03/10/2011,3301360062,2230.38,Heyfordian Travel Ltd
http://statistics.data.gov.uk/id/local-authority/38,Oxfordshire County Council,Education & Early Intervention,Zone 1 - North,Transport Related,33101,Home to School Trans,03/10/2011,3301360063,2230.38,Heyfordian Travel Ltd
http://statistics.data.gov.uk/id/local-authority/38,Oxfordshire County Council,Education & Early Intervention,Zone 1 - North,Transport Related,33101,Home to School Trans,03/10/2011,3301360064,2420.28,Heyfordian Travel Ltd
http://statistics.data.gov.uk/id/local-authority/38,Oxfordshire County Council,Education & Early Intervention,Zone 1 - North,Transport Related,33101,Home to School Trans,03/10/2011,3301360065,2420.28,Heyfordian Travel Ltd
http://statistics.data.gov.uk/id/local-authority/38,Oxfordshire County Council,Education & Early Intervention,Zone 1 - North,Transport Related,33101,Home to School Trans,03/10/2011,3301360066,2230.38,Heyfordian Travel Ltd
http://statistics.data.gov.uk/id/local-authority/38,Oxfordshire County Council,Education & Early Intervention,Zone 1 - North,Transport Related,33101,Home to School Trans,03/10/2011,3301360067,4365.9,Heyfordian Travel Ltd
http://statistics.data.gov.uk/id/local-authority/38,Oxfordshire County Council,Education & Early Intervention,Zone 1 - North,Transport Related,33101,Home to School Trans,03/10/2011,3301360068,2420.28,Heyfordian Travel Ltd
http://statistics.data.gov.uk/id/local-authority/38,Oxfordshire County Council,Education & Early Intervention,Zone 1 - North,Transport Related,33101,Home to School Trans,03/10/2011,3301360069,2420.28,Heyfordian Travel Ltd
http://statistics.data.gov.uk/id/local-authority/38,Oxfordshire County Council,Education & Early Intervention,Zone 1 - North,Transport Related,33101,Home to School Trans,03/10/2011,3301360070,4460.76,Heyfordian Travel Ltd
http://statistics.data.gov.uk/id/local-authority/38,Oxfordshire County Council,Education & Early Intervention,Zone 1 - North,Transport Related,33101,Home to School Trans,03/10/2011,3301360071,3758.58,Heyfordian Travel Ltd
http://statistics.data.gov.uk/id/local-authority/38,Oxfordshire County Council,Education & Early Intervention,Zone 1 - North,Transport Related,33101,Home to School Trans,03/10/2011,3301360072,3568.68,Heyfordian Travel Ltd
http://statistics.data.gov.uk/id/local-authority/38,Oxfordshire County Council,Education & Early Intervention,Zone 1 - North,Transport Related,33101,Home to School Trans,03/10/2011,3301360073,4460.76,Heyfordian Travel Ltd
http://statistics.data.gov.uk/id/local-authority/38,Oxfordshire County Council,Education & Early Intervention,Zone 1 - North,Transport Related,33101,Home to School Trans,03/10/2011,3301360074,4783.68,Heyfordian Travel Ltd
http://statistics.data.gov.uk/id/local-authority/38,Oxfordshire County Council,Education & Early Intervention,Zone 1 - North,Transport Related,33101,Home to School Trans,03/10/2011,3301360075,3378.78,Heyfordian Travel Ltd
http://statistics.data.gov.uk/id/local-authority/38,Oxfordshire County Council,Education & Early Intervention,Zone 1 - North,Transport Related,33101,Home to School Trans,03/10/2011,3301360076,3985.56,Heyfordian Travel Ltd
http://statistics.data.gov.uk/id/local-authority/38,Oxfordshire County Council,Education & Early Intervention,Zone 2 - East,Transport Related,33101,Home to School Trans,03/10/2011,3301360077,1877.76,Heyfordian Travel Ltd
http://statistics.data.gov.uk/id/local-authority/38,Oxfordshire County Council,Education & Early Intervention,Zone 4 - Vale,Transport Related,33101,Home to School Trans,03/10/2011,3301360078,3150,Heyfordian Travel Ltd
http://statistics.data.gov.uk/id/local-authority/38,Oxfordshire County Council,Education & Early Intervention,Zone 5 - South,Transport Related,33101,Home to School Trans,03/10/2011,3301360079,3960,Heyfordian Travel Ltd
http://statistics.data.gov.uk/id/local-authority/38,Oxfordshire County Council,Education & Early Intervention,Zone 4 - Vale,Transport Related,33101,Home to School Trans,03/10/2011,3301360080,3330,Tappins Coaches
http://statistics.data.gov.uk/id/local-authority/38,Oxfordshire County Council,Education & Early Intervention,Zone 4 - Vale,Transport Related,33101,Home to School Trans,03/10/2011,3301360081,3330,Tappins Coaches
http://statistics.data.gov.uk/id/local-authority/38,Oxfordshire County Council,Education & Early Intervention,Zone 4 - Vale,Transport Related,33101,Home to School Trans,03/10/2011,3301360082,3330,Tappins Coaches
http://statistics.data.gov.uk/id/local-authority/38,Oxfordshire County Council,Education & Early Intervention,Zone 4 - Vale,Transport Related,33101,Home to School Trans,03/10/2011,3301360083,3510,Tappins Coaches
http://statistics.data.gov.uk/id/local-authority/38,Oxfordshire County Council,Education & Early Intervention,Zone 4 - Vale,Transport Related,33101,Home to School Trans,03/10/2011,3301360084,3330,Tappins Coaches
http://statistics.data.gov.uk/id/local-authority/38,Oxfordshire County Council,Education & Early Intervention,Zone 4 - Vale,Transport Related,33101,Home to School Trans,03/10/2011,3301360085,3330,Tappins Coaches
http://statistics.data.gov.uk/id/local-authority/38,Oxfordshire County Council,Education & Early Intervention,Zone 4 - Vale,Transport Related,33101,Home to School Trans,03/10/2011,3301360086,3330,Tappins Coaches
http://statistics.data.gov.uk/id/local-authority/38,Oxfordshire County Council,Education & Early Intervention,Zone 4 - Vale,Transport Related,33101,Home to School Trans,03/10/2011,3301360087,3330,Tappins Coaches
http://statistics.data.gov.uk/id/local-authority/38,Oxfordshire County Council,Education & Early Intervention,Zone 4 - Vale,Transport Related,33101,Home to School Trans,03/10/2011,3301360088,3330,Tappins Coaches
http://statistics.data.gov.uk/id/local-authority/38,Oxfordshire County Council,Education & Early Intervention,Zone 5 - South,Transport Related,33101,Home to School Trans,03/10/2011,3301360089,3427.92,Tappins Coaches
http://statistics.data.gov.uk/id/local-authority/38,Oxfordshire County Council,Education & Early Intervention,Zone 5 - South,Transport Related,33101,Home to School Trans,03/10/2011,3301360090,3525.84,Tappins Coaches
http://statistics.data.gov.uk/id/local-authority/38,Oxfordshire County Council,Education & Early Intervention,Zone 5 - South,Transport Related,33101,Home to School Trans,03/10/2011,3301360091,3623.76,Tappins Coaches
http://statistics.data.gov.uk/id/local-authority/38,Oxfordshire County Council,Education & Early Intervention,Zone 5 - South,Transport Related,33101,Home to School Trans,03/10/2011,3301360092,3623.76,Tappins Coaches
http://statistics.data.gov.uk/id/local-authority/38,Oxfordshire County Council,Education & Early Intervention,Zone 5 - South,Transport Related,33101,Home to School Trans,03/10/2011,3301360093,3623.76,Tappins Coaches
http://statistics.data.gov.uk/id/local-authority/38,Oxfordshire County Council,Education & Early Intervention,Banbury SEN Trans,Transport Related,33101,Home to School Trans,03/10/2011,3301360094,6248.7,Cheney Coaches Limited
http://statistics.data.gov.uk/id/local-authority/38,Oxfordshire County Council,Education & Early Intervention,Banbury SEN Trans,Transport Related,33300,Transport (General),03/10/2011,3301360095,1732.68,Cheney Coaches Limited
http://statistics.data.gov.uk/id/local-authority/38,Oxfordshire County Council,Education & Early Intervention,Banbury SEN Trans,Transport Related,33101,Home to School Trans,03/10/2011,3301360096,17454.6,Cheney Coaches Limited
http://statistics.data.gov.uk/id/local-authority/38,Oxfordshire County Council,Education & Early Intervention,Banbury SEN Trans,Transport Related,33300,Transport (General),03/10/2011,3301360097,3712.86,Cheney Coaches Limited
http://statistics.data.gov.uk/id/local-authority/38,Oxfordshire County Council,Education & Early Intervention,Respite Care,Transport Related,33101,Home to School Trans,03/10/2011,3301360098,3036.96,Cheney Coaches Limited
http://statistics.data.gov.uk/id/local-authority/38,Oxfordshire County Council,Education & Early Intervention,Zone 1 - North,Transport Related,33101,Home to School Trans,03/10/2011,3301360099,4157.1,Jeffs Coaches Limited
http://statistics.data.gov.uk/id/local-authority/38,Oxfordshire County Council,Education & Early Intervention,Zone 1 - North,Transport Related,33101,Home to School Trans,03/10/2011,3301360100,4536.72,Jeffs Coaches Limited
http://statistics.data.gov.uk/id/local-authority/38,Oxfordshire County Council,Education & Early Intervention,Zone 2 - East,Transport Related,33101,Home to School Trans,03/10/2011,3301360101,650.88,Jeffs Coaches Limited
http://statistics.data.gov.uk/id/local-authority/38,Oxfordshire County Council,Education & Early Intervention,Zone 1 - North,Transport Related,33101,Home to School Trans,03/10/2011,3301360102,4536.72,Jeffs Coaches Limited
http://statistics.data.gov.uk/id/local-authority/38,Oxfordshire County Council,Education & Early Intervention,Zone 1 - North,Transport Related,33101,Home to School Trans,03/10/2011,3301360103,5186.28,Jeffs Coaches Limited
http://statistics.data.gov.uk/id/local-authority/38,Oxfordshire County Council,Education & Early Intervention,Free Travel,Transport Related,33101,Home to School Trans,03/10/2011,3301360104,879.54,Jeffs Coaches Limited
http://statistics.data.gov.uk/id/local-authority/38,Oxfordshire County Council,Education & Early Intervention,Zone 1 - North,Transport Related,33101,Home to School Trans,03/10/2011,3301360105,3606.48,Jeffs Coaches Limited
http://statistics.data.gov.uk/id/local-authority/38,Oxfordshire County Council,Education & Early Intervention,Witney SEN Trans,Transport Related,33101,Home to School Trans,03/10/2011,3301360106,6461.52,Windrush Transport Ltd
http://statistics.data.gov.uk/id/local-authority/38,Oxfordshire County Council,Education & Early Intervention,Witney SEN Trans,Transport Related,33300,Transport (General),03/10/2011,3301360107,2378.42,Windrush Transport Ltd
http://statistics.data.gov.uk/id/local-authority/38,Oxfordshire County Council,Education & Early Intervention,Banbury SEN Trans,Transport Related,33101,Home to School Trans,03/10/2011,3301360108,2910.6,Windrush Transport Ltd
http://statistics.data.gov.uk/id/local-authority/38,Oxfordshire County Council,Education & Early Intervention,Banbury SEN Trans,Transport Related,33300,Transport (General),03/10/2011,3301360109,751.14,Windrush Transport Ltd
http://statistics.data.gov.uk/id/local-authority/38,Oxfordshire County Council,Education & Early Intervention,Zone 3 - West,Transport Related,33101,Home to School Trans,03/10/2011,3301360110,1682.46,Windrush Transport Ltd
http://statistics.data.gov.uk/id/local-authority/38,Oxfordshire County Council,Education & Early Intervention,Zone 4 - Vale,Transport Related,33101,Home to School Trans,03/10/2011,3301360111,1746.48,Windrush Transport Ltd
http://statistics.data.gov.uk/id/local-authority/38,Oxfordshire County Council,Education & Early Intervention,Zone 5 - South,Transport Related,33101,Home to School Trans,03/10/2011,3301360113,2623.5,M & M Coaches
http://statistics.data.gov.uk/id/local-authority/38,Oxfordshire County Council,Education & Early Intervention,Oxford Nth SEN Trans,Transport Related,33101,Home to School Trans,03/10/2011,3301360114,1224,AKR LTD
http://statistics.data.gov.uk/id/local-authority/38,Oxfordshire County Council,Education & Early Intervention,Oxford Nth SEN Trans,Transport Related,33101,Home to School Trans,03/10/2011,3301360115,1476,AKR LTD
http://statistics.data.gov.uk/id/local-authority/38,Oxfordshire County Council,Education & Early Intervention,Oxford Nth SEN Trans,Transport Related,33300,Transport (General),03/10/2011,3301360116,432,AKR LTD
http://statistics.data.gov.uk/id/local-authority/38,Oxfordshire County Council,Education & Early Intervention,Oxford Nth SEN Trans,Transport Related,33101,Home to School Trans,03/10/2011,3301360117,1468.62,AKR LTD
http://statistics.data.gov.uk/id/local-authority/38,Oxfordshire County Council,Education & Early Intervention,Zone 2 - East,Transport Related,33101,Home to School Trans,03/10/2011,3301360119,2430,AKR LTD
http://statistics.data.gov.uk/id/local-authority/38,Oxfordshire County Council,Education & Early Intervention,Zone 2 - East,Transport Related,33101,Home to School Trans,03/10/2011,3301360120,2628.9,AKR LTD
http://statistics.data.gov.uk/id/local-authority/38,Oxfordshire County Council,Education & Early Intervention,Oxford Nth SEN Trans,Transport Related,33101,Home to School Trans,03/10/2011,3301360121,1314.36,AKR LTD
http://statistics.data.gov.uk/id/local-authority/38,Oxfordshire County Council,Education & Early Intervention,Abingdon SEN Trans,Transport Related,33101,Home to School Trans,03/10/2011,3301360123,1368,AKR LTD
http://statistics.data.gov.uk/id/local-authority/38,Oxfordshire County Council,Education & Early Intervention,Abingdon SEN Trans,Transport Related,33300,Transport (General),03/10/2011,3301360124,418,AKR LTD
http://statistics.data.gov.uk/id/local-authority/38,Oxfordshire County Council,Education & Early Intervention,Zone 4 - Vale,Transport Related,33101,Home to School Trans,03/10/2011,3301360125,1664.98,AKR LTD
http://statistics.data.gov.uk/id/local-authority/38,Oxfordshire County Council,Education & Early Intervention,Oxford Sth SEN Trans,Transport Related,33101,Home to School Trans,03/10/2011,3301360126,1585.74,AKR LTD
http://statistics.data.gov.uk/id/local-authority/38,Oxfordshire County Council,Education & Early Intervention,Oxford Sth SEN Trans,Transport Related,33300,Transport (General),03/10/2011,3301360127,475.76,AKR LTD
http://statistics.data.gov.uk/id/local-authority/38,Oxfordshire County Council,Education & Early Intervention,Zone 2 - East,Transport Related,33101,Home to School Trans,03/10/2011,3301360128,1051.56,AKR LTD
http://statistics.data.gov.uk/id/local-authority/38,Oxfordshire County Council,Education & Early Intervention,Oxford Sth SEN Trans,Transport Related,33101,Home to School Trans,03/10/2011,3301360129,2070,Express Travel Oxford Limited
http://statistics.data.gov.uk/id/local-authority/38,Oxfordshire County Council,Education & Early Intervention,Oxford Sth SEN Trans,Transport Related,33300,Transport (General),03/10/2011,3301360130,450,Express Travel Oxford Limited
http://statistics.data.gov.uk/id/local-authority/38,Oxfordshire County Council,Education & Early Intervention,FE Special Trans,Transport Related,33101,Home to School Trans,03/10/2011,3301360131,1800,Express Travel Oxford Limited
http://statistics.data.gov.uk/id/local-authority/38,Oxfordshire County Council,Education & Early Intervention,Bicester SEN Trans,Transport Related,33101,Home to School Trans,03/10/2011,3301360132,2675.77,Luxicars Ltd
http://statistics.data.gov.uk/id/local-authority/38,Oxfordshire County Council,Education & Early Intervention,Bicester SEN Trans,Transport Related,33300,Transport (General),03/10/2011,3301360133,436.05,Luxicars Ltd
http://statistics.data.gov.uk/id/local-authority/38,Oxfordshire County Council,Education & Early Intervention,Bicester SEN Trans,Transport Related,33101,Home to School Trans,03/10/2011,3301360134,2477.6,Luxicars Ltd
http://statistics.data.gov.uk/id/local-authority/38,Oxfordshire County Council,Education & Early Intervention,Bicester SEN Trans,Transport Related,33300,Transport (General),03/10/2011,3301360135,594.7,Luxicars Ltd
http://statistics.data.gov.uk/id/local-authority/38,Oxfordshire County Council,Education & Early Intervention,Bicester SEN Trans,Transport Related,33101,Home to School Trans,03/10/2011,3301360136,2675.77,Luxicars Ltd
http://statistics.data.gov.uk/id/local-authority/38,Oxfordshire County Council,Education & Early Intervention,Bicester SEN Trans,Transport Related,33300,Transport (General),03/10/2011,3301360137,436.05,Luxicars Ltd
http://statistics.data.gov.uk/id/local-authority/38,Oxfordshire County Council,Education & Early Intervention,Bicester SEN Trans,Transport Related,33101,Home to School Trans,03/10/2011,3301360138,2675.77,Luxicars Ltd
http://statistics.data.gov.uk/id/local-authority/38,Oxfordshire County Council,Education & Early Intervention,Bicester SEN Trans,Transport Related,33300,Transport (General),03/10/2011,3301360139,436.05,Luxicars Ltd
http://statistics.data.gov.uk/id/local-authority/38,Oxfordshire County Council,Education & Early Intervention,Abingdon SEN Trans,Transport Related,33101,Home to School Trans,03/10/2011,3301360140,2253.24,Luxicars Ltd
http://statistics.data.gov.uk/id/local-authority/38,Oxfordshire County Council,Education & Early Intervention,Abingdon SEN Trans,Transport Related,33300,Transport (General),03/10/2011,3301360141,563.4,Luxicars Ltd
http://statistics.data.gov.uk/id/local-authority/38,Oxfordshire County Council,Education & Early Intervention,Abingdon SEN Trans,Transport Related,33101,Home to School Trans,03/10/2011,3301360142,2441.16,Luxicars Ltd
http://statistics.data.gov.uk/id/local-authority/38,Oxfordshire County Council,Education & Early Intervention,Abingdon SEN Trans,Transport Related,33300,Transport (General),03/10/2011,3301360143,563.4,Luxicars Ltd
http://statistics.data.gov.uk/id/local-authority/38,Oxfordshire County Council,Education & Early Intervention,Oxford Nth SEN Trans,Transport Related,33101,Home to School Trans,03/10/2011,3301360144,2350.62,Luxicars Ltd
http://statistics.data.gov.uk/id/local-authority/38,Oxfordshire County Council,Education & Early Intervention,Oxford Nth SEN Trans,Transport Related,33300,Transport (General),03/10/2011,3301360145,489.78,Luxicars Ltd
http://statistics.data.gov.uk/id/local-authority/38,Oxfordshire County Council,Education & Early Intervention,Oxford Sth SEN Trans,Transport Related,33101,Home to School Trans,03/10/2011,3301360146,2274.49,Luxicars Ltd
http://statistics.data.gov.uk/id/local-authority/38,Oxfordshire County Council,Education & Early Intervention,Oxford Sth SEN Trans,Transport Related,33300,Transport (General),03/10/2011,3301360147,620.35,Luxicars Ltd
http://statistics.data.gov.uk/id/local-authority/38,Oxfordshire County Council,Education & Early Intervention,Oxford Nth SEN Trans,Transport Related,33101,Home to School Trans,03/10/2011,3301360148,2628.9,Luxicars Ltd
http://statistics.data.gov.uk/id/local-authority/38,Oxfordshire County Council,Education & Early Intervention,Oxford Nth SEN Trans,Transport Related,33300,Transport (General),03/10/2011,3301360149,563.4,Luxicars Ltd
http://statistics.data.gov.uk/id/local-authority/38,Oxfordshire County Council,Education & Early Intervention,Oxford Nth SEN Trans,Transport Related,33101,Home to School Trans,03/10/2011,3301360150,2252.52,Luxicars Ltd
http://statistics.data.gov.uk/id/local-authority/38,Oxfordshire County Council,Education & Early Intervention,Oxford Nth SEN Trans,Transport Related,33300,Transport (General),03/10/2011,3301360151,436.68,Luxicars Ltd
http://statistics.data.gov.uk/id/local-authority/38,Oxfordshire County Council,Education & Early Intervention,Oxford Nth SEN Trans,Transport Related,33101,Home to School Trans,03/10/2011,3301360152,1860.86,Luxicars Ltd
http://statistics.data.gov.uk/id/local-authority/38,Oxfordshire County Council,Education & Early Intervention,Oxford Sth SEN Trans,Transport Related,33101,Home to School Trans,03/10/2011,3301360154,2825.1,Luxicars Ltd
http://statistics.data.gov.uk/id/local-authority/38,Oxfordshire County Council,Education & Early Intervention,Oxford Sth SEN Trans,Transport Related,33300,Transport (General),03/10/2011,3301360155,489.78,Luxicars Ltd
http://statistics.data.gov.uk/id/local-authority/38,Oxfordshire County Council,Education & Early Intervention,Wantage SEN Trans,Transport Related,33101,Home to School Trans,03/10/2011,3301360156,2420.28,Luxicars Ltd
http://statistics.data.gov.uk/id/local-authority/38,Oxfordshire County Council,Education & Early Intervention,FE Special Trans,Transport Related,33101,Home to School Trans,03/10/2011,3301360158,1776.5,Luxicars Ltd
http://statistics.data.gov.uk/id/local-authority/38,Oxfordshire County Council,Education & Early Intervention,Witney SEN Trans,Transport Related,33101,Home to School Trans,03/10/2011,3301360160,1786,Luxicars Ltd
http://statistics.data.gov.uk/id/local-authority/38,Oxfordshire County Council,Education & Early Intervention,Witney SEN Trans,Transport Related,33300,Transport (General),03/10/2011,3301360161,437,Luxicars Ltd
http://statistics.data.gov.uk/id/local-authority/38,Oxfordshire County Council,Education & Early Intervention,Witney SEN Trans,Transport Related,33101,Home to School Trans,03/10/2011,3301360162,2307.17,Luxicars Ltd
http://statistics.data.gov.uk/id/local-authority/38,Oxfordshire County Council,Education & Early Intervention,Witney SEN Trans,Transport Related,33300,Transport (General),03/10/2011,3301360163,435.29,Luxicars Ltd
http://statistics.data.gov.uk/id/local-authority/38,Oxfordshire County Council,SCS Pooled Budgets,LD CMPB - City Transport,Transport Related,34200,Client Journeys,03/10/2011,3301360164,1170,Luxicars Ltd
http://statistics.data.gov.uk/id/local-authority/38,Oxfordshire County Council,Education & Early Intervention,FE Special Trans,Transport Related,33101,Home to School Trans,03/10/2011,3301360165,971.1,Luxicars Ltd
http://statistics.data.gov.uk/id/local-authority/38,Oxfordshire County Council,Education & Early Intervention,Zone 2 - East,Transport Related,33101,Home to School Trans,03/10/2011,3301360167,1585.74,Luxicars Ltd
http://statistics.data.gov.uk/id/local-authority/38,Oxfordshire County Council,Education & Early Intervention,Zone 2 - East,Transport Related,33101,Home to School Trans,03/10/2011,3301360168,1982.08,Luxicars Ltd
http://statistics.data.gov.uk/id/local-authority/38,Oxfordshire County Council,Education & Early Intervention,Mainstream Misc,Transport Related,33101,Home to School Trans,03/10/2011,3301360169,2378.42,Luxicars Ltd
http://statistics.data.gov.uk/id/local-authority/38,Oxfordshire County Council,Education & Early Intervention,Zone 2 - East,Transport Related,33101,Home to School Trans,03/10/2011,3301360170,1126.62,Luxicars Ltd
http://statistics.data.gov.uk/id/local-authority/38,Oxfordshire County Council,Education & Early Intervention,Oxford Nth SEN Trans,Transport Related,33101,Home to School Trans,03/10/2011,3301360172,2340,Premier Taxis Abingdon Ltd
http://statistics.data.gov.uk/id/local-authority/38,Oxfordshire County Council,Education & Early Intervention,Abingdon SEN Trans,Transport Related,33101,Home to School Trans,03/10/2011,3301360173,1220.58,Premier Taxis Abingdon Ltd
http://statistics.data.gov.uk/id/local-authority/38,Oxfordshire County Council,Education & Early Intervention,Abingdon SEN Trans,Transport Related,33101,Home to School Trans,03/10/2011,3301360174,1372.81,Premier Taxis Abingdon Ltd
http://statistics.data.gov.uk/id/local-authority/38,Oxfordshire County Council,Education & Early Intervention,Zone 3 - West,Transport Related,33101,Home to School Trans,03/10/2011,3301360175,542.88,Angela's Travel
http://statistics.data.gov.uk/id/local-authority/38,Oxfordshire County Council,Education & Early Intervention,Oxford Nth SEN Trans,Transport Related,33101,Home to School Trans,03/10/2011,3301360176,900,Angela's Travel
http://statistics.data.gov.uk/id/local-authority/38,Oxfordshire County Council,Education & Early Intervention,Oxford Nth SEN Trans,Transport Related,33101,Home to School Trans,03/10/2011,3301360181,950,Angela's Travel
http://statistics.data.gov.uk/id/local-authority/38,Oxfordshire County Council,Education & Early Intervention,Oxford Nth SEN Trans,Transport Related,33101,Home to School Trans,03/10/2011,3301360184,1364.95,Angela's Travel
http://statistics.data.gov.uk/id/local-authority/38,Oxfordshire County Council,Education & Early Intervention,Oxford Nth SEN Trans,Transport Related,33300,Transport (General),03/10/2011,3301360185,587.88,Angela's Travel
http://statistics.data.gov.uk/id/local-authority/38,Oxfordshire County Council,Education & Early Intervention,Zone 3 - West,Transport Related,33101,Home to School Trans,03/10/2011,3301360186,465.5,Angela's Travel
http://statistics.data.gov.uk/id/local-authority/38,Oxfordshire County Council,Education & Early Intervention,Zone 3 - West,Transport Related,33101,Home to School Trans,03/10/2011,3301360189,1080,Angela's Travel
http://statistics.data.gov.uk/id/local-authority/38,Oxfordshire County Council,Education & Early Intervention,Oxford Nth SEN Trans,Transport Related,33101,Home to School Trans,03/10/2011,3301360190,1758.6,Angela's Travel
http://statistics.data.gov.uk/id/local-authority/38,Oxfordshire County Council,Education & Early Intervention,Oxford Nth SEN Trans,Transport Related,33300,Transport (General),03/10/2011,3301360191,469.44,Angela's Travel
http://statistics.data.gov.uk/id/local-authority/38,Oxfordshire County Council,Education & Early Intervention,Zone 1 - North,Transport Related,33101,Home to School Trans,03/10/2011,3301360192,555,Angela's Travel
http://statistics.data.gov.uk/id/local-authority/38,Oxfordshire County Council,Education & Early Intervention,Zone 3 - West,Transport Related,33101,Home to School Trans,03/10/2011,3301360193,615.25,Ace Taxis (West Oxfordshire) Ltd
http://statistics.data.gov.uk/id/local-authority/38,Oxfordshire County Council,Education & Early Intervention,Oxford Nth SEN Trans,Transport Related,33101,Home to School Trans,03/10/2011,3301360196,675,Ace Taxis (West Oxfordshire) Ltd
http://statistics.data.gov.uk/id/local-authority/38,Oxfordshire County Council,Education & Early Intervention,Zone 2 - East,Transport Related,33101,Home to School Trans,03/10/2011,3301360199,2944.81,Grayline Coaches
http://statistics.data.gov.uk/id/local-authority/38,Oxfordshire County Council,Education & Early Intervention,Zone 2 - East,Transport Related,33101,Home to School Trans,03/10/2011,3301360200,2746.64,Grayline Coaches
http://statistics.data.gov.uk/id/local-authority/38,Oxfordshire County Council,Education & Early Intervention,Zone 2 - East,Transport Related,33101,Home to School Trans,03/10/2011,3301360201,2746.64,Grayline Coaches
http://statistics.data.gov.uk/id/local-authority/38,Oxfordshire County Council,Education & Early Intervention,Zone 2 - East,Transport Related,33101,Home to School Trans,03/10/2011,3301360202,2562.15,Grayline Coaches
http://statistics.data.gov.uk/id/local-authority/38,Oxfordshire County Council,Education & Early Intervention,Zone 2 - East,Transport Related,33101,Home to School Trans,03/10/2011,3301360203,2746.64,Grayline Coaches
http://statistics.data.gov.uk/id/local-authority/38,Oxfordshire County Council,Education & Early Intervention,Zone 2 - East,Transport Related,33101,Home to School Trans,03/10/2011,3301360204,2488.43,Grayline Coaches
http://statistics.data.gov.uk/id/local-authority/38,Oxfordshire County Council,Education & Early Intervention,Zone 2 - East,Transport Related,33101,Home to School Trans,03/10/2011,3301360205,2602.08,Grayline Coaches
http://statistics.data.gov.uk/id/local-authority/38,Oxfordshire County Council,Education & Early Intervention,Zone 2 - East,Transport Related,33101,Home to School Trans,03/10/2011,3301360206,2427.3,Grayline Coaches
http://statistics.data.gov.uk/id/local-authority/38,Oxfordshire County Council,Education & Early Intervention,Zone 2 - East,Transport Related,33101,Home to School Trans,03/10/2011,3301360207,2709,Grayline Coaches
http://statistics.data.gov.uk/id/local-authority/38,Oxfordshire County Council,Education & Early Intervention,Zone 2 - East,Transport Related,33101,Home to School Trans,03/10/2011,3301360208,2602.08,Grayline Coaches
http://statistics.data.gov.uk/id/local-authority/38,Oxfordshire County Council,Education & Early Intervention,Zone 2 - East,Transport Related,33101,Home to School Trans,03/10/2011,3301360209,2797.92,Grayline Coaches
http://statistics.data.gov.uk/id/local-authority/38,Oxfordshire County Council,Education & Early Intervention,Zone 5 - South,Transport Related,33101,Home to School Trans,03/10/2011,3301360210,3816,The School Bus Company
http://statistics.data.gov.uk/id/local-authority/38,Oxfordshire County Council,Education & Early Intervention,Zone 3 - West,Transport Related,33101,Home to School Trans,03/10/2011,3301360212,481,Angela's Travel
http://statistics.data.gov.uk/id/local-authority/38,Oxfordshire County Council,Education & Early Intervention,Zone 2 - East,Transport Related,33101,Home to School Trans,03/10/2011,3301360213,788.58,Premier Cars
http://statistics.data.gov.uk/id/local-authority/38,Oxfordshire County Council,Education & Early Intervention,Zone 1 - North,Transport Related,33101,Home to School Trans,03/10/2011,3301360214,1840.14,Premier Cars
http://statistics.data.gov.uk/id/local-authority/38,Oxfordshire County Council,Education & Early Intervention,Zone 2 - East,Transport Related,33101,Home to School Trans,03/10/2011,3301360215,1942.56,Premier Cars
http://statistics.data.gov.uk/id/local-authority/38,Oxfordshire County Council,Education & Early Intervention,Oxford Sth SEN Trans,Transport Related,33101,Home to School Trans,03/10/2011,3301360216,2109.42,Mills Transport Ltd
http://statistics.data.gov.uk/id/local-authority/38,Oxfordshire County Council,Education & Early Intervention,Oxford Sth SEN Trans,Transport Related,33101,Home to School Trans,03/10/2011,3301360218,1783.8,Mills Transport Ltd
http://statistics.data.gov.uk/id/local-authority/38,Oxfordshire County Council,Education & Early Intervention,Oxford Sth SEN Trans,Transport Related,33101,Home to School Trans,03/10/2011,3301360220,1548,Mills Transport Ltd
http://statistics.data.gov.uk/id/local-authority/38,Oxfordshire County Council,Education & Early Intervention,Oxford Sth SEN Trans,Transport Related,33101,Home to School Trans,03/10/2011,3301360222,2065.5,Mills Transport Ltd
http://statistics.data.gov.uk/id/local-authority/38,Oxfordshire County Council,Education & Early Intervention,Oxford Sth SEN Trans,Transport Related,33101,Home to School Trans,03/10/2011,3301360224,1690.02,Mills Transport Ltd
http://statistics.data.gov.uk/id/local-authority/38,Oxfordshire County Council,Education & Early Intervention,Oxford Sth SEN Trans,Transport Related,33101,Home to School Trans,03/10/2011,3301360226,1502.28,Mills Transport Ltd
http://statistics.data.gov.uk/id/local-authority/38,Oxfordshire County Council,Education & Early Intervention,Wantage SEN Trans,Transport Related,33101,Home to School Trans,03/10/2011,3301360229,720,J.S. Hendry
http://statistics.data.gov.uk/id/local-authority/38,Oxfordshire County Council,Education & Early Intervention,Oxford Nth SEN Trans,Transport Related,33101,Home to School Trans,03/10/2011,3301360231,1476,AKR LTD
http://statistics.data.gov.uk/id/local-authority/38,Oxfordshire County Council,Education & Early Intervention,Zone 3 - West,Transport Related,33101,Home to School Trans,03/10/2011,3301360233,480,AKR LTD
http://statistics.data.gov.uk/id/local-authority/38,Oxfordshire County Council,Highways & Transport,"Electrical NP Rds, Street Lighting",Private Contractors,56400,Major Contracts,03/10/2011,3301360242,525,Goodwood Tree Care Ltd
http://statistics.data.gov.uk/id/local-authority/38,Oxfordshire County Council,Children's Social Care,Agency Residential - Disabilities,Other Agency and Contracted Services,57801,Independent Fostering Agencies,03/10/2011,3301360266,3489.67,Fostering Together Ltd
http://statistics.data.gov.uk/id/local-authority/38,Oxfordshire County Council,SCS Pooled Budgets,LD Team budget (CMPB) - City,Transport Related,33300,Transport (General),03/10/2011,3301360304,470,Express Travel Oxford Limited
http://statistics.data.gov.uk/id/local-authority/38,Oxfordshire County Council,SCS Pooled Budgets,LD Team budget (CMPB) South,Transport Related,33300,Transport (General),03/10/2011,3301360314,2903.1,O B Cars
http://statistics.data.gov.uk/id/local-authority/38,Oxfordshire County Council,Social & Community Services,Community Support Budget - City East,Other Agency and Contracted Services,57300,Home Support (Ext) OS&HCD,10/10/2011,3301360515,3861,Kcare Nursing Agency
http://statistics.data.gov.uk/id/local-authority/38,Oxfordshire County Council,Social & Community Services,Community Support Budget - City East,Other Agency and Contracted Services,57300,Home Support (Ext) OS&HCD,10/10/2011,3301360518,5791.5,Kcare Nursing Agency
http://statistics.data.gov.uk/id/local-authority/38,Oxfordshire County Council,Education & Early Intervention,Oxford Sth SEN Trans,Transport Related,33101,Home to School Trans,04/10/2011,3301360658,1327.91,AKR LTD
http://statistics.data.gov.uk/id/local-authority/38,Oxfordshire County Council,Education & Early Intervention,S'Common SEN Trans,Transport Related,33101,Home to School Trans,04/10/2011,3301360662,1080,School Travel
http://statistics.data.gov.uk/id/local-authority/38,Oxfordshire County Council,SCS Pooled Budgets,LD CMPB - South Transport,Transport Related,34200,Client Journeys,04/10/2011,3301360664,976.5,School Travel
http://statistics.data.gov.uk/id/local-authority/38,Oxfordshire County Council,Education & Early Intervention,Out of County,Transport Related,33101,Home to School Trans,04/10/2011,3301360666,900,School Travel
http://statistics.data.gov.uk/id/local-authority/38,Oxfordshire County Council,Education & Early Intervention,Out of County,Transport Related,33300,Transport (General),04/10/2011,3301360667,450,School Travel
http://statistics.data.gov.uk/id/local-authority/38,Oxfordshire County Council,Education & Early Intervention,FE Special Trans,Transport Related,33101,Home to School Trans,04/10/2011,3301360668,700,School Travel
http://statistics.data.gov.uk/id/local-authority/38,Oxfordshire County Council,Education & Early Intervention,Zone 2 - East,Transport Related,33101,Home to School Trans,04/10/2011,3301360669,1051.56,Airport Transfers Banbury
http://statistics.data.gov.uk/id/local-authority/38,Oxfordshire County Council,Education & Early Intervention,Zone 2 - East,Transport Related,33101,Home to School Trans,04/10/2011,3301360670,1032.84,Airport Transfers Banbury
http://statistics.data.gov.uk/id/local-authority/38,Oxfordshire County Council,Education & Early Intervention,Zone 1 - North,Transport Related,33101,Home to School Trans,04/10/2011,3301360671,981.73,Airport Transfers Banbury
http://statistics.data.gov.uk/id/local-authority/38,Oxfordshire County Council,Education & Early Intervention,Zone 1 - North,Transport Related,33101,Home to School Trans,04/10/2011,3301360673,1877.4,Airport Transfers Banbury
http://statistics.data.gov.uk/id/local-authority/38,Oxfordshire County Council,Education & Early Intervention,FE Special Trans,Transport Related,33101,Home to School Trans,04/10/2011,3301360674,2550,Excel Cars
http://statistics.data.gov.uk/id/local-authority/38,Oxfordshire County Council,SCS Pooled Budgets,LD CMPB - North Transport,Transport Related,34200,Client Journeys,04/10/2011,3301360676,565.8,Excel Cars
http://statistics.data.gov.uk/id/local-authority/38,Oxfordshire County Council,Education & Early Intervention,FE Special Trans,Transport Related,33101,Home to School Trans,04/10/2011,3301360677,1619.93,Excel Cars
http://statistics.data.gov.uk/id/local-authority/38,Oxfordshire County Council,Education & Early Intervention,FE Special Trans,Transport Related,33101,Home to School Trans,04/10/2011,3301360680,992,Excel Cars
http://statistics.data.gov.uk/id/local-authority/38,Oxfordshire County Council,Education & Early Intervention,Oxford Nth SEN Trans,Transport Related,33101,Home to School Trans,04/10/2011,3301360683,3257.1,Excel Cars
http://statistics.data.gov.uk/id/local-authority/38,Oxfordshire County Council,Education & Early Intervention,Oxford Nth SEN Trans,Transport Related,33300,Transport (General),04/10/2011,3301360684,699.12,Excel Cars
http://statistics.data.gov.uk/id/local-authority/38,Oxfordshire County Council,Education & Early Intervention,Witney SEN Trans,Transport Related,33101,Home to School Trans,04/10/2011,3301360685,1387.38,Excel Cars
http://statistics.data.gov.uk/id/local-authority/38,Oxfordshire County Council,Education & Early Intervention,Witney SEN Trans,Transport Related,33300,Transport (General),04/10/2011,3301360686,445.93,Excel Cars
http://statistics.data.gov.uk/id/local-authority/38,Oxfordshire County Council,Education & Early Intervention,Witney SEN Trans,Transport Related,33101,Home to School Trans,04/10/2011,3301360687,1189.21,Excel Cars
http://statistics.data.gov.uk/id/local-authority/38,Oxfordshire County Council,Education & Early Intervention,Witney SEN Trans,Transport Related,33300,Transport (General),04/10/2011,3301360688,445.93,Excel Cars
http://statistics.data.gov.uk/id/local-authority/38,Oxfordshire County Council,Education & Early Intervention,Witney SEN Trans,Transport Related,33101,Home to School Trans,04/10/2011,3301360689,1288.39,Excel Cars
http://statistics.data.gov.uk/id/local-authority/38,Oxfordshire County Council,Education & Early Intervention,Witney SEN Trans,Transport Related,33300,Transport (General),04/10/2011,3301360690,445.93,Excel Cars
http://statistics.data.gov.uk/id/local-authority/38,Oxfordshire County Council,Education & Early Intervention,Witney SEN Trans,Transport Related,33101,Home to School Trans,04/10/2011,3301360691,2280,Excel Cars
http://statistics.data.gov.uk/id/local-authority/38,Oxfordshire County Council,Education & Early Intervention,Witney SEN Trans,Transport Related,33101,Home to School Trans,04/10/2011,3301360693,1486.56,Excel Cars
http://statistics.data.gov.uk/id/local-authority/38,Oxfordshire County Council,Education & Early Intervention,Witney SEN Trans,Transport Related,33300,Transport (General),04/10/2011,3301360694,445.93,Excel Cars
http://statistics.data.gov.uk/id/local-authority/38,Oxfordshire County Council,Education & Early Intervention,Zone 2 - East,Transport Related,33101,Home to School Trans,04/10/2011,3301360696,1585.74,Excel Cars
http://statistics.data.gov.uk/id/local-authority/38,Oxfordshire County Council,Education & Early Intervention,Respite Care,Transport Related,33101,Home to School Trans,04/10/2011,3301360698,851.19,Excel Cars
http://statistics.data.gov.uk/id/local-authority/38,Oxfordshire County Council,Education & Early Intervention,Respite Care,Transport Related,33101,Home to School Trans,04/10/2011,3301360700,845,Excel Cars
http://statistics.data.gov.uk/id/local-authority/38,Oxfordshire County Council,Education & Early Intervention,Zone 1 - North,Transport Related,33101,Home to School Trans,04/10/2011,3301360701,1307.16,Airport Transfers Banbury
http://statistics.data.gov.uk/id/local-authority/38,Oxfordshire County Council,Education & Early Intervention,Zone 1 - North,Transport Related,33101,Home to School Trans,04/10/2011,3301360702,1683.72,Airport Transfers Banbury
http://statistics.data.gov.uk/id/local-authority/38,Oxfordshire County Council,Education & Early Intervention,Zone 2 - East,Transport Related,33101,Home to School Trans,04/10/2011,3301360703,1337.94,Airport Transfers Banbury
http://statistics.data.gov.uk/id/local-authority/38,Oxfordshire County Council,Education & Early Intervention,Kilvrough Manor,Transport Related,33103,Transport to Centres,04/10/2011,3301360704,1660,Tappins Coaches
http://statistics.data.gov.uk/id/local-authority/38,Oxfordshire County Council,Education & Early Intervention,Kilvrough Manor,Transport Related,33103,Transport to Centres,04/10/2011,3301360705,1660,Tappins Coaches
http://statistics.data.gov.uk/id/local-authority/38,Oxfordshire County Council,Education & Early Intervention,Kilvrough Manor,Transport Related,33103,Transport to Centres,04/10/2011,3301360706,1190,Tappins Coaches
http://statistics.data.gov.uk/id/local-authority/38,Oxfordshire County Council,Education & Early Intervention,Kilvrough Manor,Transport Related,33103,Transport to Centres,04/10/2011,3301360707,1190,Tappins Coaches
http://statistics.data.gov.uk/id/local-authority/38,Oxfordshire County Council,Education & Early Intervention,Woodlands Centre,Transport Related,33103,Transport to Centres,04/10/2011,3301360708,1294.8,Tappins Coaches
http://statistics.data.gov.uk/id/local-authority/38,Oxfordshire County Council,Education & Early Intervention,Woodlands Centre,Transport Related,33103,Transport to Centres,04/10/2011,3301360709,970,Tappins Coaches
http://statistics.data.gov.uk/id/local-authority/38,Oxfordshire County Council,Education & Early Intervention,Woodlands Centre,Transport Related,33103,Transport to Centres,04/10/2011,3301360710,970,Tappins Coaches
http://statistics.data.gov.uk/id/local-authority/38,Oxfordshire County Council,Education & Early Intervention,Yenworthy Lodge,Transport Related,33103,Transport to Centres,04/10/2011,3301360711,1160,Tappins Coaches
http://statistics.data.gov.uk/id/local-authority/38,Oxfordshire County Council,Education & Early Intervention,Yenworthy Lodge,Transport Related,33103,Transport to Centres,04/10/2011,3301360712,1320,Tappins Coaches
http://statistics.data.gov.uk/id/local-authority/38,Oxfordshire County Council,Education & Early Intervention,Yenworthy Lodge,Transport Related,33103,Transport to Centres,04/10/2011,3301360713,1160,Tappins Coaches
http://statistics.data.gov.uk/id/local-authority/38,Oxfordshire County Council,Education & Early Intervention,Out of County,Transport Related,34102,Pupil Fares Reclaima,04/10/2011,3301360714,892.8,REDACTED PERSONAL DATA
http://statistics.data.gov.uk/id/local-authority/38,Oxfordshire County Council,Education & Early Intervention,Oxford Nth SEN Trans,Transport Related,33101,Home to School Trans,04/10/2011,3301360715,1051.56,C V O'Sullivan
http://statistics.data.gov.uk/id/local-authority/38,Oxfordshire County Council,Education & Early Intervention,Abingdon SEN Trans,Transport Related,33101,Home to School Trans,04/10/2011,3301360716,520.98,C V O'Sullivan
http://statistics.data.gov.uk/id/local-authority/38,Oxfordshire County Council,Education & Early Intervention,Abingdon SEN Trans,Transport Related,33101,Home to School Trans,04/10/2011,3301360717,1113.66,C V O'Sullivan
http://statistics.data.gov.uk/id/local-authority/38,Oxfordshire County Council,Education & Early Intervention,Abingdon SEN Trans,Transport Related,33101,Home to School Trans,04/10/2011,3301360719,601.02,C V O'Sullivan
http://statistics.data.gov.uk/id/local-authority/38,Oxfordshire County Council,Education & Early Intervention,Abingdon SEN Trans,Transport Related,33101,Home to School Trans,04/10/2011,3301360721,1258.2,C V O'Sullivan
http://statistics.data.gov.uk/id/local-authority/38,Oxfordshire County Council,Education & Early Intervention,Oxford Nth SEN Trans,Transport Related,33101,Home to School Trans,04/10/2011,3301360723,1464.66,C A Pittaway Transport
http://statistics.data.gov.uk/id/local-authority/38,Oxfordshire County Council,Education & Early Intervention,Oxford Sth SEN Trans,Transport Related,33101,Home to School Trans,04/10/2011,3301360725,1486.56,C A Pittaway Transport
http://statistics.data.gov.uk/id/local-authority/38,Oxfordshire County Council,Education & Early Intervention,Zone 2 - East,Transport Related,33101,Home to School Trans,04/10/2011,3301360727,2348.1,Cherwell Valley Coaches
http://statistics.data.gov.uk/id/local-authority/38,Oxfordshire County Council,Education & Early Intervention,Zone 2 - East,Transport Related,33101,Home to School Trans,04/10/2011,3301360728,2348.1,Cherwell Valley Coaches
http://statistics.data.gov.uk/id/local-authority/38,Oxfordshire County Council,Education & Early Intervention,Zone 1 - North,Transport Related,33101,Home to School Trans,04/10/2011,3301360731,1440,Get-a-Cab
http://statistics.data.gov.uk/id/local-authority/38,Oxfordshire County Council,Education & Early Intervention,Oxford Nth SEN Trans,Transport Related,33101,Home to School Trans,04/10/2011,3301360732,5734.64,WOODSTOCK TRAVEL
http://statistics.data.gov.uk/id/local-authority/38,Oxfordshire County Council,Education & Early Intervention,Oxford Nth SEN Trans,Transport Related,33300,Transport (General),04/10/2011,3301360733,422.46,WOODSTOCK TRAVEL
http://statistics.data.gov.uk/id/local-authority/38,Oxfordshire County Council,Education & Early Intervention,Oxford Nth SEN Trans,Transport Related,33101,Home to School Trans,04/10/2011,3301360738,1464.66,Findlay School Transport
http://statistics.data.gov.uk/id/local-authority/38,Oxfordshire County Council,Education & Early Intervention,Oxford Nth SEN Trans,Transport Related,33300,Transport (General),04/10/2011,3301360739,600.84,Findlay School Transport
http://statistics.data.gov.uk/id/local-authority/38,Oxfordshire County Council,Education & Early Intervention,Oxford Sth SEN Trans,Transport Related,33101,Home to School Trans,04/10/2011,3301360740,1832.76,Findlay School Transport
http://statistics.data.gov.uk/id/local-authority/38,Oxfordshire County Council,Education & Early Intervention,Oxford Sth SEN Trans,Transport Related,33300,Transport (General),04/10/2011,3301360741,467.82,Findlay School Transport
http://statistics.data.gov.uk/id/local-authority/38,Oxfordshire County Council,Education & Early Intervention,Abingdon SEN Trans,Transport Related,33101,Home to School Trans,04/10/2011,3301360743,1276.74,Findlay School Transport
http://statistics.data.gov.uk/id/local-authority/38,Oxfordshire County Council,Education & Early Intervention,Abingdon SEN Trans,Transport Related,33300,Transport (General),04/10/2011,3301360744,563.4,Findlay School Transport
http://statistics.data.gov.uk/id/local-authority/38,Oxfordshire County Council,Education & Early Intervention,LDD After School Acc,Transport Related,33101,Home to School Trans,04/10/2011,3301360745,882,Findlay School Transport
http://statistics.data.gov.uk/id/local-authority/38,Oxfordshire County Council,Education & Early Intervention,Oxford Nth SEN Trans,Transport Related,33101,Home to School Trans,04/10/2011,3301360746,2242.08,001 TAXIS
http://statistics.data.gov.uk/id/local-authority/38,Oxfordshire County Council,Education & Early Intervention,Oxford Nth SEN Trans,Transport Related,33101,Home to School Trans,04/10/2011,3301360749,1013.94,001 TAXIS
http://statistics.data.gov.uk/id/local-authority/38,Oxfordshire County Council,Education & Early Intervention,Oxford Sth SEN Trans,Transport Related,33101,Home to School Trans,04/10/2011,3301360750,851,001 TAXIS
http://statistics.data.gov.uk/id/local-authority/38,Oxfordshire County Council,Education & Early Intervention,Oxford Nth SEN Trans,Transport Related,33101,Home to School Trans,04/10/2011,3301360752,1159.12,001 TAXIS
http://statistics.data.gov.uk/id/local-authority/38,Oxfordshire County Council,Education & Early Intervention,Oxford Nth SEN Trans,Transport Related,33101,Home to School Trans,04/10/2011,3301360754,1201.68,001 TAXIS
http://statistics.data.gov.uk/id/local-authority/38,Oxfordshire County Council,Education & Early Intervention,Oxford Sth SEN Trans,Transport Related,33101,Home to School Trans,04/10/2011,3301360756,1440,001 TAXIS
http://statistics.data.gov.uk/id/local-authority/38,Oxfordshire County Council,Education & Early Intervention,Oxford Nth SEN Trans,Transport Related,33101,Home to School Trans,04/10/2011,3301360758,1147,001 TAXIS
http://statistics.data.gov.uk/id/local-authority/38,Oxfordshire County Council,Education & Early Intervention,Oxford Nth SEN Trans,Transport Related,33101,Home to School Trans,04/10/2011,3301360759,772.01,001 TAXIS
http://statistics.data.gov.uk/id/local-authority/38,Oxfordshire County Council,Education & Early Intervention,Oxford Nth SEN Trans,Transport Related,33101,Home to School Trans,04/10/2011,3301360760,1773.44,001 TAXIS
http://statistics.data.gov.uk/id/local-authority/38,Oxfordshire County Council,Education & Early Intervention,Oxford Sth SEN Trans,Transport Related,33101,Home to School Trans,04/10/2011,3301360761,938.88,001 TAXIS
http://statistics.data.gov.uk/id/local-authority/38,Oxfordshire County Council,Education & Early Intervention,Oxford Sth SEN Trans,Transport Related,33101,Home to School Trans,04/10/2011,3301360762,1708.38,001 TAXIS
http://statistics.data.gov.uk/id/local-authority/38,Oxfordshire County Council,SCS Pooled Budgets,LD CMPB - South Transport,Transport Related,34200,Client Journeys,04/10/2011,3301360763,575,001 TAXIS
http://statistics.data.gov.uk/id/local-authority/38,Oxfordshire County Council,Education & Early Intervention,Oxford Sth SEN Trans,Transport Related,33101,Home to School Trans,04/10/2011,3301360764,2553.66,001 TAXIS
http://statistics.data.gov.uk/id/local-authority/38,Oxfordshire County Council,Education & Early Intervention,Oxford Sth SEN Trans,Transport Related,33300,Transport (General),04/10/2011,3301360765,600.84,001 TAXIS
http://statistics.data.gov.uk/id/local-authority/38,Oxfordshire County Council,Education & Early Intervention,Oxford Sth SEN Trans,Transport Related,33101,Home to School Trans,04/10/2011,3301360766,813.6,001 TAXIS
http://statistics.data.gov.uk/id/local-authority/38,Oxfordshire County Council,Education & Early Intervention,Out of County,Transport Related,33101,Home to School Trans,04/10/2011,3301360767,717.12,001 TAXIS
http://statistics.data.gov.uk/id/local-authority/38,Oxfordshire County Council,Education & Early Intervention,Oxford Nth SEN Trans,Transport Related,33101,Home to School Trans,04/10/2011,3301360770,999,001 TAXIS
http://statistics.data.gov.uk/id/local-authority/38,Oxfordshire County Council,Education & Early Intervention,Oxford Sth SEN Trans,Transport Related,33101,Home to School Trans,04/10/2011,3301360771,1395,001 TAXIS
http://statistics.data.gov.uk/id/local-authority/38,Oxfordshire County Council,Education & Early Intervention,Oxford Nth SEN Trans,Transport Related,33101,Home to School Trans,04/10/2011,3301360772,724,001 TAXIS
http://statistics.data.gov.uk/id/local-authority/38,Oxfordshire County Council,Education & Early Intervention,Oxford Sth SEN Trans,Transport Related,33101,Home to School Trans,04/10/2011,3301360773,612.5,001 TAXIS
http://statistics.data.gov.uk/id/local-authority/38,Oxfordshire County Council,Education & Early Intervention,Oxford Sth SEN Trans,Transport Related,33101,Home to School Trans,04/10/2011,3301360774,558,001 TAXIS
http://statistics.data.gov.uk/id/local-authority/38,Oxfordshire County Council,Education & Early Intervention,Oxford Nth SEN Trans,Transport Related,33101,Home to School Trans,04/10/2011,3301360776,1182.96,001 TAXIS
http://statistics.data.gov.uk/id/local-authority/38,Oxfordshire County Council,Education & Early Intervention,Oxford Sth SEN Trans,Transport Related,33101,Home to School Trans,04/10/2011,3301360778,1566.48,001 TAXIS
http://statistics.data.gov.uk/id/local-authority/38,Oxfordshire County Council,SCS Pooled Budgets,OP Pool Continuing Care Delegated Health,Other Agency and Contracted Services,57401,Direct Payments,04/10/2011,3301360791,1296.75,REDACTED PERSONAL DATA
http://statistics.data.gov.uk/id/local-authority/38,Oxfordshire County Council,SCS Pooled Budgets,Community Support Budget - Abingdon,Other Agency and Contracted Services,57401,Direct Payments,04/10/2011,3301360791,-3470.73,REDACTED PERSONAL DATA
http://statistics.data.gov.uk/id/local-authority/38,Oxfordshire County Council,SCS Pooled Budgets,Community Support Budget - Abingdon,Other Agency and Contracted Services,57401,Direct Payments,04/10/2011,3301360791,5733.25,REDACTED PERSONAL DATA
http://statistics.data.gov.uk/id/local-authority/38,Oxfordshire County Council,Education & Early Intervention,Supp Graduate Leader,"Equipment, Furniture and Materials",41100,Educational Supplies,19/10/2011,3301361191,3075,Smart Tots Nursery
http://statistics.data.gov.uk/id/local-authority/38,Oxfordshire County Council,Education & Early Intervention,Supp Graduate Leader,"Equipment, Furniture and Materials",41100,Educational Supplies,05/10/2011,3301361192,560,REDACTED PERSONAL DATA
http://statistics.data.gov.uk/id/local-authority/38,Oxfordshire County Council,Education & Early Intervention,Supp Graduate Leader,"Equipment, Furniture and Materials",41100,Educational Supplies,19/10/2011,3301361194,1048,Bicester Hotel Ltd
http://statistics.data.gov.uk/id/local-authority/38,Oxfordshire County Council,Education & Early Intervention,Supp Graduate Leader,"Equipment, Furniture and Materials",41100,Educational Supplies,21/10/2011,3301361195,1120,Bright Horizons Family Solutions
http://statistics.data.gov.uk/id/local-authority/38,Oxfordshire County Council,Children's Social Care,Grants & Service Agreements Disabilities,Voluntary Associations,55402,Service Agreements - Family Support,04/10/2011,3301361222,4100,Flexicare
http://statistics.data.gov.uk/id/local-authority/38,Oxfordshire County Council,Children's Social Care,Agency Residential - Disabilities,Other Agency and Contracted Services,57801,Independent Fostering Agencies,04/10/2011,3301361224,5234.66,Fostering Together Ltd
http://statistics.data.gov.uk/id/local-authority/38,Oxfordshire County Council,SCS Pooled Budgets,Direct Payments City Team,Other Agency and Contracted Services,57401,Direct Payments,05/10/2011,3301361262,560,Oxford Wholefoods
http://statistics.data.gov.uk/id/local-authority/38,Oxfordshire County Council,SCS Pooled Budgets,Direct Payments City Team,Other Agency and Contracted Services,57401,Direct Payments,05/10/2011,3301361277,560,Oxford Wholefoods
http://statistics.data.gov.uk/id/local-authority/38,Oxfordshire County Council,SCS Pooled Budgets,Community Support Budget - Faringdon,Other Agency and Contracted Services,57401,Direct Payments,05/10/2011,3301361291,1506.28,REDACTED PERSONAL DATA
http://statistics.data.gov.uk/id/local-authority/38,Oxfordshire County Council,SCS Pooled Budgets,Direct Payments North Team,Other Agency and Contracted Services,57401,Direct Payments,05/10/2011,3301361292,1200,REDACTED PERSONAL DATA
http://statistics.data.gov.uk/id/local-authority/38,Oxfordshire County Council,SCS Pooled Budgets,Community Support Budget - Banbury,Other Agency and Contracted Services,57401,Direct Payments,05/10/2011,3301361293,1014.44,REDACTED PERSONAL DATA
http://statistics.data.gov.uk/id/local-authority/38,Oxfordshire County Council,SCS Pooled Budgets,Community Support Budget - Bicester,Other Agency and Contracted Services,57401,Direct Payments,05/10/2011,3301361294,1480,REDACTED PERSONAL DATA
http://statistics.data.gov.uk/id/local-authority/38,Oxfordshire County Council,SCS Pooled Budgets,Community Support Budget - Witney,Other Agency and Contracted Services,57401,Direct Payments,05/10/2011,3301361295,1048,REDACTED PERSONAL DATA
http://statistics.data.gov.uk/id/local-authority/38,Oxfordshire County Council,SCS Pooled Budgets,Community Support Budget - City,Other Agency and Contracted Services,57401,Direct Payments,05/10/2011,3301361296,760.62,REDACTED PERSONAL DATA
http://statistics.data.gov.uk/id/local-authority/38,Oxfordshire County Council,SCS Pooled Budgets,Personal Health Budgets PD (PCT),Other Agency and Contracted Services,57401,Direct Payments,05/10/2011,3301361297,2250.68,REDACTED PERSONAL DATA
http://statistics.data.gov.uk/id/local-authority/38,Oxfordshire County Council,SCS Pooled Budgets,Community Support Budget - Abingdon,Other Agency and Contracted Services,57401,Direct Payments,05/10/2011,3301361299,1267.7,REDACTED PERSONAL DATA
http://statistics.data.gov.uk/id/local-authority/38,Oxfordshire County Council,SCS Pooled Budgets,Community Support Budget - Didcot,Other Agency and Contracted Services,57401,Direct Payments,05/10/2011,3301361300,2028.32,REDACTED PERSONAL DATA
http://statistics.data.gov.uk/id/local-authority/38,Oxfordshire County Council,SCS Pooled Budgets,Community Support Budget - City,Other Agency and Contracted Services,57401,Direct Payments,05/10/2011,3301361302,725.28,REDACTED PERSONAL DATA
http://statistics.data.gov.uk/id/local-authority/38,Oxfordshire County Council,SCS Pooled Budgets,Community Support Budget - Banbury,Other Agency and Contracted Services,57401,Direct Payments,05/10/2011,3301361303,2307.2,REDACTED PERSONAL DATA
http://statistics.data.gov.uk/id/local-authority/38,Oxfordshire County Council,SCS Pooled Budgets,Community Support Budget - Bicester,Other Agency and Contracted Services,57401,Direct Payments,05/10/2011,3301361304,916,REDACTED PERSONAL DATA
http://statistics.data.gov.uk/id/local-authority/38,Oxfordshire County Council,SCS Pooled Budgets,Direct Payments City Team,Other Agency and Contracted Services,57401,Direct Payments,05/10/2011,3301361306,656,REDACTED PERSONAL DATA
http://statistics.data.gov.uk/id/local-authority/38,Oxfordshire County Council,SCS Pooled Budgets,Direct Payments City Team,Other Agency and Contracted Services,57401,Direct Payments,05/10/2011,3301361308,556.32,REDACTED PERSONAL DATA
http://statistics.data.gov.uk/id/local-authority/38,Oxfordshire County Council,SCS Pooled Budgets,Direct Payments South Team,Other Agency and Contracted Services,57401,Direct Payments,05/10/2011,3301361309,5223.92,REDACTED PERSONAL DATA
http://statistics.data.gov.uk/id/local-authority/38,Oxfordshire County Council,SCS Pooled Budgets,Community Support Budget - Henley,Other Agency and Contracted Services,57401,Direct Payments,05/10/2011,3301361311,1400,REDACTED PERSONAL DATA
http://statistics.data.gov.uk/id/local-authority/38,Oxfordshire County Council,SCS Pooled Budgets,Personal Health Budgets PD (PCT),Other Agency and Contracted Services,57401,Direct Payments,05/10/2011,3301361312,5024,REDACTED PERSONAL DATA
http://statistics.data.gov.uk/id/local-authority/38,Oxfordshire County Council,SCS Pooled Budgets,Direct Payments City Team,Other Agency and Contracted Services,57401,Direct Payments,05/10/2011,3301361315,1200,REDACTED PERSONAL DATA
http://statistics.data.gov.uk/id/local-authority/38,Oxfordshire County Council,SCS Pooled Budgets,Direct Payments South Team,Other Agency and Contracted Services,57401,Direct Payments,05/10/2011,3301361316,1014.16,REDACTED PERSONAL DATA
http://statistics.data.gov.uk/id/local-authority/38,Oxfordshire County Council,SCS Pooled Budgets,Community Support Budget - Henley,Other Agency and Contracted Services,57401,Direct Payments,05/10/2011,3301361317,975.84,REDACTED PERSONAL DATA
http://statistics.data.gov.uk/id/local-authority/38,Oxfordshire County Council,SCS Pooled Budgets,Direct Payments South Team,Other Agency and Contracted Services,57401,Direct Payments,05/10/2011,3301361318,11990.12,REDACTED PERSONAL DATA
http://statistics.data.gov.uk/id/local-authority/38,Oxfordshire County Council,SCS Pooled Budgets,Direct Payments City Team,Other Agency and Contracted Services,57401,Direct Payments,05/10/2011,3301361319,736.08,REDACTED PERSONAL DATA
http://statistics.data.gov.uk/id/local-authority/38,Oxfordshire County Council,SCS Pooled Budgets,Community Support Budget - City,Other Agency and Contracted Services,57401,Direct Payments,05/10/2011,3301361320,2108,REDACTED PERSONAL DATA
http://statistics.data.gov.uk/id/local-authority/38,Oxfordshire County Council,SCS Pooled Budgets,Community Support Budget - Henley,Other Agency and Contracted Services,57401,Direct Payments,05/10/2011,3301361321,1404,REDACTED PERSONAL DATA
http://statistics.data.gov.uk/id/local-authority/38,Oxfordshire County Council,SCS Pooled Budgets,Community Support Budget - Banbury,Other Agency and Contracted Services,57401,Direct Payments,05/10/2011,3301361322,1683.88,REDACTED PERSONAL DATA
http://statistics.data.gov.uk/id/local-authority/38,Oxfordshire County Council,SCS Pooled Budgets,PD Comm Supp Purchasg Budget - Abingdon,Other Agency and Contracted Services,57401,Direct Payments,05/10/2011,3301361323,1107.35,REDACTED PERSONAL DATA
http://statistics.data.gov.uk/id/local-authority/38,Oxfordshire County Council,SCS Pooled Budgets,Community Support Budget - Banbury,Other Agency and Contracted Services,57401,Direct Payments,05/10/2011,3301361326,1347.08,REDACTED PERSONAL DATA
http://statistics.data.gov.uk/id/local-authority/38,Oxfordshire County Council,SCS Pooled Budgets,PD Comm Supp Purchasg Budget - City,Other Agency and Contracted Services,57401,Direct Payments,05/10/2011,3301361329,2251.32,REDACTED PERSONAL DATA
http://statistics.data.gov.uk/id/local-authority/38,Oxfordshire County Council,SCS Pooled Budgets,Community Support Budget - Thame,Other Agency and Contracted Services,57401,Direct Payments,05/10/2011,3301361330,507.08,REDACTED PERSONAL DATA
http://statistics.data.gov.uk/id/local-authority/38,Oxfordshire County Council,SCS Pooled Budgets,Community Support Budget - City,Other Agency and Contracted Services,57401,Direct Payments,05/10/2011,3301361331,537.76,REDACTED PERSONAL DATA
http://statistics.data.gov.uk/id/local-authority/38,Oxfordshire County Council,SCS Pooled Budgets,Community Support Budget - Witney,Other Agency and Contracted Services,57401,Direct Payments,05/10/2011,3301361332,857.6,REDACTED PERSONAL DATA
http://statistics.data.gov.uk/id/local-authority/38,Oxfordshire County Council,SCS Pooled Budgets,Direct Payments City Team,Other Agency and Contracted Services,57401,Direct Payments,05/10/2011,3301361333,520,REDACTED PERSONAL DATA
http://statistics.data.gov.uk/id/local-authority/38,Oxfordshire County Council,SCS Pooled Budgets,Community Support Budget - Didcot,Other Agency and Contracted Services,57401,Direct Payments,05/10/2011,3301361334,759.5,REDACTED PERSONAL DATA
http://statistics.data.gov.uk/id/local-authority/38,Oxfordshire County Council,SCS Pooled Budgets,PD Comm Supp Purchasg  - City Carers Grt,Other Agency and Contracted Services,57401,Direct Payments,05/10/2011,3301361336,1215.04,REDACTED PERSONAL DATA
http://statistics.data.gov.uk/id/local-authority/38,Oxfordshire County Council,SCS Pooled Budgets,PD Comm Supp Budgt - Bicester/Kidlington,Other Agency and Contracted Services,57401,Direct Payments,05/10/2011,3301361337,1048.8,REDACTED PERSONAL DATA
http://statistics.data.gov.uk/id/local-authority/38,Oxfordshire County Council,SCS Pooled Budgets,Direct Payments North Team,Other Agency and Contracted Services,57401,Direct Payments,05/10/2011,3301361338,563,REDACTED PERSONAL DATA
http://statistics.data.gov.uk/id/local-authority/38,Oxfordshire County Council,SCS Pooled Budgets,Community Support Budget - Bicester,Other Agency and Contracted Services,57401,Direct Payments,05/10/2011,3301361340,3642.86,REDACTED PERSONAL DATA
http://statistics.data.gov.uk/id/local-authority/38,Oxfordshire County Council,SCS Pooled Budgets,Community Support Budget - Bicester,Other Agency and Contracted Services,57401,Direct Payments,05/10/2011,3301361340,-1743.75,REDACTED PERSONAL DATA
http://statistics.data.gov.uk/id/local-authority/38,Oxfordshire County Council,SCS Pooled Budgets,Community Support Budget - Bicester,Other Agency and Contracted Services,57401,Direct Payments,05/10/2011,3301361340,1360,REDACTED PERSONAL DATA
http://statistics.data.gov.uk/id/local-authority/38,Oxfordshire County Council,SCS Pooled Budgets,PD Comm Supp Purchasg Budget - City,Other Agency and Contracted Services,57401,Direct Payments,05/10/2011,3301361341,1025.72,REDACTED PERSONAL DATA
http://statistics.data.gov.uk/id/local-authority/38,Oxfordshire County Council,SCS Pooled Budgets,PD Comm Supp Purchasg Budget - Witney,Other Agency and Contracted Services,57401,Direct Payments,05/10/2011,3301361342,548.64,REDACTED PERSONAL DATA
http://statistics.data.gov.uk/id/local-authority/38,Oxfordshire County Council,SCS Pooled Budgets,Community Support Budget - Chipping Nort,Other Agency and Contracted Services,57401,Direct Payments,05/10/2011,3301361343,750,REDACTED PERSONAL DATA
http://statistics.data.gov.uk/id/local-authority/38,Oxfordshire County Council,SCS Pooled Budgets,Direct Payments North Team,Other Agency and Contracted Services,57401,Direct Payments,05/10/2011,3301361344,3060,REDACTED PERSONAL DATA
http://statistics.data.gov.uk/id/local-authority/38,Oxfordshire County Council,SCS Pooled Budgets,PD CS Purch Budget - Health S28a JC,Other Agency and Contracted Services,57401,Direct Payments,05/10/2011,3301361345,552.52,REDACTED PERSONAL DATA
http://statistics.data.gov.uk/id/local-authority/38,Oxfordshire County Council,SCS Pooled Budgets,Community Support Budget - Thame,Other Agency and Contracted Services,57401,Direct Payments,05/10/2011,3301361346,3230.88,REDACTED PERSONAL DATA
http://statistics.data.gov.uk/id/local-authority/38,Oxfordshire County Council,SCS Pooled Budgets,PD Comm Supp Purchasg Budget - City,Other Agency and Contracted Services,57401,Direct Payments,05/10/2011,3301361347,516.28,REDACTED PERSONAL DATA
http://statistics.data.gov.uk/id/local-authority/38,Oxfordshire County Council,SCS Pooled Budgets,PD Comm Supp Purchasg Budget - City,Other Agency and Contracted Services,57401,Direct Payments,05/10/2011,3301361348,1135.04,REDACTED PERSONAL DATA
http://statistics.data.gov.uk/id/local-authority/38,Oxfordshire County Council,SCS Pooled Budgets,PD Comm Supp Purchasg Budget - City,Other Agency and Contracted Services,57401,Direct Payments,05/10/2011,3301361349,933.28,REDACTED PERSONAL DATA
http://statistics.data.gov.uk/id/local-authority/38,Oxfordshire County Council,SCS Pooled Budgets,Direct Payments South Team,Other Agency and Contracted Services,57401,Direct Payments,05/10/2011,3301361350,581.76,REDACTED PERSONAL DATA
http://statistics.data.gov.uk/id/local-authority/38,Oxfordshire County Council,SCS Pooled Budgets,PD Comm Supp Budget - Banbury,Other Agency and Contracted Services,57401,Direct Payments,05/10/2011,3301361351,1303.92,REDACTED PERSONAL DATA
http://statistics.data.gov.uk/id/local-authority/38,Oxfordshire County Council,SCS Pooled Budgets,Direct Payments City Team,Other Agency and Contracted Services,57401,Direct Payments,05/10/2011,3301361352,1554.72,REDACTED PERSONAL DATA
http://statistics.data.gov.uk/id/local-authority/38,Oxfordshire County Council,SCS Pooled Budgets,Direct Payments South Team,Other Agency and Contracted Services,57401,Direct Payments,05/10/2011,3301361355,4898.8,REDACTED PERSONAL DATA
http://statistics.data.gov.uk/id/local-authority/38,Oxfordshire County Council,SCS Pooled Budgets,Community Support Budget - City,Other Agency and Contracted Services,57401,Direct Payments,05/10/2011,3301361356,2808,REDACTED PERSONAL DATA
http://statistics.data.gov.uk/id/local-authority/38,Oxfordshire County Council,SCS Pooled Budgets,PD Comm Supp Purchasg Budget - Witney,Other Agency and Contracted Services,57401,Direct Payments,05/10/2011,3301361358,998,REDACTED PERSONAL DATA
http://statistics.data.gov.uk/id/local-authority/38,Oxfordshire County Council,SCS Pooled Budgets,PD Comm Supp Purchasg Budget - Thame,Other Agency and Contracted Services,57401,Direct Payments,05/10/2011,3301361359,1340,REDACTED PERSONAL DATA
http://statistics.data.gov.uk/id/local-authority/38,Oxfordshire County Council,SCS Pooled Budgets,Direct Payments North Team,Other Agency and Contracted Services,57401,Direct Payments,05/10/2011,3301361360,4943.4,REDACTED PERSONAL DATA
http://statistics.data.gov.uk/id/local-authority/38,Oxfordshire County Council,SCS Pooled Budgets,PD Comm Supp Purchasg Budget - City,Other Agency and Contracted Services,57401,Direct Payments,05/10/2011,3301361361,1195.28,REDACTED PERSONAL DATA
http://statistics.data.gov.uk/id/local-authority/38,Oxfordshire County Council,SCS Pooled Budgets,PD Comm Supp Budgt - Bicester/Kidlington,Other Agency and Contracted Services,57401,Direct Payments,05/10/2011,3301361362,1081.76,REDACTED PERSONAL DATA
http://statistics.data.gov.uk/id/local-authority/38,Oxfordshire County Council,SCS Pooled Budgets,Community Support Budget - Banbury,Other Agency and Contracted Services,57401,Direct Payments,05/10/2011,3301361363,2207.28,REDACTED PERSONAL DATA
http://statistics.data.gov.uk/id/local-authority/38,Oxfordshire County Council,SCS Pooled Budgets,Direct Payments South Team,Other Agency and Contracted Services,57401,Direct Payments,05/10/2011,3301361365,3734.68,REDACTED PERSONAL DATA
http://statistics.data.gov.uk/id/local-authority/38,Oxfordshire County Council,SCS Pooled Budgets,Community Support Budget - Didcot,Other Agency and Contracted Services,57401,Direct Payments,05/10/2011,3301361366,1914,REDACTED PERSONAL DATA
http://statistics.data.gov.uk/id/local-authority/38,Oxfordshire County Council,SCS Pooled Budgets,Direct Payments South Team,Other Agency and Contracted Services,57401,Direct Payments,05/10/2011,3301361367,4629.92,REDACTED PERSONAL DATA
http://statistics.data.gov.uk/id/local-authority/38,Oxfordshire County Council,SCS Pooled Budgets,Direct Payments North Team,Other Agency and Contracted Services,57401,Direct Payments,05/10/2011,3301361368,5810.12,REDACTED PERSONAL DATA
http://statistics.data.gov.uk/id/local-authority/38,Oxfordshire County Council,SCS Pooled Budgets,Community Support Budget - Abingdon,Other Agency and Contracted Services,57401,Direct Payments,05/10/2011,3301361369,1323.8,REDACTED PERSONAL DATA
http://statistics.data.gov.uk/id/local-authority/38,Oxfordshire County Council,SCS Pooled Budgets,Community Support Budget - Abingdon,Other Agency and Contracted Services,57401,Direct Payments,05/10/2011,3301361370,2088,REDACTED PERSONAL DATA
http://statistics.data.gov.uk/id/local-authority/38,Oxfordshire County Council,SCS Pooled Budgets,Community Support Budget - Abingdon,Other Agency and Contracted Services,57401,Direct Payments,05/10/2011,3301361370,3430.29,REDACTED PERSONAL DATA
http://statistics.data.gov.uk/id/local-authority/38,Oxfordshire County Council,SCS Pooled Budgets,Community Support Budget - Abingdon,Other Agency and Contracted Services,57401,Direct Payments,05/10/2011,3301361370,-2464.29,REDACTED PERSONAL DATA
http://statistics.data.gov.uk/id/local-authority/38,Oxfordshire County Council,SCS Pooled Budgets,Life Of Your Own Grant City,Other Agency and Contracted Services,57401,Direct Payments,05/10/2011,3301361371,600,REDACTED PERSONAL DATA
http://statistics.data.gov.uk/id/local-authority/38,Oxfordshire County Council,SCS Pooled Budgets,Community Support Budget - Banbury,Other Agency and Contracted Services,57401,Direct Payments,05/10/2011,3301361374,924,A4e Management Ltd Week 1
http://statistics.data.gov.uk/id/local-authority/38,Oxfordshire County Council,SCS Pooled Budgets,Community Support Budget - Banbury,Other Agency and Contracted Services,57401,Direct Payments,05/10/2011,3301361375,1205.56,A4e Management Ltd Week 1
http://statistics.data.gov.uk/id/local-authority/38,Oxfordshire County Council,SCS Pooled Budgets,PD Comm Supp Purchasg Budget - Didcot,Other Agency and Contracted Services,57401,Direct Payments,05/10/2011,3301361376,824.52,A4e Management Ltd Week 1
http://statistics.data.gov.uk/id/local-authority/38,Oxfordshire County Council,SCS Pooled Budgets,PD Comm Supp Purchasg Budget - Didcot,Other Agency and Contracted Services,57401,Direct Payments,05/10/2011,3301361379,651.96,A4e Management Ltd Week 1
http://statistics.data.gov.uk/id/local-authority/38,Oxfordshire County Council,SCS Pooled Budgets,Community Support Budget - Witney,Other Agency and Contracted Services,57401,Direct Payments,05/10/2011,3301361380,936,A4e Management Ltd Week 1
http://statistics.data.gov.uk/id/local-authority/38,Oxfordshire County Council,SCS Pooled Budgets,PD Comm Supp Purchasg Budget - City,Other Agency and Contracted Services,57401,Direct Payments,05/10/2011,3301361381,579.32,A4e Management Ltd Week 1
http://statistics.data.gov.uk/id/local-authority/38,Oxfordshire County Council,SCS Pooled Budgets,Community Support Budget - Witney,Other Agency and Contracted Services,57401,Direct Payments,05/10/2011,3301361384,1808,A4e Management Ltd Week 1
http://statistics.data.gov.uk/id/local-authority/38,Oxfordshire County Council,SCS Pooled Budgets,Direct Payments North Team,Other Agency and Contracted Services,57401,Direct Payments,05/10/2011,3301361385,1990.08,A4e Management Ltd Week 1
http://statistics.data.gov.uk/id/local-authority/38,Oxfordshire County Council,SCS Pooled Budgets,Direct Payments South Team,Other Agency and Contracted Services,57401,Direct Payments,05/10/2011,3301361386,1771.68,A4e Management Ltd Week 1
http://statistics.data.gov.uk/id/local-authority/38,Oxfordshire County Council,SCS Pooled Budgets,Community Support Budget - Witney,Other Agency and Contracted Services,57401,Direct Payments,05/10/2011,3301361387,1341.4,A4e Management Ltd Week 1
http://statistics.data.gov.uk/id/local-authority/38,Oxfordshire County Council,SCS Pooled Budgets,PD Comm Supp Purchasg Budget - City,Other Agency and Contracted Services,57401,Direct Payments,05/10/2011,3301361389,1888,A4e Management Ltd Week 1
http://statistics.data.gov.uk/id/local-authority/38,Oxfordshire County Council,SCS Pooled Budgets,Community Support Budget - Witney,Other Agency and Contracted Services,57401,Direct Payments,05/10/2011,3301361391,616.4,A4e Management Ltd Week 1
http://statistics.data.gov.uk/id/local-authority/38,Oxfordshire County Council,SCS Pooled Budgets,Community Support Budget - City,Other Agency and Contracted Services,57401,Direct Payments,05/10/2011,3301361392,1600,A4e Management Ltd Week 1
http://statistics.data.gov.uk/id/local-authority/38,Oxfordshire County Council,SCS Pooled Budgets,Community Support Budget - Banbury,Other Agency and Contracted Services,57401,Direct Payments,05/10/2011,3301361394,1014.16,A4e Management Ltd Week 1
http://statistics.data.gov.uk/id/local-authority/38,Oxfordshire County Council,SCS Pooled Budgets,PD Comm Supp Purchasg Budget - Witney,Other Agency and Contracted Services,57401,Direct Payments,05/10/2011,3301361396,1053.8,A4e Management Ltd Week 1
http://statistics.data.gov.uk/id/local-authority/38,Oxfordshire County Council,SCS Pooled Budgets,Community Support Budget - City,Other Agency and Contracted Services,57401,Direct Payments,05/10/2011,3301361397,1060,A4e Management Ltd Week 1
http://statistics.data.gov.uk/id/local-authority/38,Oxfordshire County Council,SCS Pooled Budgets,PD Comm Supp Budget - Banbury,Other Agency and Contracted Services,57401,Direct Payments,05/10/2011,3301361398,2028.32,A4e Management Ltd Week 1
http://statistics.data.gov.uk/id/local-authority/38,Oxfordshire County Council,SCS Pooled Budgets,Direct Payments North Team,Other Agency and Contracted Services,57401,Direct Payments,05/10/2011,3301361399,600,A4e Management Ltd Week 1
http://statistics.data.gov.uk/id/local-authority/38,Oxfordshire County Council,SCS Pooled Budgets,Community Support Budget - Chipping Nort,Other Agency and Contracted Services,57401,Direct Payments,05/10/2011,3301361400,939.44,A4e Management Ltd Week 1
http://statistics.data.gov.uk/id/local-authority/38,Oxfordshire County Council,SCS Pooled Budgets,Community Support Budget - Witney,Other Agency and Contracted Services,57401,Direct Payments,05/10/2011,3301361401,632,A4e Management Ltd Week 1
http://statistics.data.gov.uk/id/local-authority/38,Oxfordshire County Council,SCS Pooled Budgets,PD Comm Supp Budget - Banbury,Other Agency and Contracted Services,57401,Direct Payments,05/10/2011,3301361403,872,A4e Management Ltd Week 1
http://statistics.data.gov.uk/id/local-authority/38,Oxfordshire County Council,SCS Pooled Budgets,Community Support Budget - Banbury,Other Agency and Contracted Services,57401,Direct Payments,05/10/2011,3301361405,1159.04,A4e Management Ltd Week 1
http://statistics.data.gov.uk/id/local-authority/38,Oxfordshire County Council,SCS Pooled Budgets,Community Support Budget - Banbury,Other Agency and Contracted Services,57401,Direct Payments,05/10/2011,3301361406,1288,A4e Management Ltd Week 1
http://statistics.data.gov.uk/id/local-authority/38,Oxfordshire County Council,SCS Pooled Budgets,Community Support Budget - Henley,Other Agency and Contracted Services,57401,Direct Payments,05/10/2011,3301361408,1473.6,A4e Management Ltd Week 1
http://statistics.data.gov.uk/id/local-authority/38,Oxfordshire County Council,SCS Pooled Budgets,Community Support Budget - Abingdon,Other Agency and Contracted Services,57401,Direct Payments,05/10/2011,3301361411,724.4,A4e Management Ltd Week 1
http://statistics.data.gov.uk/id/local-authority/38,Oxfordshire County Council,SCS Pooled Budgets,PD Comm Supp Budgt - Bicester/Kidlington,Other Agency and Contracted Services,57401,Direct Payments,05/10/2011,3301361412,2304,A4e Management Ltd Week 1
http://statistics.data.gov.uk/id/local-authority/38,Oxfordshire County Council,SCS Pooled Budgets,Community Support Budget - City,Other Agency and Contracted Services,57401,Direct Payments,05/10/2011,3301361416,576,A4e Management Ltd Week 1
http://statistics.data.gov.uk/id/local-authority/38,Oxfordshire County Council,SCS Pooled Budgets,Direct Payments North Team,Other Agency and Contracted Services,57401,Direct Payments,05/10/2011,3301361419,835.71,A4e Management Ltd Week 1
http://statistics.data.gov.uk/id/local-authority/38,Oxfordshire County Council,SCS Pooled Budgets,Community Support Budget - Faringdon,Other Agency and Contracted Services,57401,Direct Payments,05/10/2011,3301361421,716,A4e Management Ltd Week 1
http://statistics.data.gov.uk/id/local-authority/38,Oxfordshire County Council,SCS Pooled Budgets,PD Comm Supp Budget - Banbury,Other Agency and Contracted Services,57401,Direct Payments,05/10/2011,3301361422,1031,A4e Management Ltd Week 1
http://statistics.data.gov.uk/id/local-authority/38,Oxfordshire County Council,SCS Pooled Budgets,PD CS Purch Budget - Health S28a JC,Other Agency and Contracted Services,57401,Direct Payments,05/10/2011,3301361422,2001.36,A4e Management Ltd Week 1
http://statistics.data.gov.uk/id/local-authority/38,Oxfordshire County Council,SCS Pooled Budgets,PD CS Purch Budget - Health S28a JC,Other Agency and Contracted Services,57401,Direct Payments,05/10/2011,3301361422,1020.79,A4e Management Ltd Week 1
http://statistics.data.gov.uk/id/local-authority/38,Oxfordshire County Council,SCS Pooled Budgets,Community Support Budget - Witney,Other Agency and Contracted Services,57401,Direct Payments,05/10/2011,3301361425,911.24,A4e Management Ltd Week 1
http://statistics.data.gov.uk/id/local-authority/38,Oxfordshire County Council,SCS Pooled Budgets,Direct Payments North Team,Other Agency and Contracted Services,57401,Direct Payments,05/10/2011,3301361426,600,A4e Management Ltd Week 1
http://statistics.data.gov.uk/id/local-authority/38,Oxfordshire County Council,SCS Pooled Budgets,Community Support Budget - Bicester,Other Agency and Contracted Services,57401,Direct Payments,05/10/2011,3301361431,3231.16,A4e Management Ltd Week 1
http://statistics.data.gov.uk/id/local-authority/38,Oxfordshire County Council,SCS Pooled Budgets,OP Pool Continuing Care Delegated Health,Other Agency and Contracted Services,57401,Direct Payments,05/10/2011,3301361431,716.8,A4e Management Ltd Week 1
http://statistics.data.gov.uk/id/local-authority/38,Oxfordshire County Council,SCS Pooled Budgets,Direct Payments South Team,Other Agency and Contracted Services,57401,Direct Payments,05/10/2011,3301361432,1908,A4e Management Ltd Week 1
http://statistics.data.gov.uk/id/local-authority/38,Oxfordshire County Council,SCS Pooled Budgets,Community Support Budget - Banbury,Other Agency and Contracted Services,57401,Direct Payments,05/10/2011,3301361433,520,A4e Management Ltd Week 1
http://statistics.data.gov.uk/id/local-authority/38,Oxfordshire County Council,SCS Pooled Budgets,Direct Payments North Team,Other Agency and Contracted Services,57401,Direct Payments,05/10/2011,3301361434,835.71,A4e Management Ltd Week 1
http://statistics.data.gov.uk/id/local-authority/38,Oxfordshire County Council,SCS Pooled Budgets,Community Support Budget - City,Other Agency and Contracted Services,57401,Direct Payments,05/10/2011,3301361438,1932,A4e Management Ltd Week 1
http://statistics.data.gov.uk/id/local-authority/38,Oxfordshire County Council,SCS Pooled Budgets,Direct Payments North Team,Other Agency and Contracted Services,57401,Direct Payments,05/10/2011,3301361446,835.71,A4e Management Ltd Week 1
http://statistics.data.gov.uk/id/local-authority/38,Oxfordshire County Council,SCS Pooled Budgets,Community Support Budget - Didcot,Other Agency and Contracted Services,57401,Direct Payments,05/10/2011,3301361449,633.85,A4e Management Ltd Week 1
http://statistics.data.gov.uk/id/local-authority/38,Oxfordshire County Council,SCS Pooled Budgets,Community Support Budget - Witney,Other Agency and Contracted Services,57401,Direct Payments,05/10/2011,3301361450,2352,A4e Management Ltd Week 1
http://statistics.data.gov.uk/id/local-authority/38,Oxfordshire County Council,SCS Pooled Budgets,PD Comm Supp Budget - Banbury,Other Agency and Contracted Services,57401,Direct Payments,05/10/2011,3301361451,1114.24,A4e Management Ltd Week 1
http://statistics.data.gov.uk/id/local-authority/38,Oxfordshire County Council,SCS Pooled Budgets,Community Support Budget - Banbury,Other Agency and Contracted Services,57401,Direct Payments,05/10/2011,3301361452,1372,A4e Management Ltd Week 1
http://statistics.data.gov.uk/id/local-authority/38,Oxfordshire County Council,SCS Pooled Budgets,Community Support Budget - Kidlington,Other Agency and Contracted Services,57401,Direct Payments,05/10/2011,3301361453,1100,A4e Management Ltd Week 1
http://statistics.data.gov.uk/id/local-authority/38,Oxfordshire County Council,SCS Pooled Budgets,PD Comm Supp Purchasg Budget - Abingdon,Other Agency and Contracted Services,57401,Direct Payments,05/10/2011,3301361454,704.64,A4e Management Ltd Week 1
http://statistics.data.gov.uk/id/local-authority/38,Oxfordshire County Council,SCS Pooled Budgets,PD Comm Supp Budget - Banbury,Other Agency and Contracted Services,57401,Direct Payments,05/10/2011,3301361455,1323.44,A4e Management Ltd Week 1
http://statistics.data.gov.uk/id/local-authority/38,Oxfordshire County Council,SCS Pooled Budgets,PD CS Purch Budget - Health S28a JC,Other Agency and Contracted Services,57401,Direct Payments,05/10/2011,3301361455,560,A4e Management Ltd Week 1
http://statistics.data.gov.uk/id/local-authority/38,Oxfordshire County Council,SCS Pooled Budgets,Community Support Budget - Banbury,Other Agency and Contracted Services,57401,Direct Payments,05/10/2011,3301361456,596,A4e Management Ltd Week 1
http://statistics.data.gov.uk/id/local-authority/38,Oxfordshire County Council,SCS Pooled Budgets,Community Support Budget - Witney,Other Agency and Contracted Services,57401,Direct Payments,05/10/2011,3301361459,1140,A4e Management Ltd Week 1
http://statistics.data.gov.uk/id/local-authority/38,Oxfordshire County Council,SCS Pooled Budgets,Direct Payments North Team,Other Agency and Contracted Services,57401,Direct Payments,05/10/2011,3301361460,600,A4e Management Ltd Week 1
http://statistics.data.gov.uk/id/local-authority/38,Oxfordshire County Council,SCS Pooled Budgets,Community Support Budget - Witney,Other Agency and Contracted Services,57401,Direct Payments,05/10/2011,3301361461,679.2,A4e Management Ltd Week 1
http://statistics.data.gov.uk/id/local-authority/38,Oxfordshire County Council,SCS Pooled Budgets,PD Comm Supp Budget - Banbury,Other Agency and Contracted Services,57401,Direct Payments,05/10/2011,3301361462,3988,A4e Management Ltd Week 1
http://statistics.data.gov.uk/id/local-authority/38,Oxfordshire County Council,SCS Pooled Budgets,PD CS Purch Budget - Health S28a JC,Other Agency and Contracted Services,57401,Direct Payments,05/10/2011,3301361462,1076,A4e Management Ltd Week 1
http://statistics.data.gov.uk/id/local-authority/38,Oxfordshire County Council,SCS Pooled Budgets,PD Comm Supp Purchasg Budget - City,Other Agency and Contracted Services,57401,Direct Payments,05/10/2011,3301361464,842.08,A4e Management Ltd Week 1
http://statistics.data.gov.uk/id/local-authority/38,Oxfordshire County Council,SCS Pooled Budgets,Community Support Budget - Witney,Other Agency and Contracted Services,57401,Direct Payments,05/10/2011,3301361465,1044,A4e Management Ltd Week 1
http://statistics.data.gov.uk/id/local-authority/38,Oxfordshire County Council,SCS Pooled Budgets,Community Support Budget - Thame,Other Agency and Contracted Services,57401,Direct Payments,05/10/2011,3301361466,1712,A4e Management Ltd Week 1
http://statistics.data.gov.uk/id/local-authority/38,Oxfordshire County Council,SCS Pooled Budgets,Direct Payments South Team,Other Agency and Contracted Services,57401,Direct Payments,05/10/2011,3301361467,507.16,A4e Management Ltd Week 1
http://statistics.data.gov.uk/id/local-authority/38,Oxfordshire County Council,SCS Pooled Budgets,Community Support Budget - Banbury,Other Agency and Contracted Services,57401,Direct Payments,05/10/2011,3301361469,1876,A4e Management Ltd Week 1
http://statistics.data.gov.uk/id/local-authority/38,Oxfordshire County Council,SCS Pooled Budgets,Community Support Budget - Banbury,Other Agency and Contracted Services,57401,Direct Payments,05/10/2011,3301361471,759.5,A4e Management Ltd Week 1
http://statistics.data.gov.uk/id/local-authority/38,Oxfordshire County Council,SCS Pooled Budgets,PD Comm Supp Budget - Banbury,Other Agency and Contracted Services,57401,Direct Payments,05/10/2011,3301361472,1160,A4e Management Ltd Week 1
http://statistics.data.gov.uk/id/local-authority/38,Oxfordshire County Council,SCS Pooled Budgets,PD Community Support Budget - Kidlington,Other Agency and Contracted Services,57401,Direct Payments,05/10/2011,3301361473,600,A4e Management Ltd Week 1
http://statistics.data.gov.uk/id/local-authority/38,Oxfordshire County Council,SCS Pooled Budgets,Community Support Budget - Banbury,Other Agency and Contracted Services,57401,Direct Payments,05/10/2011,3301361475,530,A4e Management Ltd Week 1
http://statistics.data.gov.uk/id/local-authority/38,Oxfordshire County Council,SCS Pooled Budgets,Community Support Budget - Witney,Other Agency and Contracted Services,57401,Direct Payments,05/10/2011,3301361476,928,A4e Management Ltd Week 1
http://statistics.data.gov.uk/id/local-authority/38,Oxfordshire County Council,SCS Pooled Budgets,Community Support Budget - City,Other Agency and Contracted Services,57401,Direct Payments,05/10/2011,3301361477,520,A4e Management Ltd Week 1
http://statistics.data.gov.uk/id/local-authority/38,Oxfordshire County Council,Subscriptions,MIS Payroll Workflow,Balance Sheet General,B7102,Local Government AVC,05/10/2011,3301361561,93172.61,Prudential Assurance Co. Ltd
http://statistics.data.gov.uk/id/local-authority/38,Oxfordshire County Council,Subscriptions,MIS Payroll Workflow,Balance Sheet General,B7103,Teachers AVC,05/10/2011,3301361562,46613.75,Prudential Assurance
http://statistics.data.gov.uk/id/local-authority/38,Oxfordshire County Council,Education & Early Intervention,Abingdon SEN Trans,Transport Related,33101,Home to School Trans,05/10/2011,3301361575,1702.89,Toot's Taxis
http://statistics.data.gov.uk/id/local-authority/38,Oxfordshire County Council,Education & Early Intervention,Abingdon SEN Trans,Transport Related,33101,Home to School Trans,05/10/2011,3301361576,1783.8,Toot's Taxis
http://statistics.data.gov.uk/id/local-authority/38,Oxfordshire County Council,Education & Early Intervention,Oxford Nth SEN Trans,Transport Related,33101,Home to School Trans,05/10/2011,3301361577,2174.22,Toot's Taxis
http://statistics.data.gov.uk/id/local-authority/38,Oxfordshire County Council,Education & Early Intervention,Abingdon SEN Trans,Transport Related,33300,Transport (General),05/10/2011,3301361578,950.82,Toot's Taxis
http://statistics.data.gov.uk/id/local-authority/38,Oxfordshire County Council,Education & Early Intervention,Oxford Sth SEN Trans,Transport Related,33300,Transport (General),05/10/2011,3301361579,810.72,Toot's Taxis
http://statistics.data.gov.uk/id/local-authority/38,Oxfordshire County Council,Education & Early Intervention,Oxford Sth SEN Trans,Transport Related,33101,Home to School Trans,05/10/2011,3301361580,1701.36,Toot's Taxis
http://statistics.data.gov.uk/id/local-authority/38,Oxfordshire County Council,Education & Early Intervention,Zone 5 - South,Transport Related,33101,Home to School Trans,05/10/2011,3301361581,3075.72,Destinations Luxury Travel
http://statistics.data.gov.uk/id/local-authority/38,Oxfordshire County Council,Education & Early Intervention,Oxford Sth SEN Trans,Transport Related,33101,Home to School Trans,05/10/2011,3301361582,6280.34,D and A Nichols
http://statistics.data.gov.uk/id/local-authority/38,Oxfordshire County Council,SCS Pooled Budgets,LD CMPB - South Transport,Transport Related,34200,Client Journeys,05/10/2011,3301361583,819.9,D and A Nichols
http://statistics.data.gov.uk/id/local-authority/38,Oxfordshire County Council,Education & Early Intervention,Oxford Nth SEN Trans,Transport Related,33101,Home to School Trans,05/10/2011,3301361585,2009,001 TAXIS
http://statistics.data.gov.uk/id/local-authority/38,Oxfordshire County Council,Education & Early Intervention,Zone 2 - East,Transport Related,33101,Home to School Trans,05/10/2011,3301361586,786.5,L. Sarbatta
http://statistics.data.gov.uk/id/local-authority/38,Oxfordshire County Council,Education & Early Intervention,FE Special Trans,Transport Related,33101,Home to School Trans,05/10/2011,3301361589,687.68,C V O'Sullivan
http://statistics.data.gov.uk/id/local-authority/38,Oxfordshire County Council,Education & Early Intervention,Oxford Sth SEN Trans,Transport Related,33101,Home to School Trans,05/10/2011,3301361590,1260,S S Taxi
http://statistics.data.gov.uk/id/local-authority/38,Oxfordshire County Council,Education & Early Intervention,Oxford Sth SEN Trans,Transport Related,33300,Transport (General),05/10/2011,3301361591,540,S S Taxi
http://statistics.data.gov.uk/id/local-authority/38,Oxfordshire County Council,Education & Early Intervention,Wantage SEN Trans,Transport Related,33101,Home to School Trans,05/10/2011,3301361592,1260,S S Taxi
http://statistics.data.gov.uk/id/local-authority/38,Oxfordshire County Council,Education & Early Intervention,Oxford Sth SEN Trans,Transport Related,33101,Home to School Trans,05/10/2011,3301361594,1140,S S Taxi
http://statistics.data.gov.uk/id/local-authority/38,Oxfordshire County Council,Education & Early Intervention,Oxford Sth SEN Trans,Transport Related,33300,Transport (General),05/10/2011,3301361595,475,S S Taxi
http://statistics.data.gov.uk/id/local-authority/38,Oxfordshire County Council,Education & Early Intervention,Meadowbrook Transprt,Transport Related,33101,Home to School Trans,05/10/2011,3301361596,1556,S S Taxi
http://statistics.data.gov.uk/id/local-authority/38,Oxfordshire County Council,Education & Early Intervention,Oxford Sth SEN Trans,Transport Related,33101,Home to School Trans,05/10/2011,3301361597,1530,S S Taxi
http://statistics.data.gov.uk/id/local-authority/38,Oxfordshire County Council,Education & Early Intervention,Abingdon SEN Trans,Transport Related,33101,Home to School Trans,05/10/2011,3301361598,1140,S S Taxi
http://statistics.data.gov.uk/id/local-authority/38,Oxfordshire County Council,Education & Early Intervention,Oxford Sth SEN Trans,Transport Related,33101,Home to School Trans,05/10/2011,3301361600,900,S S Taxi
http://statistics.data.gov.uk/id/local-authority/38,Oxfordshire County Council,Education & Early Intervention,Oxford Nth SEN Trans,Transport Related,33101,Home to School Trans,05/10/2011,3301361602,1170,S S Taxi
http://statistics.data.gov.uk/id/local-authority/38,Oxfordshire County Council,Education & Early Intervention,FE Special Trans,Transport Related,33101,Home to School Trans,05/10/2011,3301361603,960,S S Taxi
http://statistics.data.gov.uk/id/local-authority/38,Oxfordshire County Council,Education & Early Intervention,Temporary Transport,Transport Related,33101,Home to School Trans,05/10/2011,3301361604,900,S S Taxi
http://statistics.data.gov.uk/id/local-authority/38,Oxfordshire County Council,Education & Early Intervention,Oxford Sth SEN Trans,Transport Related,33101,Home to School Trans,05/10/2011,3301361605,680,S S Taxi
http://statistics.data.gov.uk/id/local-authority/38,Oxfordshire County Council,Education & Early Intervention,Abingdon SEN Trans,Transport Related,33101,Home to School Trans,05/10/2011,3301361606,540,S S Taxi
http://statistics.data.gov.uk/id/local-authority/38,Oxfordshire County Council,Education & Early Intervention,FE Special Trans,Transport Related,33101,Home to School Trans,05/10/2011,3301361612,1500,ABC Radio Cars
http://statistics.data.gov.uk/id/local-authority/38,Oxfordshire County Council,Education & Early Intervention,FE Special Trans,Transport Related,33101,Home to School Trans,05/10/2011,3301361613,1600,Hills Taxis
http://statistics.data.gov.uk/id/local-authority/38,Oxfordshire County Council,Education & Early Intervention,Zone 5 - South,Transport Related,33101,Home to School Trans,05/10/2011,3301361614,900,Hills Taxis
http://statistics.data.gov.uk/id/local-authority/38,Oxfordshire County Council,Education & Early Intervention,Zone 5 - South,Transport Related,33101,Home to School Trans,05/10/2011,3301361619,1042.56,Hills Taxis
http://statistics.data.gov.uk/id/local-authority/38,Oxfordshire County Council,Education & Early Intervention,S'Common SEN Trans,Transport Related,33101,Home to School Trans,05/10/2011,3301361620,1164.24,Hills Taxis
http://statistics.data.gov.uk/id/local-authority/38,Oxfordshire County Council,Education & Early Intervention,S'Common SEN Trans,Transport Related,33300,Transport (General),05/10/2011,3301361621,563.22,Hills Taxis
http://statistics.data.gov.uk/id/local-authority/38,Oxfordshire County Council,Education & Early Intervention,Oxford Sth SEN Trans,Transport Related,33101,Home to School Trans,05/10/2011,3301361622,2062.8,Hills Taxis
http://statistics.data.gov.uk/id/local-authority/38,Oxfordshire County Council,Education & Early Intervention,Oxford Sth SEN Trans,Transport Related,33300,Transport (General),05/10/2011,3301361623,648,Hills Taxis
http://statistics.data.gov.uk/id/local-authority/38,Oxfordshire County Council,Education & Early Intervention,Out of County,Transport Related,33101,Home to School Trans,05/10/2011,3301361624,880,Hills Taxis
http://statistics.data.gov.uk/id/local-authority/38,Oxfordshire County Council,Education & Early Intervention,Abingdon SEN Trans,Transport Related,33101,Home to School Trans,05/10/2011,3301361625,836,Hills Taxis
http://statistics.data.gov.uk/id/local-authority/38,Oxfordshire County Council,Education & Early Intervention,Abingdon SEN Trans,Transport Related,33300,Transport (General),05/10/2011,3301361626,475,Hills Taxis
http://statistics.data.gov.uk/id/local-authority/38,Oxfordshire County Council,Education & Early Intervention,Oxford Sth SEN Trans,Transport Related,33101,Home to School Trans,05/10/2011,3301361627,1607.4,Hills Taxis
http://statistics.data.gov.uk/id/local-authority/38,Oxfordshire County Council,Education & Early Intervention,Out of County,Transport Related,33101,Home to School Trans,05/10/2011,3301361629,1140,Hills Taxis
http://statistics.data.gov.uk/id/local-authority/38,Oxfordshire County Council,Education & Early Intervention,Out of County,Transport Related,33300,Transport (General),05/10/2011,3301361630,570,Hills Taxis
http://statistics.data.gov.uk/id/local-authority/38,Oxfordshire County Council,Education & Early Intervention,Zone 5 - South,Transport Related,33101,Home to School Trans,05/10/2011,3301361631,540,Hills Taxis
http://statistics.data.gov.uk/id/local-authority/38,Oxfordshire County Council,Education & Early Intervention,Zone 5 - South,Transport Related,33101,Home to School Trans,05/10/2011,3301361632,652.32,Hills Taxis
http://statistics.data.gov.uk/id/local-authority/38,Oxfordshire County Council,Education & Early Intervention,S'Common SEN Trans,Transport Related,33101,Home to School Trans,05/10/2011,3301361633,1006,Hills Taxis
http://statistics.data.gov.uk/id/local-authority/38,Oxfordshire County Council,Education & Early Intervention,S'Common SEN Trans,Transport Related,33300,Transport (General),05/10/2011,3301361634,594,Hills Taxis
http://statistics.data.gov.uk/id/local-authority/38,Oxfordshire County Council,Education & Early Intervention,S'Common SEN Trans,Transport Related,33101,Home to School Trans,05/10/2011,3301361635,1059.3,Hills Taxis
http://statistics.data.gov.uk/id/local-authority/38,Oxfordshire County Council,Education & Early Intervention,S'Common SEN Trans,Transport Related,33300,Transport (General),05/10/2011,3301361636,533.7,Hills Taxis
http://statistics.data.gov.uk/id/local-authority/38,Oxfordshire County Council,Education & Early Intervention,S'Common SEN Trans,Transport Related,33101,Home to School Trans,05/10/2011,3301361637,1133.64,Hills Taxis
http://statistics.data.gov.uk/id/local-authority/38,Oxfordshire County Council,Education & Early Intervention,S'Common SEN Trans,Transport Related,33101,Home to School Trans,05/10/2011,3301361639,540,Hills Taxis
http://statistics.data.gov.uk/id/local-authority/38,Oxfordshire County Council,Education & Early Intervention,S'Common SEN Trans,Transport Related,33300,Transport (General),05/10/2011,3301361640,450,Hills Taxis
http://statistics.data.gov.uk/id/local-authority/38,Oxfordshire County Council,Education & Early Intervention,Meadowbrook Transprt,Transport Related,33101,Home to School Trans,05/10/2011,3301361641,465,Prestige Cars
http://statistics.data.gov.uk/id/local-authority/38,Oxfordshire County Council,Education & Early Intervention,Zone 1 - North,Transport Related,33101,Home to School Trans,05/10/2011,3301361642,578.76,Prestige Cars
http://statistics.data.gov.uk/id/local-authority/38,Oxfordshire County Council,Education & Early Intervention,Oxford Sth SEN Trans,Transport Related,33101,Home to School Trans,05/10/2011,3301361644,1931,Prestige Cars
http://statistics.data.gov.uk/id/local-authority/38,Oxfordshire County Council,Education & Early Intervention,Meadowbrook Transprt,Transport Related,33101,Home to School Trans,05/10/2011,3301361648,871,Oxon Transport Services Limited t/a
http://statistics.data.gov.uk/id/local-authority/38,Oxfordshire County Council,Education & Early Intervention,Zone 3 - West,Transport Related,33101,Home to School Trans,05/10/2011,3301361649,480,Oxon Transport Services Limited t/a
http://statistics.data.gov.uk/id/local-authority/38,Oxfordshire County Council,Education & Early Intervention,Oxford Nth SEN Trans,Transport Related,33101,Home to School Trans,05/10/2011,3301361650,1020,Oxon Transport Services Limited t/a
http://statistics.data.gov.uk/id/local-authority/38,Oxfordshire County Council,Education & Early Intervention,Zone 2 - East,Transport Related,33101,Home to School Trans,05/10/2011,3301361651,465,Oxon Transport Services Limited t/a
http://statistics.data.gov.uk/id/local-authority/38,Oxfordshire County Council,Education & Early Intervention,Meadowbrook Transprt,Transport Related,33101,Home to School Trans,05/10/2011,3301361653,904,Oxon Transport Services Limited t/a
http://statistics.data.gov.uk/id/local-authority/38,Oxfordshire County Council,Education & Early Intervention,Meadowbrook Transprt,Transport Related,33101,Home to School Trans,05/10/2011,3301361654,1382,Oxon Transport Services Limited t/a
http://statistics.data.gov.uk/id/local-authority/38,Oxfordshire County Council,Education & Early Intervention,Zone 2 - East,Transport Related,33101,Home to School Trans,05/10/2011,3301361655,1360,Oxon Transport Services Limited t/a
http://statistics.data.gov.uk/id/local-authority/38,Oxfordshire County Council,Miscellaneous,Walter Bigg - Wallingford,Balance Sheet General,B2506,Rev - Misc Charges,05/10/2011,3301361663,-4533.31,Investec Asset Management Ltd
http://statistics.data.gov.uk/id/local-authority/38,Oxfordshire County Council,SCS Pooled Budgets,Personal Health Budgets PD (PCT),Other Agency and Contracted Services,57401,Direct Payments,05/10/2011,3301361665,16749.9,REDACTED PERSONAL DATA
http://statistics.data.gov.uk/id/local-authority/38,Oxfordshire County Council,SCS Other Cost Centres,Home Support trading account for PBs,Other Agency and Contracted Services,57300,Home Support (Ext) OS&HCD,05/10/2011,3301361682,12211.47,1 to 1 Care
http://statistics.data.gov.uk/id/local-authority/38,Oxfordshire County Council,SCS Other Cost Centres,Home Support trading account for PBs,Other Agency and Contracted Services,57300,Home Support (Ext) OS&HCD,05/10/2011,3301361683,3053.99,Nestor Primecare Services Ltd.
http://statistics.data.gov.uk/id/local-authority/38,Oxfordshire County Council,SCS Other Cost Centres,Home Support trading account for PBs,Other Agency and Contracted Services,57300,Home Support (Ext) OS&HCD,05/10/2011,3301361684,4165.5,Allied Healthcare Group Ltd
http://statistics.data.gov.uk/id/local-authority/38,Oxfordshire County Council,SCS Other Cost Centres,Home Support trading account for PBs,Other Agency and Contracted Services,57300,Home Support (Ext) OS&HCD,05/10/2011,3301361685,3541.02,Amber Healthcare Personnel Ltd
http://statistics.data.gov.uk/id/local-authority/38,Oxfordshire County Council,SCS Other Cost Centres,Home Support trading account for PBs,Other Agency and Contracted Services,57300,Home Support (Ext) OS&HCD,05/10/2011,3301361686,6825.09,Home Choice Care
http://statistics.data.gov.uk/id/local-authority/38,Oxfordshire County Council,SCS Other Cost Centres,Home Support trading account for PBs,Other Agency and Contracted Services,57300,Home Support (Ext) OS&HCD,05/10/2011,3301361687,14020.54,Bright Yellow Group Plc
http://statistics.data.gov.uk/id/local-authority/38,Oxfordshire County Council,SCS Other Cost Centres,Home Support trading account for PBs,Other Agency and Contracted Services,57300,Home Support (Ext) OS&HCD,05/10/2011,3301361688,7332.61,Charterville Care At Home
http://statistics.data.gov.uk/id/local-authority/38,Oxfordshire County Council,SCS Other Cost Centres,Home Support trading account for PBs,Other Agency and Contracted Services,57300,Home Support (Ext) OS&HCD,05/10/2011,3301361689,6023.72,Cherwell Care Services
http://statistics.data.gov.uk/id/local-authority/38,Oxfordshire County Council,SCS Other Cost Centres,Home Support trading account for PBs,Other Agency and Contracted Services,57300,Home Support (Ext) OS&HCD,05/10/2011,3301361690,9370.08,Oxfordshire Crossroads
http://statistics.data.gov.uk/id/local-authority/38,Oxfordshire County Council,SCS Other Cost Centres,Home Support trading account for PBs,Other Agency and Contracted Services,57300,Home Support (Ext) OS&HCD,05/10/2011,3301361691,18725.14,Day & Night Care Assistance
http://statistics.data.gov.uk/id/local-authority/38,Oxfordshire County Council,SCS Other Cost Centres,Home Support trading account for PBs,Other Agency and Contracted Services,57300,Home Support (Ext) OS&HCD,05/10/2011,3301361692,826.63,Elite Care Agency
http://statistics.data.gov.uk/id/local-authority/38,Oxfordshire County Council,SCS Other Cost Centres,Home Support trading account for PBs,Other Agency and Contracted Services,57300,Home Support (Ext) OS&HCD,05/10/2011,3301361693,7099.75,Greigcare Home Service
http://statistics.data.gov.uk/id/local-authority/38,Oxfordshire County Council,SCS Other Cost Centres,Home Support trading account for PBs,Other Agency and Contracted Services,57300,Home Support (Ext) OS&HCD,05/10/2011,3301361694,4438.46,Heart to Heart Care Ltd
http://statistics.data.gov.uk/id/local-authority/38,Oxfordshire County Council,SCS Other Cost Centres,Home Support trading account for PBs,Other Agency and Contracted Services,57300,Home Support (Ext) OS&HCD,05/10/2011,3301361695,5674.17,HOME HELPERS CARE LTD
http://statistics.data.gov.uk/id/local-authority/38,Oxfordshire County Council,SCS Other Cost Centres,Home Support trading account for PBs,Other Agency and Contracted Services,57300,Home Support (Ext) OS&HCD,13/10/2011,3301361696,4945.18,Leonard Cheshire FOR PAYMENTS ONLY
http://statistics.data.gov.uk/id/local-authority/38,Oxfordshire County Council,SCS Other Cost Centres,Home Support trading account for PBs,Other Agency and Contracted Services,57300,Home Support (Ext) OS&HCD,05/10/2011,3301361697,4322.19,Mears
http://statistics.data.gov.uk/id/local-authority/38,Oxfordshire County Council,SCS Other Cost Centres,Home Support trading account for PBs,Other Agency and Contracted Services,57300,Home Support (Ext) OS&HCD,05/10/2011,3301361698,17520.32,Oxford Private Care
http://statistics.data.gov.uk/id/local-authority/38,Oxfordshire County Council,SCS Other Cost Centres,Home Support trading account for PBs,Other Agency and Contracted Services,57300,Home Support (Ext) OS&HCD,05/10/2011,3301361699,6040.48,PLL CARE
http://statistics.data.gov.uk/id/local-authority/38,Oxfordshire County Council,SCS Other Cost Centres,Home Support trading account for PBs,Other Agency and Contracted Services,57300,Home Support (Ext) OS&HCD,05/10/2011,3301361700,4024.41,Premier Personal Care
http://statistics.data.gov.uk/id/local-authority/38,Oxfordshire County Council,SCS Other Cost Centres,Home Support trading account for PBs,Other Agency and Contracted Services,57300,Home Support (Ext) OS&HCD,05/10/2011,3301361701,8909.96,Primary Healthcare
http://statistics.data.gov.uk/id/local-authority/38,Oxfordshire County Council,SCS Other Cost Centres,Home Support trading account for PBs,Other Agency and Contracted Services,57300,Home Support (Ext) OS&HCD,05/10/2011,3301361702,5189.48,Radis Community Care
http://statistics.data.gov.uk/id/local-authority/38,Oxfordshire County Council,SCS Other Cost Centres,Home Support trading account for PBs,Other Agency and Contracted Services,57300,Home Support (Ext) OS&HCD,05/10/2011,3301361703,2475.47,Risborough Carers Ltd
http://statistics.data.gov.uk/id/local-authority/38,Oxfordshire County Council,SCS Other Cost Centres,Home Support trading account for PBs,Other Agency and Contracted Services,57300,Home Support (Ext) OS&HCD,05/10/2011,3301361704,3336.6,Secure Care (Oxford) Ltd
http://statistics.data.gov.uk/id/local-authority/38,Oxfordshire County Council,SCS Other Cost Centres,Home Support trading account for PBs,Other Agency and Contracted Services,57300,Home Support (Ext) OS&HCD,05/10/2011,3301361705,15160.2,Sevacare (UK) Ltd
http://statistics.data.gov.uk/id/local-authority/38,Oxfordshire County Council,SCS Other Cost Centres,Home Support trading account for PBs,Other Agency and Contracted Services,57300,Home Support (Ext) OS&HCD,05/10/2011,3301361706,2222.21,Sevacare (UK) Ltd
http://statistics.data.gov.uk/id/local-authority/38,Oxfordshire County Council,SCS Other Cost Centres,Home Support trading account for PBs,Other Agency and Contracted Services,57300,Home Support (Ext) OS&HCD,05/10/2011,3301361707,3962.41,Total Homecare Solutions Ltd
http://statistics.data.gov.uk/id/local-authority/38,Oxfordshire County Council,Law & Governance Services,Legal Services,Expenses,46500,Legal Fees & Exp,05/10/2011,3301361898,980,HMCTS
http://statistics.data.gov.uk/id/local-authority/38,Oxfordshire County Council,SCS Pooled Budgets,NE PCT Equipment,Social Services Client Expenditure,44609,ICES Stores,05/10/2011,3301362018,67069.28,Millbrook Healthcare
http://statistics.data.gov.uk/id/local-authority/38,Oxfordshire County Council,SCS Pooled Budgets,"CSDP, Aids and Adaptions Team",Social Services Client Expenditure,44609,ICES Stores,05/10/2011,3301362018,136628.45,Millbrook Healthcare
http://statistics.data.gov.uk/id/local-authority/38,Oxfordshire County Council,SCS Pooled Budgets,Direct Payments North Team,Other Agency and Contracted Services,57401,Direct Payments,06/10/2011,3301362109,5779.28,REDACTED PERSONAL DATA
http://statistics.data.gov.uk/id/local-authority/38,Oxfordshire County Council,Property Asset Management,County Hall,Energy Costs,23100,Electricity,14/10/2011,3301362115,6873.55,Npower Ltd
http://statistics.data.gov.uk/id/local-authority/38,Oxfordshire County Council,Social & Community Services,St. Luke's Church,Energy Costs,23100,Electricity,14/10/2011,3301362116,2876.07,Npower Ltd
http://statistics.data.gov.uk/id/local-authority/38,Oxfordshire County Council,Oxfordshire Customer Services,ICT Operations,Energy Costs,23100,Electricity,14/10/2011,3301362117,7357.63,Npower Ltd
http://statistics.data.gov.uk/id/local-authority/38,Oxfordshire County Council,Property Asset Management,Knights Court,Energy Costs,23100,Electricity,14/10/2011,3301362118,3410.58,Npower Ltd
http://statistics.data.gov.uk/id/local-authority/38,Oxfordshire County Council,Property Asset Management,Samuelson House,Energy Costs,23100,Electricity,14/10/2011,3301362119,2363.01,Npower Ltd
http://statistics.data.gov.uk/id/local-authority/38,Oxfordshire County Council,Property Asset Management,Electric Avenue,Energy Costs,23100,Electricity,14/10/2011,3301362120,610.34,Npower Ltd
http://statistics.data.gov.uk/id/local-authority/38,Oxfordshire County Council,Property Asset Management,Cricket Road,Energy Costs,23100,Electricity,14/10/2011,3301362121,537.34,Npower Ltd
http://statistics.data.gov.uk/id/local-authority/38,Oxfordshire County Council,Property Asset Management,Speedwell House,Energy Costs,23100,Electricity,14/10/2011,3301362122,2300.98,Npower Ltd
http://statistics.data.gov.uk/id/local-authority/38,Oxfordshire County Council,Social & Community Services,Westgate Site,Energy Costs,23100,Electricity,14/10/2011,3301362123,3457.15,Npower Ltd
http://statistics.data.gov.uk/id/local-authority/38,Oxfordshire County Council,Highways & Transport,"Electrical NP Rds, Street Lighting",Private Contractors,56400,Major Contracts,06/10/2011,3301362261,443,WPD Midlands Networks Services Ltd
http://statistics.data.gov.uk/id/local-authority/38,Oxfordshire County Council,Education & Early Intervention,S'Common SEN Trans,Transport Related,33101,Home to School Trans,06/10/2011,3301362374,2176.38,Transpiration Limited
http://statistics.data.gov.uk/id/local-authority/38,Oxfordshire County Council,Education & Early Intervention,Oxford Sth SEN Trans,Transport Related,33101,Home to School Trans,06/10/2011,3301362375,1851.47,Transpiration Limited
http://statistics.data.gov.uk/id/local-authority/38,Oxfordshire County Council,Education & Early Intervention,Oxford Sth SEN Trans,Transport Related,33101,Home to School Trans,06/10/2011,3301362376,2200.5,Transpiration Limited
http://statistics.data.gov.uk/id/local-authority/38,Oxfordshire County Council,Education & Early Intervention,Oxford Sth SEN Trans,Transport Related,33300,Transport (General),06/10/2011,3301362377,683.28,Transpiration Limited
http://statistics.data.gov.uk/id/local-authority/38,Oxfordshire County Council,Education & Early Intervention,Oxford Sth SEN Trans,Transport Related,33101,Home to School Trans,06/10/2011,3301362378,2629.8,Transpiration Limited
http://statistics.data.gov.uk/id/local-authority/38,Oxfordshire County Council,Education & Early Intervention,Oxford Sth SEN Trans,Transport Related,33300,Transport (General),06/10/2011,3301362379,718.74,Transpiration Limited
http://statistics.data.gov.uk/id/local-authority/38,Oxfordshire County Council,Education & Early Intervention,S'Common SEN Trans,Transport Related,33101,Home to School Trans,06/10/2011,3301362381,1781.1,Transpiration Limited
http://statistics.data.gov.uk/id/local-authority/38,Oxfordshire County Council,Education & Early Intervention,S'Common SEN Trans,Transport Related,33300,Transport (General),06/10/2011,3301362382,569.16,Transpiration Limited
http://statistics.data.gov.uk/id/local-authority/38,Oxfordshire County Council,Education & Early Intervention,FE Special Trans,Transport Related,33101,Home to School Trans,06/10/2011,3301362384,2295,Transpiration Limited
http://statistics.data.gov.uk/id/local-authority/38,Oxfordshire County Council,Education & Early Intervention,FE Special Trans,Transport Related,33300,Transport (General),06/10/2011,3301362385,585,Transpiration Limited
http://statistics.data.gov.uk/id/local-authority/38,Oxfordshire County Council,SCS Pooled Budgets,LD CMPB - South Transport,Transport Related,34200,Client Journeys,06/10/2011,3301362386,651.15,Transpiration Limited
http://statistics.data.gov.uk/id/local-authority/38,Oxfordshire County Council,Education & Early Intervention,FE Special Trans,Transport Related,33101,Home to School Trans,06/10/2011,3301362387,1551.3,Transpiration Limited
http://statistics.data.gov.uk/id/local-authority/38,Oxfordshire County Council,Education & Early Intervention,FE Special Trans,Transport Related,33300,Transport (General),06/10/2011,3301362388,437.55,Transpiration Limited
http://statistics.data.gov.uk/id/local-authority/38,Oxfordshire County Council,SCS Pooled Budgets,LD CMPB - South Transport,Transport Related,34200,Client Journeys,06/10/2011,3301362389,2141.2,Transpiration Limited
http://statistics.data.gov.uk/id/local-authority/38,Oxfordshire County Council,Education & Early Intervention,Oxford Sth SEN Trans,Transport Related,33101,Home to School Trans,06/10/2011,3301362392,2280,Transpiration Limited
http://statistics.data.gov.uk/id/local-authority/38,Oxfordshire County Council,Education & Early Intervention,Oxford Sth SEN Trans,Transport Related,33300,Transport (General),06/10/2011,3301362393,749.17,Transpiration Limited
http://statistics.data.gov.uk/id/local-authority/38,Oxfordshire County Council,Education & Early Intervention,Special Misc,Transport Related,34101,Pupils Season Ticket,06/10/2011,3301362395,742,First Great Western Ltd
http://statistics.data.gov.uk/id/local-authority/38,Oxfordshire County Council,Education & Early Intervention,Banbury SEN Trans,Transport Related,33101,Home to School Trans,06/10/2011,3301362396,3755.52,Pages Taxis
http://statistics.data.gov.uk/id/local-authority/38,Oxfordshire County Council,Education & Early Intervention,Banbury SEN Trans,Transport Related,33300,Transport (General),06/10/2011,3301362397,706.5,Pages Taxis
http://statistics.data.gov.uk/id/local-authority/38,Oxfordshire County Council,Education & Early Intervention,Bicester SEN Trans,Transport Related,33101,Home to School Trans,06/10/2011,3301362398,2994.4,Pages Taxis
http://statistics.data.gov.uk/id/local-authority/38,Oxfordshire County Council,Education & Early Intervention,Bicester SEN Trans,Transport Related,33300,Transport (General),06/10/2011,3301362399,726.75,Pages Taxis
http://statistics.data.gov.uk/id/local-authority/38,Oxfordshire County Council,Education & Early Intervention,Oxford Nth SEN Trans,Transport Related,33101,Home to School Trans,06/10/2011,3301362400,2889.15,Pages Taxis
http://statistics.data.gov.uk/id/local-authority/38,Oxfordshire County Council,Education & Early Intervention,Oxford Nth SEN Trans,Transport Related,33300,Transport (General),06/10/2011,3301362401,717.57,Pages Taxis
http://statistics.data.gov.uk/id/local-authority/38,Oxfordshire County Council,Education & Early Intervention,Zone 1 - North,Transport Related,33101,Home to School Trans,06/10/2011,3301362402,9792.69,Worths Motor Services Ltd.
http://statistics.data.gov.uk/id/local-authority/38,Oxfordshire County Council,Education & Early Intervention,Zone 2 - East,Transport Related,33101,Home to School Trans,06/10/2011,3301362403,7542,Worths Motor Services Ltd.
http://statistics.data.gov.uk/id/local-authority/38,Oxfordshire County Council,Education & Early Intervention,Bicester SEN Trans,Transport Related,33101,Home to School Trans,06/10/2011,3301362404,2497.17,RBS Invoice Finance Limited
http://statistics.data.gov.uk/id/local-authority/38,Oxfordshire County Council,Education & Early Intervention,Bicester SEN Trans,Transport Related,33101,Home to School Trans,06/10/2011,3301362406,832.5,RBS Invoice Finance Limited
http://statistics.data.gov.uk/id/local-authority/38,Oxfordshire County Council,Education & Early Intervention,FE Special Trans,Transport Related,33101,Home to School Trans,06/10/2011,3301362410,960,Ash Taxis
http://statistics.data.gov.uk/id/local-authority/38,Oxfordshire County Council,Education & Early Intervention,Oxford Nth SEN Trans,Transport Related,33101,Home to School Trans,06/10/2011,3301362411,1770.5,Ash Taxis
http://statistics.data.gov.uk/id/local-authority/38,Oxfordshire County Council,Education & Early Intervention,Oxford Nth SEN Trans,Transport Related,33300,Transport (General),06/10/2011,3301362412,569.52,Ash Taxis
http://statistics.data.gov.uk/id/local-authority/38,Oxfordshire County Council,Education & Early Intervention,Oxford Nth SEN Trans,Transport Related,33101,Home to School Trans,06/10/2011,3301362413,1710,Ash Taxis
http://statistics.data.gov.uk/id/local-authority/38,Oxfordshire County Council,Education & Early Intervention,Oxford Nth SEN Trans,Transport Related,33101,Home to School Trans,06/10/2011,3301362414,1783.62,Ash Taxis
http://statistics.data.gov.uk/id/local-authority/38,Oxfordshire County Council,Education & Early Intervention,Oxford Nth SEN Trans,Transport Related,33300,Transport (General),06/10/2011,3301362415,563.4,Ash Taxis
http://statistics.data.gov.uk/id/local-authority/38,Oxfordshire County Council,Education & Early Intervention,Oxford Nth SEN Trans,Transport Related,33101,Home to School Trans,06/10/2011,3301362416,1800,Ash Taxis
http://statistics.data.gov.uk/id/local-authority/38,Oxfordshire County Council,Education & Early Intervention,Oxford Nth SEN Trans,Transport Related,33300,Transport (General),06/10/2011,3301362417,540,Ash Taxis
http://statistics.data.gov.uk/id/local-authority/38,Oxfordshire County Council,Education & Early Intervention,Banbury SEN Trans,Transport Related,33101,Home to School Trans,06/10/2011,3301362418,1408.32,Ash Taxis
http://statistics.data.gov.uk/id/local-authority/38,Oxfordshire County Council,Education & Early Intervention,Oxford Sth SEN Trans,Transport Related,33101,Home to School Trans,06/10/2011,3301362421,3138.42,Ash Taxis
http://statistics.data.gov.uk/id/local-authority/38,Oxfordshire County Council,Education & Early Intervention,Banbury SEN Trans,Transport Related,33101,Home to School Trans,06/10/2011,3301362422,1070.28,Ash Taxis
http://statistics.data.gov.uk/id/local-authority/38,Oxfordshire County Council,Education & Early Intervention,Banbury SEN Trans,Transport Related,33300,Transport (General),06/10/2011,3301362423,422.55,Ash Taxis
http://statistics.data.gov.uk/id/local-authority/38,Oxfordshire County Council,Education & Early Intervention,Oxford Sth SEN Trans,Transport Related,33101,Home to School Trans,06/10/2011,3301362424,1260,Ash Taxis
http://statistics.data.gov.uk/id/local-authority/38,Oxfordshire County Council,Education & Early Intervention,Oxford Sth SEN Trans,Transport Related,33300,Transport (General),06/10/2011,3301362425,720,Ash Taxis
http://statistics.data.gov.uk/id/local-authority/38,Oxfordshire County Council,Education & Early Intervention,Zone 4 - Vale,Transport Related,33101,Home to School Trans,06/10/2011,3301362430,510,Abingdon Taxis
http://statistics.data.gov.uk/id/local-authority/38,Oxfordshire County Council,Education & Early Intervention,Zone 4 - Vale,Transport Related,33101,Home to School Trans,06/10/2011,3301362431,765,Abingdon Taxis
http://statistics.data.gov.uk/id/local-authority/38,Oxfordshire County Council,Education & Early Intervention,Oxford Nth SEN Trans,Transport Related,33101,Home to School Trans,06/10/2011,3301362432,1020,Abingdon Taxis
http://statistics.data.gov.uk/id/local-authority/38,Oxfordshire County Council,Education & Early Intervention,Oxford Nth SEN Trans,Transport Related,33300,Transport (General),06/10/2011,3301362433,425,Abingdon Taxis
http://statistics.data.gov.uk/id/local-authority/38,Oxfordshire County Council,Education & Early Intervention,Wantage SEN Trans,Transport Related,33101,Home to School Trans,06/10/2011,3301362434,1360,Abingdon Taxis
http://statistics.data.gov.uk/id/local-authority/38,Oxfordshire County Council,Education & Early Intervention,Oxford Nth SEN Trans,Transport Related,33101,Home to School Trans,06/10/2011,3301362436,1406.58,Abingdon Taxis
http://statistics.data.gov.uk/id/local-authority/38,Oxfordshire County Council,Education & Early Intervention,Oxford Nth SEN Trans,Transport Related,33101,Home to School Trans,06/10/2011,3301362438,1275,Abingdon Taxis
http://statistics.data.gov.uk/id/local-authority/38,Oxfordshire County Council,Education & Early Intervention,Oxford Nth SEN Trans,Transport Related,33300,Transport (General),06/10/2011,3301362439,537.88,Abingdon Taxis
http://statistics.data.gov.uk/id/local-authority/38,Oxfordshire County Council,Education & Early Intervention,Wantage SEN Trans,Transport Related,33101,Home to School Trans,06/10/2011,3301362440,1684.7,Abingdon Taxis
http://statistics.data.gov.uk/id/local-authority/38,Oxfordshire County Council,Education & Early Intervention,Zone 4 - Vale,Transport Related,33101,Home to School Trans,06/10/2011,3301362442,1480,Abingdon Taxis
http://statistics.data.gov.uk/id/local-authority/38,Oxfordshire County Council,Education & Early Intervention,Oxford Nth SEN Trans,Transport Related,33101,Home to School Trans,06/10/2011,3301362443,990,John Cleaton Airport Cars Oxford
http://statistics.data.gov.uk/id/local-authority/38,Oxfordshire County Council,Education & Early Intervention,Zone 4 - Vale,Transport Related,33101,Home to School Trans,06/10/2011,3301362445,3348,Barnes Coaches Ltd
http://statistics.data.gov.uk/id/local-authority/38,Oxfordshire County Council,Education & Early Intervention,Zone 3 - West,Transport Related,33101,Home to School Trans,06/10/2011,3301362446,3002,Barnes Coaches Ltd
http://statistics.data.gov.uk/id/local-authority/38,Oxfordshire County Council,Education & Early Intervention,Zone 3 - West,Transport Related,33101,Home to School Trans,06/10/2011,3301362447,3002,Barnes Coaches Ltd
http://statistics.data.gov.uk/id/local-authority/38,Oxfordshire County Council,Education & Early Intervention,Zone 5 - South,Transport Related,33101,Home to School Trans,06/10/2011,3301362448,2507.58,Horseman Coaches Ltd
http://statistics.data.gov.uk/id/local-authority/38,Oxfordshire County Council,Education & Early Intervention,Zone 4 - Vale,Transport Related,33101,Home to School Trans,06/10/2011,3301362449,8694.65,Plastow's Coaches
http://statistics.data.gov.uk/id/local-authority/38,Oxfordshire County Council,Education & Early Intervention,Wantage SEN Trans,Transport Related,33101,Home to School Trans,06/10/2011,3301362451,1549.08,Grove Taxis
http://statistics.data.gov.uk/id/local-authority/38,Oxfordshire County Council,Education & Early Intervention,Oxford Sth SEN Trans,Transport Related,33101,Home to School Trans,06/10/2011,3301362453,2159.29,M J Cars
http://statistics.data.gov.uk/id/local-authority/38,Oxfordshire County Council,Education & Early Intervention,Banbury SEN Trans,Transport Related,33101,Home to School Trans,06/10/2011,3301362454,938.88,M J Cars
http://statistics.data.gov.uk/id/local-authority/38,Oxfordshire County Council,Education & Early Intervention,Banbury SEN Trans,Transport Related,33300,Transport (General),06/10/2011,3301362455,450.72,M J Cars
http://statistics.data.gov.uk/id/local-authority/38,Oxfordshire County Council,Education & Early Intervention,Out of County,Transport Related,33101,Home to School Trans,06/10/2011,3301362456,2215.62,AD Taxi
http://statistics.data.gov.uk/id/local-authority/38,Oxfordshire County Council,Education & Early Intervention,Zone 1 - North,Transport Related,33101,Home to School Trans,06/10/2011,3301362457,727.13,Ambassador Taxis Ltd
http://statistics.data.gov.uk/id/local-authority/38,Oxfordshire County Council,Education & Early Intervention,Zone 1 - North,Transport Related,33101,Home to School Trans,06/10/2011,3301362458,1080,Ambassador Taxis Ltd
http://statistics.data.gov.uk/id/local-authority/38,Oxfordshire County Council,Education & Early Intervention,Zone 4 - Vale,Transport Related,33101,Home to School Trans,06/10/2011,3301362459,3733.74,Weavaway Travel
http://statistics.data.gov.uk/id/local-authority/38,Oxfordshire County Council,Education & Early Intervention,Zone 4 - Vale,Transport Related,33101,Home to School Trans,06/10/2011,3301362460,3733.74,Weavaway Travel
http://statistics.data.gov.uk/id/local-authority/38,Oxfordshire County Council,Education & Early Intervention,Zone 4 - Vale,Transport Related,33101,Home to School Trans,06/10/2011,3301362461,3733.74,Weavaway Travel
http://statistics.data.gov.uk/id/local-authority/38,Oxfordshire County Council,Education & Early Intervention,Zone 5 - South,Transport Related,33101,Home to School Trans,06/10/2011,3301362462,6855.66,Weavaway Travel
http://statistics.data.gov.uk/id/local-authority/38,Oxfordshire County Council,Education & Early Intervention,Out of County,Transport Related,33101,Home to School Trans,06/10/2011,3301362463,864,AD Taxi
http://statistics.data.gov.uk/id/local-authority/38,Oxfordshire County Council,Education & Early Intervention,Zone 3 - West,Transport Related,33101,Home to School Trans,06/10/2011,3301362464,2871,Rebound Coaches Ltd
http://statistics.data.gov.uk/id/local-authority/38,Oxfordshire County Council,Education & Early Intervention,Meadowbrook Transprt,Transport Related,33101,Home to School Trans,06/10/2011,3301362465,1948,Black and White Taxis
http://statistics.data.gov.uk/id/local-authority/38,Oxfordshire County Council,Education & Early Intervention,Meadowbrook Transprt,Transport Related,33101,Home to School Trans,06/10/2011,3301362466,874,Black and White Taxis
http://statistics.data.gov.uk/id/local-authority/38,Oxfordshire County Council,Education & Early Intervention,Meadowbrook Transprt,Transport Related,33101,Home to School Trans,06/10/2011,3301362467,1590,Black and White Taxis
http://statistics.data.gov.uk/id/local-authority/38,Oxfordshire County Council,Education & Early Intervention,Oxford Nth SEN Trans,Transport Related,33101,Home to School Trans,06/10/2011,3301362469,1844,Black and White Taxis
http://statistics.data.gov.uk/id/local-authority/38,Oxfordshire County Council,Education & Early Intervention,Oxford Nth SEN Trans,Transport Related,33300,Transport (General),06/10/2011,3301362470,847.8,Black and White Taxis
http://statistics.data.gov.uk/id/local-authority/38,Oxfordshire County Council,Education & Early Intervention,Banbury SEN Trans,Transport Related,33101,Home to School Trans,06/10/2011,3301362471,1502.28,Black and White Taxis
http://statistics.data.gov.uk/id/local-authority/38,Oxfordshire County Council,Education & Early Intervention,Oxford Nth SEN Trans,Transport Related,33101,Home to School Trans,06/10/2011,3301362472,1731.09,Black and White Taxis
http://statistics.data.gov.uk/id/local-authority/38,Oxfordshire County Council,Education & Early Intervention,FE Special Trans,Transport Related,33101,Home to School Trans,06/10/2011,3301362473,468,Black and White Taxis
http://statistics.data.gov.uk/id/local-authority/38,Oxfordshire County Council,Education & Early Intervention,Zone 1 - North,Transport Related,33101,Home to School Trans,06/10/2011,3301362475,801.36,Black and White Taxis
http://statistics.data.gov.uk/id/local-authority/38,Oxfordshire County Council,Education & Early Intervention,Zone 1 - North,Transport Related,33101,Home to School Trans,06/10/2011,3301362476,576,Black and White Taxis
http://statistics.data.gov.uk/id/local-authority/38,Oxfordshire County Council,Education & Early Intervention,Out of County,Transport Related,33101,Home to School Trans,06/10/2011,3301362480,800,Black and White Taxis
http://statistics.data.gov.uk/id/local-authority/38,Oxfordshire County Council,Education & Early Intervention,FE Special Trans,Transport Related,33101,Home to School Trans,06/10/2011,3301362482,550,Monarch Oxford
http://statistics.data.gov.uk/id/local-authority/38,Oxfordshire County Council,Education & Early Intervention,Oxford Sth SEN Trans,Transport Related,33101,Home to School Trans,06/10/2011,3301362483,550,Monarch Oxford
http://statistics.data.gov.uk/id/local-authority/38,Oxfordshire County Council,Education & Early Intervention,Abingdon SEN Trans,Transport Related,33101,Home to School Trans,06/10/2011,3301362487,844.92,Mark's Taxis
http://statistics.data.gov.uk/id/local-authority/38,Oxfordshire County Council,Education & Early Intervention,Out of County,Transport Related,33101,Home to School Trans,06/10/2011,3301362490,850,Crown Cabs Travel Ltd
http://statistics.data.gov.uk/id/local-authority/38,Oxfordshire County Council,Education & Early Intervention,FE Special Trans,Transport Related,33101,Home to School Trans,06/10/2011,3301362491,622.5,Crown Cabs Travel Ltd
http://statistics.data.gov.uk/id/local-authority/38,Oxfordshire County Council,Education & Early Intervention,Zone 3 - West,Transport Related,33101,Home to School Trans,06/10/2011,3301362493,5348.5,Ridgeways Coaches Ltd
http://statistics.data.gov.uk/id/local-authority/38,Oxfordshire County Council,Education & Early Intervention,Zone 4 - Vale,Transport Related,33101,Home to School Trans,06/10/2011,3301362494,9215.28,Ridgeways Coaches Ltd
http://statistics.data.gov.uk/id/local-authority/38,Oxfordshire County Council,Education & Early Intervention,Out of County,Transport Related,33101,Home to School Trans,06/10/2011,3301362495,2305.54,Crown Cabs Travel Ltd
http://statistics.data.gov.uk/id/local-authority/38,Oxfordshire County Council,Education & Early Intervention,Out of County,Transport Related,33300,Transport (General),06/10/2011,3301362496,532.1,Crown Cabs Travel Ltd
http://statistics.data.gov.uk/id/local-authority/38,Oxfordshire County Council,Education & Early Intervention,Meadowbrook Transprt,Transport Related,33101,Home to School Trans,07/10/2011,3301362886,760,SJB Cars
http://statistics.data.gov.uk/id/local-authority/38,Oxfordshire County Council,Education & Early Intervention,Meadowbrook Transprt,Transport Related,33101,Home to School Trans,07/10/2011,3301362889,1553,SJB Cars
http://statistics.data.gov.uk/id/local-authority/38,Oxfordshire County Council,Education & Early Intervention,Oxford Sth SEN Trans,Transport Related,33101,Home to School Trans,07/10/2011,3301362890,600,SJB Cars
http://statistics.data.gov.uk/id/local-authority/38,Oxfordshire County Council,Education & Early Intervention,Zone 3 - West,Transport Related,33101,Home to School Trans,07/10/2011,3301362894,759.24,M & W Grantham
http://statistics.data.gov.uk/id/local-authority/38,Oxfordshire County Council,Education & Early Intervention,Zone 1 - North,Transport Related,33101,Home to School Trans,07/10/2011,3301362895,2503.65,Tex Cars Chauffeur Hire
http://statistics.data.gov.uk/id/local-authority/38,Oxfordshire County Council,Education & Early Intervention,Zone 2 - East,Transport Related,33101,Home to School Trans,07/10/2011,3301362907,15059.34,Walters Limousines
http://statistics.data.gov.uk/id/local-authority/38,Oxfordshire County Council,Education & Early Intervention,Zone 4 - Vale,Transport Related,33101,Home to School Trans,07/10/2011,3301362908,3060,Walters Limousines
http://statistics.data.gov.uk/id/local-authority/38,Oxfordshire County Council,Education & Early Intervention,Zone 5 - South,Transport Related,33101,Home to School Trans,07/10/2011,3301362909,7525.26,Walters Limousines
http://statistics.data.gov.uk/id/local-authority/38,Oxfordshire County Council,Education & Early Intervention,Zone 4 - Vale,Transport Related,33101,Home to School Trans,07/10/2011,3301362910,9664.46,Walters Limousines
http://statistics.data.gov.uk/id/local-authority/38,Oxfordshire County Council,Education & Early Intervention,Zone 1 - North,Transport Related,33101,Home to School Trans,07/10/2011,3301362911,6378.12,Walters Limousines
http://statistics.data.gov.uk/id/local-authority/38,Oxfordshire County Council,Education & Early Intervention,Oxford Nth SEN Trans,Transport Related,33101,Home to School Trans,07/10/2011,3301362912,2182.86,Lynkcabs
http://statistics.data.gov.uk/id/local-authority/38,Oxfordshire County Council,Education & Early Intervention,Oxford Nth SEN Trans,Transport Related,33300,Transport (General),07/10/2011,3301362913,474.66,Lynkcabs
http://statistics.data.gov.uk/id/local-authority/38,Oxfordshire County Council,Education & Early Intervention,Zone 3 - West,Transport Related,33101,Home to School Trans,07/10/2011,3301362914,1746,Lynkcabs
http://statistics.data.gov.uk/id/local-authority/38,Oxfordshire County Council,Education & Early Intervention,Zone 5 - South,Transport Related,33101,Home to School Trans,07/10/2011,3301362915,1337.04,Lynkcabs
http://statistics.data.gov.uk/id/local-authority/38,Oxfordshire County Council,Education & Early Intervention,Zone 2 - East,Transport Related,33101,Home to School Trans,07/10/2011,3301362916,1346.04,Lynkcabs
http://statistics.data.gov.uk/id/local-authority/38,Oxfordshire County Council,Education & Early Intervention,Zone 2 - East,Transport Related,33101,Home to School Trans,07/10/2011,3301362917,2027.68,Lynkcabs
http://statistics.data.gov.uk/id/local-authority/38,Oxfordshire County Council,Education & Early Intervention,Zone 2 - East,Transport Related,33101,Home to School Trans,07/10/2011,3301362918,1321.64,Lynkcabs
http://statistics.data.gov.uk/id/local-authority/38,Oxfordshire County Council,Education & Early Intervention,Zone 5 - South,Transport Related,33101,Home to School Trans,07/10/2011,3301362919,1787.76,Lynkcabs
http://statistics.data.gov.uk/id/local-authority/38,Oxfordshire County Council,Education & Early Intervention,Zone 5 - South,Transport Related,33101,Home to School Trans,07/10/2011,3301362920,2102.4,Lynkcabs
http://statistics.data.gov.uk/id/local-authority/38,Oxfordshire County Council,Education & Early Intervention,Zone 5 - South,Transport Related,33101,Home to School Trans,07/10/2011,3301362921,1953,Lynkcabs
http://statistics.data.gov.uk/id/local-authority/38,Oxfordshire County Council,Education & Early Intervention,Zone 5 - South,Transport Related,33101,Home to School Trans,07/10/2011,3301362922,6903.53,Red Rose Travel
http://statistics.data.gov.uk/id/local-authority/38,Oxfordshire County Council,Education & Early Intervention,Out of County,Transport Related,33101,Home to School Trans,07/10/2011,3301362923,1550,Farhad Fakhraee
http://statistics.data.gov.uk/id/local-authority/38,Oxfordshire County Council,Education & Early Intervention,Banbury SEN Trans,Transport Related,33101,Home to School Trans,07/10/2011,3301362926,709.41,Quality Care & Travel
http://statistics.data.gov.uk/id/local-authority/38,Oxfordshire County Council,Education & Early Intervention,Zone 4 - Vale,Transport Related,33101,Home to School Trans,07/10/2011,3301362927,4050.8,Pearces Private Hire Ltd
http://statistics.data.gov.uk/id/local-authority/38,Oxfordshire County Council,Education & Early Intervention,Zone 5 - South,Transport Related,33101,Home to School Trans,07/10/2011,3301362928,3035.7,Pearces Private Hire Ltd
http://statistics.data.gov.uk/id/local-authority/38,Oxfordshire County Council,Education & Early Intervention,Zone 1 - North,Transport Related,33101,Home to School Trans,07/10/2011,3301362932,546,Phoenix Cars
http://statistics.data.gov.uk/id/local-authority/38,Oxfordshire County Council,Education & Early Intervention,Zone 1 - North,Transport Related,33101,Home to School Trans,07/10/2011,3301362933,504,Phoenix Cars
http://statistics.data.gov.uk/id/local-authority/38,Oxfordshire County Council,Education & Early Intervention,Zone 3 - West,Transport Related,33101,Home to School Trans,07/10/2011,3301362934,2375,All Seasons
http://statistics.data.gov.uk/id/local-authority/38,Oxfordshire County Council,Education & Early Intervention,Zone 4 - Vale,Transport Related,33101,Home to School Trans,07/10/2011,3301362935,2940.66,Chapel Cars Kevin B Cross
http://statistics.data.gov.uk/id/local-authority/38,Oxfordshire County Council,Education & Early Intervention,Out of County,Transport Related,33101,Home to School Trans,07/10/2011,3301362937,1314.36,Express Taxis
http://statistics.data.gov.uk/id/local-authority/38,Oxfordshire County Council,Education & Early Intervention,Wantage SEN Trans,Transport Related,33101,Home to School Trans,07/10/2011,3301362938,3794.72,Grove Cabs
http://statistics.data.gov.uk/id/local-authority/38,Oxfordshire County Council,Education & Early Intervention,Wantage SEN Trans,Transport Related,33300,Transport (General),07/10/2011,3301362939,1110.96,Grove Cabs
http://statistics.data.gov.uk/id/local-authority/38,Oxfordshire County Council,SCS Pooled Budgets,LD CMPB - South Transport,Transport Related,34200,Client Journeys,07/10/2011,3301362940,450,Grove Cabs
http://statistics.data.gov.uk/id/local-authority/38,Oxfordshire County Council,Education & Early Intervention,FE Special Trans,Transport Related,33101,Home to School Trans,07/10/2011,3301362941,1050,Grove Cabs
http://statistics.data.gov.uk/id/local-authority/38,Oxfordshire County Council,Highways & Transport,"Electrical NP Rds, Street Lighting",Private Contractors,56400,Major Contracts,07/10/2011,3301362962,845.18,Southern Electric Contracting Ltd.
http://statistics.data.gov.uk/id/local-authority/38,Oxfordshire County Council,Highways & Transport,"Electrical NP Rds, Street Lighting",Private Contractors,56400,Major Contracts,07/10/2011,3301362964,844.78,Southern Electric Contracting Ltd.
http://statistics.data.gov.uk/id/local-authority/38,Oxfordshire County Council,Highways & Transport,"Electrical NP Rds, Street Lighting",Private Contractors,56400,Major Contracts,07/10/2011,3301362965,707.43,Southern Electric Contracting Ltd.
http://statistics.data.gov.uk/id/local-authority/38,Oxfordshire County Council,Highways & Transport,"Electrical NP Rds, Street Lighting",Private Contractors,56400,Major Contracts,07/10/2011,3301362966,4818.6,Southern Electric Contracting Ltd.
http://statistics.data.gov.uk/id/local-authority/38,Oxfordshire County Council,SCS Pooled Budgets,Community Support Budget - Thame,Other Agency and Contracted Services,57300,Home Support (Ext) OS&HCD,07/10/2011,3301363004,889.3,Risborough Carers Ltd
http://statistics.data.gov.uk/id/local-authority/38,Oxfordshire County Council,Law & Governance Services,Legal Services,Expenses,46500,Legal Fees & Exp,07/10/2011,3301363005,1900,HMCTS
http://statistics.data.gov.uk/id/local-authority/38,Oxfordshire County Council,Law & Governance Services,Legal Services,Expenses,46500,Legal Fees & Exp,07/10/2011,3301363054,2225,HMCTS
http://statistics.data.gov.uk/id/local-authority/38,Oxfordshire County Council,Highways & Transport,"Electrical NP Rds, Street Lighting",Private Contractors,56400,Major Contracts,13/10/2011,3301363057,1961.94,Urbis Lighting Ltd
http://statistics.data.gov.uk/id/local-authority/38,Oxfordshire County Council,Law & Governance Services,Legal Services,Expenses,46500,Legal Fees & Exp,07/10/2011,3301363086,1900,HMCTS
http://statistics.data.gov.uk/id/local-authority/38,Oxfordshire County Council,SCS Pooled Budgets,Community Support Budget - Witney,Other Agency and Contracted Services,57401,Direct Payments,07/10/2011,3301363335,1980,A4e Management Ltd Week 3
http://statistics.data.gov.uk/id/local-authority/38,Oxfordshire County Council,SCS Pooled Budgets,Community Support Budget - Chipping Nort,Other Agency and Contracted Services,57401,Direct Payments,07/10/2011,3301363335,848.57,A4e Management Ltd Week 3
http://statistics.data.gov.uk/id/local-authority/38,Oxfordshire County Council,SCS Pooled Budgets,Carers Break / Respite Project,Other Agency and Contracted Services,57401,Direct Payments,07/10/2011,3301363703,750,REDACTED PERSONAL DATA
http://statistics.data.gov.uk/id/local-authority/38,Oxfordshire County Council,SCS Pooled Budgets,Carers Break / Respite Project,Other Agency and Contracted Services,57401,Direct Payments,07/10/2011,3301363704,750,REDACTED PERSONAL DATA
http://statistics.data.gov.uk/id/local-authority/38,Oxfordshire County Council,SCS Pooled Budgets,Carers Break / Respite Project,Other Agency and Contracted Services,57401,Direct Payments,07/10/2011,3301363705,750,REDACTED PERSONAL DATA
http://statistics.data.gov.uk/id/local-authority/38,Oxfordshire County Council,Social & Community Services,PD Comm Supp Purchasg County Carers Grt,Other Agency and Contracted Services,57401,Direct Payments,07/10/2011,3301363706,600,REDACTED PERSONAL DATA
http://statistics.data.gov.uk/id/local-authority/38,Oxfordshire County Council,SCS Pooled Budgets,Life Of Your Own Grant City,Other Agency and Contracted Services,57401,Direct Payments,07/10/2011,3301363708,600,REDACTED PERSONAL DATA
http://statistics.data.gov.uk/id/local-authority/38,Oxfordshire County Council,SCS Pooled Budgets,Life Of Your Own Grant South,Other Agency and Contracted Services,57401,Direct Payments,07/10/2011,3301363709,600,REDACTED PERSONAL DATA
http://statistics.data.gov.uk/id/local-authority/38,Oxfordshire County Council,Social & Community Services,Residential Purchasing Carers Grant,Other Agency and Contracted Services,57401,Direct Payments,07/10/2011,3301363710,600,REDACTED PERSONAL DATA
http://statistics.data.gov.uk/id/local-authority/38,Oxfordshire County Council,SCS Pooled Budgets,Community Support Budget - Abingdon,Other Agency and Contracted Services,57401,Direct Payments,07/10/2011,3301363711,509.96,REDACTED PERSONAL DATA
http://statistics.data.gov.uk/id/local-authority/38,Oxfordshire County Council,Social & Community Services,Residential Purchasing Carers Grant,Other Agency and Contracted Services,57401,Direct Payments,07/10/2011,3301363713,600,REDACTED PERSONAL DATA
http://statistics.data.gov.uk/id/local-authority/38,Oxfordshire County Council,SCS Pooled Budgets,Carers Break / Respite Project,Other Agency and Contracted Services,57401,Direct Payments,07/10/2011,3301363714,750,REDACTED PERSONAL DATA
http://statistics.data.gov.uk/id/local-authority/38,Oxfordshire County Council,SCS Pooled Budgets,Carers Break / Respite Project,Other Agency and Contracted Services,57401,Direct Payments,07/10/2011,3301363715,750,REDACTED PERSONAL DATA
http://statistics.data.gov.uk/id/local-authority/38,Oxfordshire County Council,SCS Pooled Budgets,Carers Break / Respite Project,Other Agency and Contracted Services,57401,Direct Payments,07/10/2011,3301363716,750,REDACTED PERSONAL DATA
http://statistics.data.gov.uk/id/local-authority/38,Oxfordshire County Council,SCS Pooled Budgets,Carers Break / Respite Project,Other Agency and Contracted Services,57401,Direct Payments,07/10/2011,3301363717,750,REDACTED PERSONAL DATA
http://statistics.data.gov.uk/id/local-authority/38,Oxfordshire County Council,SCS Pooled Budgets,Carers Break / Respite Project,Other Agency and Contracted Services,57401,Direct Payments,07/10/2011,3301363719,750,REDACTED PERSONAL DATA
http://statistics.data.gov.uk/id/local-authority/38,Oxfordshire County Council,SCS Pooled Budgets,Carers Break / Respite Project,Other Agency and Contracted Services,57401,Direct Payments,07/10/2011,3301363720,750,REDACTED PERSONAL DATA
http://statistics.data.gov.uk/id/local-authority/38,Oxfordshire County Council,SCS Pooled Budgets,Life Of Your Own Grant South,Other Agency and Contracted Services,57401,Direct Payments,07/10/2011,3301363721,500,REDACTED PERSONAL DATA
http://statistics.data.gov.uk/id/local-authority/38,Oxfordshire County Council,SCS Pooled Budgets,Carers Break / Respite Project,Other Agency and Contracted Services,57401,Direct Payments,07/10/2011,3301363722,750,REDACTED PERSONAL DATA
http://statistics.data.gov.uk/id/local-authority/38,Oxfordshire County Council,SCS Pooled Budgets,Carers Break / Respite Project,Other Agency and Contracted Services,57401,Direct Payments,07/10/2011,3301363723,750,REDACTED PERSONAL DATA
http://statistics.data.gov.uk/id/local-authority/38,Oxfordshire County Council,SCS Pooled Budgets,Carers Break / Respite Project,Other Agency and Contracted Services,57401,Direct Payments,07/10/2011,3301363725,750,REDACTED PERSONAL DATA
http://statistics.data.gov.uk/id/local-authority/38,Oxfordshire County Council,Education & Early Intervention,Help with Childcare Costs (City),Grants and Subscriptions,47150,Grants to Individuals,10/10/2011,3301363875,500,Parasol Project
http://statistics.data.gov.uk/id/local-authority/38,Oxfordshire County Council,Highways & Transport,Bridges General,Private Contractors,56400,Major Contracts,10/10/2011,3301363889,1255,Custom Pump Services
http://statistics.data.gov.uk/id/local-authority/38,Oxfordshire County Council,Children's Social Care,Childrens Home Support,Other Agency and Contracted Services,57401,Direct Payments,10/10/2011,3301363890,527.77,REDACTED PERSONAL DATA
http://statistics.data.gov.uk/id/local-authority/38,Oxfordshire County Council,Education & Early Intervention,Learner Grants,"Equipment, Furniture and Materials",41100,Educational Supplies,10/10/2011,3301363891,1120,Grovelands Park Pre-School
http://statistics.data.gov.uk/id/local-authority/38,Oxfordshire County Council,Education & Early Intervention,Learner Grants,"Equipment, Furniture and Materials",41100,Educational Supplies,10/10/2011,3301363892,831,Kaleidoscope Children's Centre
http://statistics.data.gov.uk/id/local-authority/38,Oxfordshire County Council,Education & Early Intervention,Learner Grants,"Equipment, Furniture and Materials",41100,Educational Supplies,10/10/2011,3301363902,714,Culham Pre-School
http://statistics.data.gov.uk/id/local-authority/38,Oxfordshire County Council,SCS Pooled Budgets,PD Comm Supp Purchasg Budget - Witney,Other Agency and Contracted Services,57401,Direct Payments,10/10/2011,3301363903,1777.6,A4e Management Ltd Week 1
http://statistics.data.gov.uk/id/local-authority/38,Oxfordshire County Council,Education & Early Intervention,Learner Grants,"Equipment, Furniture and Materials",41100,Educational Supplies,10/10/2011,3301363904,1240,Hagbourne Pre-School
http://statistics.data.gov.uk/id/local-authority/38,Oxfordshire County Council,Education & Early Intervention,Learner Grants,"Equipment, Furniture and Materials",41100,Educational Supplies,21/10/2011,3301363905,824,STEPPING STONESPRE-SCHOOL
http://statistics.data.gov.uk/id/local-authority/38,Oxfordshire County Council,Education & Early Intervention,Learner Grants,"Equipment, Furniture and Materials",41100,Educational Supplies,10/10/2011,3301363906,714,The Village Nursery
http://statistics.data.gov.uk/id/local-authority/38,Oxfordshire County Council,Social & Community Services,Residential Purchasing Carers Grant,Other Agency and Contracted Services,57401,Direct Payments,10/10/2011,3301363935,600,REDACTED PERSONAL DATA
http://statistics.data.gov.uk/id/local-authority/38,Oxfordshire County Council,SCS Pooled Budgets,Carers Break / Respite Project,Other Agency and Contracted Services,57401,Direct Payments,10/10/2011,3301363936,750,REDACTED PERSONAL DATA
http://statistics.data.gov.uk/id/local-authority/38,Oxfordshire County Council,Law & Governance Services,Legal Services,Expenses,46500,Legal Fees & Exp,10/10/2011,3301363951,1900,HMCTS
http://statistics.data.gov.uk/id/local-authority/38,Oxfordshire County Council,Social & Community Services,"LD Day Services, Charlton Day Servs",Transport Related,33103,Transport to Centres,10/10/2011,3301364427,904,Prestige Cars
http://statistics.data.gov.uk/id/local-authority/38,Oxfordshire County Council,SCS Pooled Budgets,LD Team budget (CMPB) - City,Transport Related,33300,Transport (General),10/10/2011,3301364435,2273.68,D and A Nichols
http://statistics.data.gov.uk/id/local-authority/38,Oxfordshire County Council,SCS Pooled Budgets,PD Comm Supp Purchasg Budget - Abingdon,Transport Related,34200,Client Journeys,10/10/2011,3301364445,510,Oxon Transport Services Limited t/a
http://statistics.data.gov.uk/id/local-authority/38,Oxfordshire County Council,Children's Social Care,Transport costs,Transport Related,33300,Transport (General),10/10/2011,3301364452,677,Oxon Transport Services Limited t/a
http://statistics.data.gov.uk/id/local-authority/38,Oxfordshire County Council,Children's Social Care,Transport costs,Transport Related,33101,Home to School Trans,10/10/2011,3301364453,432,Oxon Transport Services Limited t/a
http://statistics.data.gov.uk/id/local-authority/38,Oxfordshire County Council,SCS Pooled Budgets,LD Team budget (CMPB) South,Transport Related,33300,Transport (General),10/10/2011,3301364457,656.72,Hills Taxis
http://statistics.data.gov.uk/id/local-authority/38,Oxfordshire County Council,SCS Pooled Budgets,LD Team budget (CMPB) South,Transport Related,33300,Transport (General),10/10/2011,3301364458,1459.92,Hills Taxis
http://statistics.data.gov.uk/id/local-authority/38,Oxfordshire County Council,Children's Social Care,Transport costs,Transport Related,33101,Home to School Trans,10/10/2011,3301364461,992,Browns Taxis
http://statistics.data.gov.uk/id/local-authority/38,Oxfordshire County Council,SCS Pooled Budgets,LD Team budget (CMPB) - City,Transport Related,33300,Transport (General),10/10/2011,3301364462,1075,Luxicars Ltd
http://statistics.data.gov.uk/id/local-authority/38,Oxfordshire County Council,Social & Community Services,LD Day Services Cherwell Day Servs,Transport Related,33103,Transport to Centres,10/10/2011,3301364465,932.14,Oxfordshire Learning Disability NHS
http://statistics.data.gov.uk/id/local-authority/38,Oxfordshire County Council,Social & Community Services,"LD Day Services, Abingdon Day Servs",Transport Related,33103,Transport to Centres,10/10/2011,3301364468,688.6,Abingdon Taxis
http://statistics.data.gov.uk/id/local-authority/38,Oxfordshire County Council,Social & Community Services,"LD Day Services, Abingdon Day Servs",Transport Related,33103,Transport to Centres,10/10/2011,3301364469,1376.98,Abingdon Taxis
http://statistics.data.gov.uk/id/local-authority/38,Oxfordshire County Council,Children's Social Care,Transport costs,Transport Related,33101,Home to School Trans,10/10/2011,3301364471,2181,Ash Taxis
http://statistics.data.gov.uk/id/local-authority/38,Oxfordshire County Council,Children's Social Care,Transport costs,Transport Related,33300,Transport (General),10/10/2011,3301364472,565,Ash Taxis
http://statistics.data.gov.uk/id/local-authority/38,Oxfordshire County Council,Children's Social Care,Transport costs,Transport Related,33101,Home to School Trans,10/10/2011,3301364478,468,Black and White Taxis
http://statistics.data.gov.uk/id/local-authority/38,Oxfordshire County Council,Children's Social Care,Transport costs,Transport Related,33300,Transport (General),10/10/2011,3301364479,1302,Black and White Taxis
http://statistics.data.gov.uk/id/local-authority/38,Oxfordshire County Council,SCS Pooled Budgets,LD Team budget (CMPB) South,Transport Related,33300,Transport (General),10/10/2011,3301364486,524,Transpiration Limited
http://statistics.data.gov.uk/id/local-authority/38,Oxfordshire County Council,SCS Pooled Budgets,LD Team budget (CMPB) South,Transport Related,33300,Transport (General),10/10/2011,3301364488,525.78,Henley Taxis Ltd
http://statistics.data.gov.uk/id/local-authority/38,Oxfordshire County Council,Children's Social Care,Transport costs,Transport Related,33101,Home to School Trans,10/10/2011,3301364490,891,Webb's of Wantage Ltd
http://statistics.data.gov.uk/id/local-authority/38,Oxfordshire County Council,SCS Pooled Budgets,LD Team budget (CMPB) North,Transport Related,33300,Transport (General),10/10/2011,3301364508,986,Black and White Taxis
http://statistics.data.gov.uk/id/local-authority/38,Oxfordshire County Council,Children's Social Care,Transport costs,Transport Related,33101,Home to School Trans,10/10/2011,3301364516,450,Excelsior Taxis
http://statistics.data.gov.uk/id/local-authority/38,Oxfordshire County Council,Children's Social Care,Transport costs,Transport Related,33101,Home to School Trans,10/10/2011,3301364517,450,Excelsior Taxis
http://statistics.data.gov.uk/id/local-authority/38,Oxfordshire County Council,Children's Social Care,Agency Residential - Disabilities,Other Agency and Contracted Services,57801,Independent Fostering Agencies,10/10/2011,3301364843,5580,Barnardo Services Ltd
http://statistics.data.gov.uk/id/local-authority/38,Oxfordshire County Council,Property Asset Management,Oxford Bayard Hill,Catering,42106,CFM Catering Food & Consumables,11/10/2011,3301365297,510.37,3663 CARD ACCOUNT
http://statistics.data.gov.uk/id/local-authority/38,Oxfordshire County Council,Education & Early Intervention,Oxford Nth SEN Trans,Transport Related,33101,Home to School Trans,11/10/2011,3301365618,1350,C S Comley
http://statistics.data.gov.uk/id/local-authority/38,Oxfordshire County Council,Education & Early Intervention,Oxford Nth SEN Trans,Transport Related,33300,Transport (General),11/10/2011,3301365619,522,C S Comley
http://statistics.data.gov.uk/id/local-authority/38,Oxfordshire County Council,Education & Early Intervention,Wantage SEN Trans,Transport Related,33101,Home to School Trans,11/10/2011,3301365620,1040,C S Comley
http://statistics.data.gov.uk/id/local-authority/38,Oxfordshire County Council,Education & Early Intervention,Wantage SEN Trans,Transport Related,33101,Home to School Trans,11/10/2011,3301365622,750,C S Comley
http://statistics.data.gov.uk/id/local-authority/38,Oxfordshire County Council,Education & Early Intervention,Meadowbrook Transprt,Transport Related,33101,Home to School Trans,11/10/2011,3301365624,2264,C S Comley
http://statistics.data.gov.uk/id/local-authority/38,Oxfordshire County Council,Education & Early Intervention,Zone 5 - South,Transport Related,33101,Home to School Trans,11/10/2011,3301365628,11066.19,Express Taxis
http://statistics.data.gov.uk/id/local-authority/38,Oxfordshire County Council,Education & Early Intervention,Zone 4 - Vale,Transport Related,33101,Home to School Trans,11/10/2011,3301365629,2629.08,Express Taxis
http://statistics.data.gov.uk/id/local-authority/38,Oxfordshire County Council,Education & Early Intervention,Zone 2 - East,Transport Related,33101,Home to School Trans,11/10/2011,3301365630,4811.41,Express Taxis
http://statistics.data.gov.uk/id/local-authority/38,Oxfordshire County Council,Education & Early Intervention,Witney SEN Trans,Transport Related,33101,Home to School Trans,11/10/2011,3301365631,1517.86,Excel Cars
http://statistics.data.gov.uk/id/local-authority/38,Oxfordshire County Council,Education & Early Intervention,Witney SEN Trans,Transport Related,33300,Transport (General),11/10/2011,3301365632,445.93,Excel Cars
http://statistics.data.gov.uk/id/local-authority/38,Oxfordshire County Council,Education & Early Intervention,Zone 4 - Vale,Transport Related,33101,Home to School Trans,11/10/2011,3301365633,1740.8,Lynkcabs
http://statistics.data.gov.uk/id/local-authority/38,Oxfordshire County Council,Education & Early Intervention,Wantage SEN Trans,Transport Related,33101,Home to School Trans,11/10/2011,3301365634,1915.38,Webb's of Wantage Ltd
http://statistics.data.gov.uk/id/local-authority/38,Oxfordshire County Council,Education & Early Intervention,Wantage SEN Trans,Transport Related,33300,Transport (General),11/10/2011,3301365635,474.48,Webb's of Wantage Ltd
http://statistics.data.gov.uk/id/local-authority/38,Oxfordshire County Council,Education & Early Intervention,Wantage SEN Trans,Transport Related,33101,Home to School Trans,11/10/2011,3301365636,1652.4,Webb's of Wantage Ltd
http://statistics.data.gov.uk/id/local-authority/38,Oxfordshire County Council,Education & Early Intervention,Wantage SEN Trans,Transport Related,33300,Transport (General),11/10/2011,3301365637,569.52,Webb's of Wantage Ltd
http://statistics.data.gov.uk/id/local-authority/38,Oxfordshire County Council,Education & Early Intervention,Oxford Nth SEN Trans,Transport Related,33101,Home to School Trans,11/10/2011,3301365638,2065.5,Webb's of Wantage Ltd
http://statistics.data.gov.uk/id/local-authority/38,Oxfordshire County Council,Education & Early Intervention,Oxford Nth SEN Trans,Transport Related,33300,Transport (General),11/10/2011,3301365639,563.4,Webb's of Wantage Ltd
http://statistics.data.gov.uk/id/local-authority/38,Oxfordshire County Council,Education & Early Intervention,Zone 4 - Vale,Transport Related,33101,Home to School Trans,11/10/2011,3301365640,570,Webb's of Wantage Ltd
http://statistics.data.gov.uk/id/local-authority/38,Oxfordshire County Council,Education & Early Intervention,Oxford Nth SEN Trans,Transport Related,33101,Home to School Trans,11/10/2011,3301365641,1710,Webb's of Wantage Ltd
http://statistics.data.gov.uk/id/local-authority/38,Oxfordshire County Council,Education & Early Intervention,Zone 3 - West,Transport Related,33101,Home to School Trans,11/10/2011,3301365643,510,Charlie's Taxis Ltd
http://statistics.data.gov.uk/id/local-authority/38,Oxfordshire County Council,Education & Early Intervention,Zone 3 - West,Transport Related,33101,Home to School Trans,11/10/2011,3301365645,1670,Charlie's Taxis Ltd
http://statistics.data.gov.uk/id/local-authority/38,Oxfordshire County Council,Education & Early Intervention,Oxford Nth SEN Trans,Transport Related,33101,Home to School Trans,11/10/2011,3301365646,1457.82,Charlie's Taxis Ltd
http://statistics.data.gov.uk/id/local-authority/38,Oxfordshire County Council,Education & Early Intervention,Zone 1 - North,Transport Related,33101,Home to School Trans,11/10/2011,3301365647,1140,Charlie's Taxis Ltd
http://statistics.data.gov.uk/id/local-authority/38,Oxfordshire County Council,Education & Early Intervention,Temporary Transport,Transport Related,33101,Home to School Trans,11/10/2011,3301365650,540,Henley Taxis Ltd
http://statistics.data.gov.uk/id/local-authority/38,Oxfordshire County Council,Education & Early Intervention,Zone 5 - South,Transport Related,33101,Home to School Trans,11/10/2011,3301365651,750.96,Henley Taxis Ltd
http://statistics.data.gov.uk/id/local-authority/38,Oxfordshire County Council,Education & Early Intervention,Zone 5 - South,Transport Related,33101,Home to School Trans,11/10/2011,3301365652,2131.2,Henley Taxis Ltd
http://statistics.data.gov.uk/id/local-authority/38,Oxfordshire County Council,Education & Early Intervention,Zone 5 - South,Transport Related,33101,Home to School Trans,11/10/2011,3301365653,886.72,Henley Taxis Ltd
http://statistics.data.gov.uk/id/local-authority/38,Oxfordshire County Council,Education & Early Intervention,Zone 5 - South,Transport Related,33101,Home to School Trans,11/10/2011,3301365655,586.5,Henley Taxis Ltd
http://statistics.data.gov.uk/id/local-authority/38,Oxfordshire County Council,Education & Early Intervention,Zone 5 - South,Transport Related,33101,Home to School Trans,11/10/2011,3301365656,807.38,Henley Taxis Ltd
http://statistics.data.gov.uk/id/local-authority/38,Oxfordshire County Council,Education & Early Intervention,Zone 2 - East,Transport Related,33101,Home to School Trans,11/10/2011,3301365659,17668.55,Charlton-On-Otmoor Services
http://statistics.data.gov.uk/id/local-authority/38,Oxfordshire County Council,Education & Early Intervention,Zone 5 - South,Transport Related,33101,Home to School Trans,11/10/2011,3301365660,13647.06,Charlton-On-Otmoor Services
http://statistics.data.gov.uk/id/local-authority/38,Oxfordshire County Council,Education & Early Intervention,Mainstream Misc,Transport Related,34102,Pupil Fares Reclaima,11/10/2011,3301365661,912,REDACTED PERSONAL DATA
http://statistics.data.gov.uk/id/local-authority/38,Oxfordshire County Council,Education & Early Intervention,Oxford Sth SEN Trans,Transport Related,33101,Home to School Trans,11/10/2011,3301365663,1166.54,Sonia Lees
http://statistics.data.gov.uk/id/local-authority/38,Oxfordshire County Council,Education & Early Intervention,Zone 5 - South,Transport Related,33101,Home to School Trans,11/10/2011,3301365664,3240,Motts Coaches (Aylesbury) Ltd
http://statistics.data.gov.uk/id/local-authority/38,Oxfordshire County Council,Education & Early Intervention,Zone 1 - North,Transport Related,33101,Home to School Trans,11/10/2011,3301365665,3005.42,Bakers Commercial Services Ltd
http://statistics.data.gov.uk/id/local-authority/38,Oxfordshire County Council,Education & Early Intervention,S'Common SEN Trans,Transport Related,33101,Home to School Trans,11/10/2011,3301365666,1708.38,Burghfield Mini Coaches Ltd
http://statistics.data.gov.uk/id/local-authority/38,Oxfordshire County Council,Education & Early Intervention,Zone 5 - South,Transport Related,33101,Home to School Trans,11/10/2011,3301365668,2467.44,Burghfield Mini Coaches Ltd
http://statistics.data.gov.uk/id/local-authority/38,Oxfordshire County Council,Education & Early Intervention,Zone 5 - South,Transport Related,33101,Home to School Trans,11/10/2011,3301365669,2481.02,Burghfield Mini Coaches Ltd
http://statistics.data.gov.uk/id/local-authority/38,Oxfordshire County Council,Education & Early Intervention,Zone 5 - South,Transport Related,33101,Home to School Trans,11/10/2011,3301365670,3100.99,Burghfield Mini Coaches Ltd
http://statistics.data.gov.uk/id/local-authority/38,Oxfordshire County Council,Education & Early Intervention,Zone 5 - South,Transport Related,33101,Home to School Trans,11/10/2011,3301365671,2546.1,Burghfield Mini Coaches Ltd
http://statistics.data.gov.uk/id/local-authority/38,Oxfordshire County Council,Education & Early Intervention,Zone 1 - North,Transport Related,33101,Home to School Trans,11/10/2011,3301365672,2277.9,The Claydon Fox
http://statistics.data.gov.uk/id/local-authority/38,Oxfordshire County Council,Education & Early Intervention,Oxford Nth SEN Trans,Transport Related,33101,Home to School Trans,11/10/2011,3301365674,760,Kit Mobility Taxis
http://statistics.data.gov.uk/id/local-authority/38,Oxfordshire County Council,Education & Early Intervention,Zone 5 - South,Transport Related,33101,Home to School Trans,11/10/2011,3301365676,3917.34,Kingfisher Mini Coaches
http://statistics.data.gov.uk/id/local-authority/38,Oxfordshire County Council,Education & Early Intervention,Zone 5 - South,Transport Related,33101,Home to School Trans,11/10/2011,3301365677,1566.9,Kingfisher Mini Coaches
http://statistics.data.gov.uk/id/local-authority/38,Oxfordshire County Council,Education & Early Intervention,Oxford Sth SEN Trans,Transport Related,33101,Home to School Trans,11/10/2011,3301365678,1178.64,Diverse Travel
http://statistics.data.gov.uk/id/local-authority/38,Oxfordshire County Council,Education & Early Intervention,Oxford Sth SEN Trans,Transport Related,33300,Transport (General),11/10/2011,3301365679,450,Diverse Travel
http://statistics.data.gov.uk/id/local-authority/38,Oxfordshire County Council,Education & Early Intervention,Oxford Sth SEN Trans,Transport Related,33101,Home to School Trans,11/10/2011,3301365680,1440,Diverse Travel
http://statistics.data.gov.uk/id/local-authority/38,Oxfordshire County Council,Education & Early Intervention,Zone 2 - East,Transport Related,33101,Home to School Trans,11/10/2011,3301365683,506.88,001 Alpha Cars Limited
http://statistics.data.gov.uk/id/local-authority/38,Oxfordshire County Council,Education & Early Intervention,Temporary Transport,Transport Related,33101,Home to School Trans,11/10/2011,3301365684,511.52,001 Alpha Cars Limited
http://statistics.data.gov.uk/id/local-authority/38,Oxfordshire County Council,Education & Early Intervention,Oxford Nth SEN Trans,Transport Related,33101,Home to School Trans,11/10/2011,3301365686,844.92,001 Alpha Cars Limited
http://statistics.data.gov.uk/id/local-authority/38,Oxfordshire County Council,Education & Early Intervention,Zone 2 - East,Transport Related,33101,Home to School Trans,11/10/2011,3301365687,576,001 Alpha Cars Limited
http://statistics.data.gov.uk/id/local-authority/38,Oxfordshire County Council,Education & Early Intervention,Zone 2 - East,Transport Related,33101,Home to School Trans,11/10/2011,3301365689,684,Continental Chauffeurs
http://statistics.data.gov.uk/id/local-authority/38,Oxfordshire County Council,Education & Early Intervention,Zone 5 - South,Transport Related,33101,Home to School Trans,11/10/2011,3301365690,2474.82,Reading Wheelchair Travel Ltd
http://statistics.data.gov.uk/id/local-authority/38,Oxfordshire County Council,Education & Early Intervention,Zone 5 - South,Transport Related,33101,Home to School Trans,11/10/2011,3301365691,1924.56,Reading Wheelchair Travel Ltd
http://statistics.data.gov.uk/id/local-authority/38,Oxfordshire County Council,Education & Early Intervention,Zone 5 - South,Transport Related,33101,Home to School Trans,11/10/2011,3301365692,1877.76,Reading Wheelchair Travel Ltd
http://statistics.data.gov.uk/id/local-authority/38,Oxfordshire County Council,Education & Early Intervention,Zone 3 - West,Transport Related,33101,Home to School Trans,11/10/2011,3301365693,807.84,Evenlode Taxis
http://statistics.data.gov.uk/id/local-authority/38,Oxfordshire County Council,Education & Early Intervention,Zone 3 - West,Transport Related,33101,Home to School Trans,11/10/2011,3301365694,793.8,Evenlode Taxis
http://statistics.data.gov.uk/id/local-authority/38,Oxfordshire County Council,Education & Early Intervention,Zone 4 - Vale,Transport Related,33101,Home to School Trans,11/10/2011,3301365695,1343.49,Evenlode Taxis
http://statistics.data.gov.uk/id/local-authority/38,Oxfordshire County Council,Education & Early Intervention,Temporary Transport,Transport Related,33101,Home to School Trans,11/10/2011,3301365697,1107.72,Evenlode Taxis
http://statistics.data.gov.uk/id/local-authority/38,Oxfordshire County Council,Education & Early Intervention,Zone 5 - South,Transport Related,33101,Home to School Trans,11/10/2011,3301365698,2600.46,Thames Travel (Wallingford) Ltd
http://statistics.data.gov.uk/id/local-authority/38,Oxfordshire County Council,Education & Early Intervention,Abingdon SEN Trans,Transport Related,33101,Home to School Trans,11/10/2011,3301365699,1764,Harolds Cars
http://statistics.data.gov.uk/id/local-authority/38,Oxfordshire County Council,Education & Early Intervention,Abingdon SEN Trans,Transport Related,33300,Transport (General),11/10/2011,3301365700,956,Harolds Cars
http://statistics.data.gov.uk/id/local-authority/38,Oxfordshire County Council,Education & Early Intervention,Wantage SEN Trans,Transport Related,33101,Home to School Trans,11/10/2011,3301365701,987.12,Harolds Cars
http://statistics.data.gov.uk/id/local-authority/38,Oxfordshire County Council,Education & Early Intervention,Wantage SEN Trans,Transport Related,33300,Transport (General),11/10/2011,3301365702,569.52,Harolds Cars
http://statistics.data.gov.uk/id/local-authority/38,Oxfordshire County Council,Education & Early Intervention,Zone 4 - Vale,Transport Related,33101,Home to School Trans,11/10/2011,3301365703,2693.7,Harolds Cars
http://statistics.data.gov.uk/id/local-authority/38,Oxfordshire County Council,Education & Early Intervention,Zone 5 - South,Transport Related,33101,Home to School Trans,11/10/2011,3301365704,648.57,Harolds Cars
http://statistics.data.gov.uk/id/local-authority/38,Oxfordshire County Council,Education & Early Intervention,Didcot SEN Trans,Transport Related,33101,Home to School Trans,11/10/2011,3301365705,437.5,Harolds Cars
http://statistics.data.gov.uk/id/local-authority/38,Oxfordshire County Council,Education & Early Intervention,Oxford Sth SEN Trans,Transport Related,33101,Home to School Trans,11/10/2011,3301365709,1276.92,Thame & Chinnor Taxis Ltd
http://statistics.data.gov.uk/id/local-authority/38,Oxfordshire County Council,Education & Early Intervention,Out of County,Transport Related,33101,Home to School Trans,11/10/2011,3301365710,826.72,Thame & Chinnor Taxis Ltd
http://statistics.data.gov.uk/id/local-authority/38,Oxfordshire County Council,Education & Early Intervention,Zone 5 - South,Transport Related,33101,Home to School Trans,11/10/2011,3301365711,1313.47,Thame & Chinnor Taxis Ltd
http://statistics.data.gov.uk/id/local-authority/38,Oxfordshire County Council,Education & Early Intervention,Out of County,Transport Related,33101,Home to School Trans,11/10/2011,3301365713,620.22,Ken's Taxis
http://statistics.data.gov.uk/id/local-authority/38,Oxfordshire County Council,Education & Early Intervention,Out of County,Transport Related,34102,Pupil Fares Reclaima,11/10/2011,3301365716,528,REDACTED PERSONAL DATA
http://statistics.data.gov.uk/id/local-authority/38,Oxfordshire County Council,SCS Pooled Budgets,Community Support Budget - Banbury,Other Agency and Contracted Services,57401,Direct Payments,11/10/2011,3301365728,4545.14,REDACTED PERSONAL DATA
http://statistics.data.gov.uk/id/local-authority/38,Oxfordshire County Council,SCS Pooled Budgets,Community Support Budget - Banbury,Other Agency and Contracted Services,57401,Direct Payments,11/10/2011,3301365728,-2706.3,REDACTED PERSONAL DATA
http://statistics.data.gov.uk/id/local-authority/38,Oxfordshire County Council,Human Resources,Personnel,Services,44500,Other Hired & Contract Services,12/10/2011,3301366335,2163,SHL (UK) LTD
http://statistics.data.gov.uk/id/local-authority/38,Oxfordshire County Council,SCS Pooled Budgets,Community Support Budget - Bicester,Other Agency and Contracted Services,57401,Direct Payments,12/10/2011,3301366348,1316,REDACTED PERSONAL DATA
http://statistics.data.gov.uk/id/local-authority/38,Oxfordshire County Council,SCS Pooled Budgets,Community Support Budget - Wantage,Other Agency and Contracted Services,57401,Direct Payments,12/10/2011,3301366350,752,REDACTED PERSONAL DATA
http://statistics.data.gov.uk/id/local-authority/38,Oxfordshire County Council,SCS Pooled Budgets,Community Support Budget - Didcot,Other Agency and Contracted Services,57401,Direct Payments,12/10/2011,3301366351,1869.04,REDACTED PERSONAL DATA
http://statistics.data.gov.uk/id/local-authority/38,Oxfordshire County Council,SCS Pooled Budgets,Community Support Budget - Abingdon,Other Agency and Contracted Services,57401,Direct Payments,12/10/2011,3301366352,660,REDACTED PERSONAL DATA
http://statistics.data.gov.uk/id/local-authority/38,Oxfordshire County Council,SCS Pooled Budgets,Community Support Budget - Witney,Other Agency and Contracted Services,57401,Direct Payments,12/10/2011,3301366353,1576,REDACTED PERSONAL DATA
http://statistics.data.gov.uk/id/local-authority/38,Oxfordshire County Council,SCS Pooled Budgets,Direct Payments North Team,Other Agency and Contracted Services,57401,Direct Payments,12/10/2011,3301366355,520.56,REDACTED PERSONAL DATA
http://statistics.data.gov.uk/id/local-authority/38,Oxfordshire County Council,SCS Pooled Budgets,PD Comm Supp Purchasg Budget - Wantage,Other Agency and Contracted Services,57401,Direct Payments,12/10/2011,3301366358,747.76,REDACTED PERSONAL DATA
http://statistics.data.gov.uk/id/local-authority/38,Oxfordshire County Council,SCS Pooled Budgets,Community Support Budget - Bicester,Other Agency and Contracted Services,57401,Direct Payments,12/10/2011,3301366359,1244.57,REDACTED PERSONAL DATA
http://statistics.data.gov.uk/id/local-authority/38,Oxfordshire County Council,SCS Pooled Budgets,Community Support Budget - Kidlington,Other Agency and Contracted Services,57401,Direct Payments,12/10/2011,3301366360,1719.43,REDACTED PERSONAL DATA
http://statistics.data.gov.uk/id/local-authority/38,Oxfordshire County Council,SCS Pooled Budgets,Direct Payments City Team,Other Agency and Contracted Services,57401,Direct Payments,12/10/2011,3301366361,1461.52,REDACTED PERSONAL DATA
http://statistics.data.gov.uk/id/local-authority/38,Oxfordshire County Council,SCS Pooled Budgets,Community Support Budget - Thame,Other Agency and Contracted Services,57401,Direct Payments,12/10/2011,3301366362,1776,REDACTED PERSONAL DATA
http://statistics.data.gov.uk/id/local-authority/38,Oxfordshire County Council,SCS Pooled Budgets,Community Support Budget - City,Other Agency and Contracted Services,57401,Direct Payments,12/10/2011,3301366363,748.6,REDACTED PERSONAL DATA
http://statistics.data.gov.uk/id/local-authority/38,Oxfordshire County Council,SCS Pooled Budgets,Direct Payments North Team,Other Agency and Contracted Services,57401,Direct Payments,12/10/2011,3301366364,3752.86,REDACTED PERSONAL DATA
http://statistics.data.gov.uk/id/local-authority/38,Oxfordshire County Council,SCS Pooled Budgets,Direct Payments South Team,Other Agency and Contracted Services,57401,Direct Payments,12/10/2011,3301366365,1360,REDACTED PERSONAL DATA
http://statistics.data.gov.uk/id/local-authority/38,Oxfordshire County Council,SCS Pooled Budgets,Community Support Budget - Didcot,Other Agency and Contracted Services,57401,Direct Payments,12/10/2011,3301366366,1266.6,REDACTED PERSONAL DATA
http://statistics.data.gov.uk/id/local-authority/38,Oxfordshire County Council,SCS Pooled Budgets,PD Comm Supp Purchasg Budget - Didcot,Other Agency and Contracted Services,57401,Direct Payments,12/10/2011,3301366367,1828,REDACTED PERSONAL DATA
